{"text_format":"1","workbook":"xlsx","n_sheets":6,"sheets":["Total","CIB","QNB","بنك مصر","بنك عوده","البنك العربي الافريقي "],"not_rendered":{"charts":0,"images":0,"macros":1,"external_links":0,"defined_names":0,"comments":0,"pivot_tables":0},"unopened":[],"bounds":{"document_bytes":16777216,"sheet_cells":100000,"rows_first":2000,"rows_last":500,"rows_between":2000,"halvings":0,"cell_chars":16384,"cell_head_chars":4096},"cells_cut":0,"cells_raw":0,"read":"whole","date_system":"1900"}

{"sheet":"Total","index":0,"n_rows":32,"n_cols":7,"rows_kept":32,"cut":false,"hidden":false,"merged":[[3,1,7,1],[9,1,13,1],[15,1,19,1],[21,1,25,1],[27,1,31,1]]}
[]
[]
[null,"البنك","نوع الحساب ","التاريخ","المدين ","الدائن ","الرصيد"]
[null,"CIB","مصري "]
[null,null,"دولار"]
[null,null,"يورو"]
[]
[null,null,null,null,null,null,{"$f":"SUM(G4:G7)","v":0}]
[null,"البنك","نوع الحساب ","التاريخ","المدين ","الدائن ","الرصيد"]
[null,"QNB","مصري "]
[null,null,"دولار"]
[null,null,"استرليني"]
[]
[null,null,null,null,null,null,{"$f":"SUM(G10:G13)","v":0}]
[null,"البنك","نوع الحساب ","التاريخ","المدين ","الدائن ","الرصيد"]
[null,"بنك مصر","مصري "]
[null,null,"دولار"]
[null,null,"يورو"]
[]
[null,null,null,null,null,null,{"$f":"SUM(G16:G19)","v":0}]
[null,"البنك","نوع الحساب ","التاريخ","المدين ","الدائن ","الرصيد"]
[null,"بنك عوده","عوده 1"]
[null,null,"عوده 2"]
[null,null,"عوده 3"]
[null,null,"عوده 4"]
[null,null,null,null,null,null,{"$f":"SUM(G22:G25)","v":0}]
[null,"البنك","نوع الحساب ","التاريخ","المدين ","الدائن ","الرصيد"]
[null,"البنك العربي الافريقي","عوده 1"]
[null,null,"عوده 2"]
[null,null,"عوده 3"]
[null,null,"عوده 4"]
[null,null,null,null,null,null,{"$f":"SUM(G28:G31)","v":0}]

{"sheet":"CIB","index":1,"n_rows":1003,"n_cols":33,"rows_kept":1003,"cut":false,"hidden":false,"merged":[[1,9,2,12],[1,0,2,1],[1,2,2,2],[1,5,2,6],[1,7,2,7],[1,8,2,8],[1,3,2,4]]}
[]
["تاريخ اليوم",null,{"$f":"TODAY()","v":"2020-07-19"},"البنك التجاري الدولي",null,"الرصيد حتى",null,{"$f":"VLOOKUP(1000000000,B5:B1002,1)","v":{"$error":"#N/A"}},{"$f":"N1003","v":0},{"$f":"CurrText(I2)","v":"صفر جنية"}]
[]
["م","التاريخ ","طريقة التحصيل ","طريقة السحب","نوع الحركة ","نوع الحساب ","المبلغ","سعر الصرف","القيمة بالجنية المصري","رقم الوحده ","البيان ","مدين ","دائن ","الرصيد",null,null,null,null,null,null,null,null,null,null,null,null,null,null,"نوع الحساب","نوع الحركة ",null,"طريقة التحصيل","طريقة السحب"]
[null,null,null,null,null,null,null,null,{"$f":"IF(F5=\"مصري \",G5,G5*H5)","v":0},null,null,{"$f":"IF(E5=\"DR\",I5,0)","v":0},{"$f":"IF(E5=\"CR\",I5,0)","v":0},{"$f":"M5-L5","v":0},null,null,null,null,null,null,null,null,null,null,null,null,null,null,"مصري ","CR",null,"تحويل"]
[null,null,null,null,null,null,null,null,{"$f":"IF(F6=\"مصري \",G6,G6*H6)","v":0},null,null,{"$f":"IF(E6=\"DR\",I6,0)","v":0},{"$f":"IF(E6=\"CR\",I6,0)","v":0},{"$f":"M6-L6","v":0},null,null,null,null,null,null,null,null,null,null,null,null,null,null,"دولار ","DR",null,"تحويل داخلي"]
[null,null,null,null,null,null,null,null,0,null,null,0,0,0,null,null,null,null,null,null,null,null,null,null,null,null,null,null,"يورو",null,null,"تحويل للحساب"]
[null,null,null,null,null,null,null,null,0,null,null,0,0,0,null,null,null,null,null,null,null,null,null,null,null,null,null,null,null,null,null,"شيك "]
[null,null,null,null,null,null,null,null,0,null,null,0,0,0,null,null,null,null,null,null,null,null,null,null,null,null,null,null,null,null,null,"فيزا"]
[null,null,null,null,null,null,null,null,0,null,null,0,0,0,null,null,null,null,null,null,null,null,null,null,null,null,null,null,null,null,null,"ايداع نقدي"]
[null,null,null,null,null,null,null,null,0,null,null,0,0,0]
[null,null,null,null,null,null,null,null,0,null,null,0,0,0]
[null,null,null,null,null,null,null,null,0,null,null,0,0,0]
[null,null,null,null,null,null,null,null,0,null,null,0,0,0]
[null,null,null,null,null,null,null,null,0,null,null,0,0,0]
[null,null,null,null,null,null,null,null,0,null,null,0,0,0]
[null,null,null,null,null,null,null,null,0,null,null,0,0,0]
[null,null,null,null,null,null,null,null,0,null,null,0,0,0]
[null,null,null,null,null,null,null,null,0,null,null,0,0,0]
[null,null,null,null,null,null,null,null,0,null,null,0,0,0]
[null,null,null,null,null,null,null,null,0,null,null,0,0,0]
[null,null,null,null,null,null,null,null,0,null,null,0,0,0]
[null,null,null,null,null,null,null,null,0,null,null,0,0,0]
[null,null,null,null,null,null,null,null,0,null,null,0,0,0]
[null,null,null,null,null,null,null,null,0,null,null,0,0,0]
[null,null,null,null,null,null,null,null,0,null,null,0,0,0]
[null,null,null,null,null,null,null,null,0,null,null,0,0,0]
[null,null,null,null,null,null,null,null,0,null,null,0,0,0]
[null,null,null,null,null,null,null,null,0,null,null,0,0,0]
[null,null,null,null,null,null,null,null,0,null,null,0,0,0]
[null,null,null,null,null,null,null,null,0,null,null,0,0,0]
[null,null,null,null,null,null,null,null,0,null,null,0,0,0]
[null,null,null,null,null,null,null,null,0,null,null,0,0,0]
[null,null,null,null,null,null,null,null,0,null,null,0,0,0]
[null,null,null,null,null,null,null,null,0,null,null,0,0,0]
[null,null,null,null,null,null,null,null,0,null,null,0,0,0]
[null,null,null,null,null,null,null,null,0,null,null,0,0,0]
[null,null,null,null,null,null,null,null,0,null,null,0,0,0]
[null,null,null,null,null,null,null,null,0,null,null,0,0,0]
[null,null,null,null,null,null,null,null,0,null,null,0,0,0]
[null,null,null,null,null,null,null,null,0,null,null,0,0,0]
[null,null,null,null,null,null,null,null,0,null,null,0,0,0]
[null,null,null,null,null,null,null,null,0,null,null,0,0,0]
[null,null,null,null,null,null,null,null,0,null,null,0,0,0]
[null,null,null,null,null,null,null,null,0,null,null,0,0,0]
[null,null,null,null,null,null,null,null,0,null,null,0,0,0]
[null,null,null,null,null,null,null,null,0,null,null,0,0,0]
[null,null,null,null,null,null,null,null,0,null,null,0,0,0]
[null,null,null,null,null,null,null,null,0,null,null,0,0,0]
[null,null,null,null,null,null,null,null,0,null,null,0,0,0]
[null,null,null,null,null,null,null,null,{"$f":"IF(F51=\"مصري \",G51,G51*H51)","v":0},null,null,0,0,0]
[null,null,null,null,null,null,null,null,0,null,null,0,0,0]
[null,null,null,null,null,null,null,null,0,null,null,0,0,0]
[null,null,null,null,null,null,null,null,0,null,null,0,0,0]
[null,null,null,null,null,null,null,null,0,null,null,0,0,0]
[null,null,null,null,null,null,null,null,0,null,null,0,0,0]
[null,null,null,null,null,null,null,null,0,null,null,0,0,0]
[null,null,null,null,null,null,null,null,0,null,null,0,0,0]
[null,null,null,null,null,null,null,null,0,null,null,0,0,0]
[null,null,null,null,null,null,null,null,0,null,null,0,0,0]
[null,null,null,null,null,null,null,null,0,null,null,0,0,0]
[null,null,null,null,null,null,null,null,0,null,null,0,0,0]
[null,null,null,null,null,null,null,null,0,null,null,0,0,0]
[null,null,null,null,null,null,null,null,0,null,null,0,0,0]
[null,null,null,null,null,null,null,null,0,null,null,0,0,0]
[null,null,null,null,null,null,null,null,0,null,null,0,0,0]
[null,null,null,null,null,null,null,null,0,null,null,0,0,0]
[null,null,null,null,null,null,null,null,0,null,null,0,0,0]
[null,null,null,null,null,null,null,null,0,null,null,0,0,0]
[null,null,null,null,null,null,null,null,{"$f":"IF(F70=\"مصري \",G70,G70*H70)","v":0},null,null,{"$f":"IF(E70=\"DR\",I70,0)","v":0},{"$f":"IF(E70=\"CR\",I70,0)","v":0},{"$f":"M70-L70","v":0}]
[null,null,null,null,null,null,null,null,0,null,null,0,0,0]
[null,null,null,null,null,null,null,null,0,null,null,0,0,0]
[null,null,null,null,null,null,null,null,0,null,null,0,0,0]
[null,null,null,null,null,null,null,null,0,null,null,0,0,0]
[null,null,null,null,null,null,null,null,0,null,null,0,0,0]
[null,null,null,null,null,null,null,null,0,null,null,0,0,0]
[null,null,null,null,null,null,null,null,0,null,null,0,0,0]
[null,null,null,null,null,null,null,null,0,null,null,0,0,0]
[null,null,null,null,null,null,null,null,0,null,null,0,0,0]
[null,null,null,null,null,null,null,null,0,null,null,0,0,0]
[null,null,null,null,null,null,null,null,0,null,null,0,0,0]
[null,null,null,null,null,null,null,null,0,null,null,0,0,0]
[null,null,null,null,null,null,null,null,0,null,null,0,0,0]
[null,null,null,null,null,null,null,null,0,null,null,0,0,0]
[null,null,null,null,null,null,null,null,0,null,null,0,0,0]
[null,null,null,null,null,null,null,null,0,null,null,0,0,0]
[null,null,null,null,null,null,null,null,0,null,null,0,0,0]
[null,null,null,null,null,null,null,null,0,null,null,0,0,0]
[null,null,null,null,null,null,null,null,0,null,null,0,0,0]
[null,null,null,null,null,null,null,null,0,null,null,0,0,0]
[null,null,null,null,null,null,null,null,0,null,null,0,0,0]
[null,null,null,null,null,null,null,null,0,null,null,0,0,0]
[null,null,null,null,null,null,null,null,0,null,null,0,0,0]
[null,null,null,null,null,null,null,null,0,null,null,0,0,0]
[null,null,null,null,null,null,null,null,0,null,null,0,0,0]
[null,null,null,null,null,null,null,null,0,null,null,0,0,0]
[null,null,null,null,null,null,null,null,0,null,null,0,0,0]
[null,null,null,null,null,null,null,null,0,null,null,0,0,0]
[null,null,null,null,null,null,null,null,0,null,null,0,0,0]
[null,null,null,null,null,null,null,null,0,null,null,0,0,0]
[null,null,null,null,null,null,null,null,0,null,null,0,0,0]
[null,null,null,null,null,null,null,null,0,null,null,0,0,0]
[null,null,null,null,null,null,null,null,0,null,null,0,0,0]
[null,null,null,null,null,null,null,null,0,null,null,0,0,0]
[null,null,null,null,null,null,null,null,0,null,null,0,0,0]
[null,null,null,null,null,null,null,null,0,null,null,0,0,0]
[null,null,null,null,null,null,null,null,0,null,null,0,0,0]
[null,null,null,null,null,null,null,null,0,null,null,0,0,0]
[null,null,null,null,null,null,null,null,0,null,null,0,0,0]
[null,null,null,null,null,null,null,null,0,null,null,0,0,0]
[null,null,null,null,null,null,null,null,0,null,null,0,0,0]
[null,null,null,null,null,null,null,null,0,null,null,0,0,0]
[null,null,null,null,null,null,null,null,0,null,null,0,0,0]
[null,null,null,null,null,null,null,null,0,null,null,0,0,0]
[null,null,null,null,null,null,null,null,0,null,null,0,0,0]
[null,null,null,null,null,null,null,null,0,null,null,0,0,0]
[null,null,null,null,null,null,null,null,0,null,null,0,0,0]
[null,null,null,null,null,null,null,null,0,null,null,0,0,0]
[null,null,null,null,null,null,null,null,0,null,null,0,0,0]
[null,null,null,null,null,null,null,null,0,null,null,0,0,0]
[null,null,null,null,null,null,null,null,0,null,null,0,0,0]
[null,null,null,null,null,null,null,null,0,null,null,0,0,0]
[null,null,null,null,null,null,null,null,0,null,null,0,0,0]
[null,null,null,null,null,null,null,null,0,null,null,0,0,0]
[null,null,null,null,null,null,null,null,0,null,null,0,0,0]
[null,null,null,null,null,null,null,null,0,null,null,0,0,0]
[null,null,null,null,null,null,null,null,0,null,null,0,0,0]
[null,null,null,null,null,null,null,null,0,null,null,0,0,0]
[null,null,null,null,null,null,null,null,0,null,null,0,0,0]
[null,null,null,null,null,null,null,null,0,null,null,0,0,0]
[null,null,null,null,null,null,null,null,0,null,null,0,0,0]
[null,null,null,null,null,null,null,null,0,null,null,0,0,0]
[null,null,null,null,null,null,null,null,0,null,null,0,0,0]
[null,null,null,null,null,null,null,null,{"$f":"IF(F134=\"مصري \",G134,G134*H134)","v":0},null,null,{"$f":"IF(E134=\"DR\",I134,0)","v":0},{"$f":"IF(E134=\"CR\",I134,0)","v":0},{"$f":"M134-L134","v":0}]
[null,null,null,null,null,null,null,null,0,null,null,0,0,0]
[null,null,null,null,null,null,null,null,0,null,null,0,0,0]
[null,null,null,null,null,null,null,null,0,null,null,0,0,0]
[null,null,null,null,null,null,null,null,0,null,null,0,0,0]
[null,null,null,null,null,null,null,null,0,null,null,0,0,0]
[null,null,null,null,null,null,null,null,0,null,null,0,0,0]
[null,null,null,null,null,null,null,null,0,null,null,0,0,0]
[null,null,null,null,null,null,null,null,0,null,null,0,0,0]
[null,null,null,null,null,null,null,null,0,null,null,0,0,0]
[null,null,null,null,null,null,null,null,0,null,null,0,0,0]
[null,null,null,null,null,null,null,null,0,null,null,0,0,0]
[null,null,null,null,null,null,null,null,0,null,null,0,0,0]
[null,null,null,null,null,null,null,null,0,null,null,0,0,0]
[null,null,null,null,null,null,null,null,0,null,null,0,0,0]
[null,null,null,null,null,null,null,null,0,null,null,0,0,0]
[null,null,null,null,null,null,null,null,0,null,null,0,0,0]
[null,null,null,null,null,null,null,null,0,null,null,0,0,0]
[null,null,null,null,null,null,null,null,0,null,null,0,0,0]
[null,null,null,null,null,null,null,null,0,null,null,0,0,0]
[null,null,null,null,null,null,null,null,0,null,null,0,0,0]
[null,null,null,null,null,null,null,null,0,null,null,0,0,0]
[null,null,null,null,null,null,null,null,0,null,null,0,0,0]
[null,null,null,null,null,null,null,null,0,null,null,0,0,0]
[null,null,null,null,null,null,null,null,0,null,null,0,0,0]
[null,null,null,null,null,null,null,null,0,null,null,0,0,0]
[null,null,null,null,null,null,null,null,0,null,null,0,0,0]
[null,null,null,null,null,null,null,null,0,null,null,0,0,0]
[null,null,null,null,null,null,null,null,0,null,null,0,0,0]
[null,null,null,null,null,null,null,null,0,null,null,0,0,0]
[null,null,null,null,null,null,null,null,0,null,null,0,0,0]
[null,null,null,null,null,null,null,null,0,null,null,0,0,0]
[null,null,null,null,null,null,null,null,0,null,null,0,0,0]
[null,null,null,null,null,null,null,null,0,null,null,0,0,0]
[null,null,null,null,null,null,null,null,0,null,null,0,0,0]
[null,null,null,null,null,null,null,null,0,null,null,0,0,0]
[null,null,null,null,null,null,null,null,0,null,null,0,0,0]
[null,null,null,null,null,null,null,null,0,null,null,0,0,0]
[null,null,null,null,null,null,null,null,0,null,null,0,0,0]
[null,null,null,null,null,null,null,null,0,null,null,0,0,0]
[null,null,null,null,null,null,null,null,0,null,null,0,0,0]
[null,null,null,null,null,null,null,null,0,null,null,0,0,0]
[null,null,null,null,null,null,null,null,0,null,null,0,0,0]
[null,null,null,null,null,null,null,null,0,null,null,0,0,0]
[null,null,null,null,null,null,null,null,0,null,null,0,0,0]
[null,null,null,null,null,null,null,null,0,null,null,0,0,0]
[null,null,null,null,null,null,null,null,0,null,null,0,0,0]
[null,null,null,null,null,null,null,null,0,null,null,0,0,0]
[null,null,null,null,null,null,null,null,0,null,null,0,0,0]
[null,null,null,null,null,null,null,null,0,null,null,0,0,0]
[null,null,null,null,null,null,null,null,0,null,null,0,0,0]
[null,null,null,null,null,null,null,null,0,null,null,0,0,0]
[null,null,null,null,null,null,null,null,0,null,null,0,0,0]
[null,null,null,null,null,null,null,null,0,null,null,0,0,0]
[null,null,null,null,null,null,null,null,0,null,null,0,0,0]
[null,null,null,null,null,null,null,null,0,null,null,0,0,0]
[null,null,null,null,null,null,null,null,0,null,null,0,0,0]
[null,null,null,null,null,null,null,null,0,null,null,0,0,0]
[null,null,null,null,null,null,null,null,0,null,null,0,0,0]
[null,null,null,null,null,null,null,null,0,null,null,0,0,0]
[null,null,null,null,null,null,null,null,0,null,null,0,0,0]
[null,null,null,null,null,null,null,null,0,null,null,0,0,0]
[null,null,null,null,null,null,null,null,0,null,null,0,0,0]
[null,null,null,null,null,null,null,null,0,null,null,0,0,0]
[null,null,null,null,null,null,null,null,{"$f":"IF(F198=\"مصري \",G198,G198*H198)","v":0},null,null,{"$f":"IF(E198=\"DR\",I198,0)","v":0},{"$f":"IF(E198=\"CR\",I198,0)","v":0},{"$f":"M198-L198","v":0}]
[null,null,null,null,null,null,null,null,0,null,null,0,0,0]
[null,null,null,null,null,null,null,null,0,null,null,0,0,0]
[null,null,null,null,null,null,null,null,0,null,null,0,0,0]
[null,null,null,null,null,null,null,null,0,null,null,0,0,0]
[null,null,null,null,null,null,null,null,0,null,null,0,0,0]
[null,null,null,null,null,null,null,null,0,null,null,0,0,0]
[null,null,null,null,null,null,null,null,0,null,null,0,0,0]
[null,null,null,null,null,null,null,null,0,null,null,0,0,0]
[null,null,null,null,null,null,null,null,0,null,null,0,0,0]
[null,null,null,null,null,null,null,null,0,null,null,0,0,0]
[null,null,null,null,null,null,null,null,0,null,null,0,0,0]
[null,null,null,null,null,null,null,null,0,null,null,0,0,0]
[null,null,null,null,null,null,null,null,0,null,null,0,0,0]
[null,null,null,null,null,null,null,null,0,null,null,0,0,0]
[null,null,null,null,null,null,null,null,0,null,null,0,0,0]
[null,null,null,null,null,null,null,null,0,null,null,0,0,0]
[null,null,null,null,null,null,null,null,0,null,null,0,0,0]
[null,null,null,null,null,null,null,null,0,null,null,0,0,0]
[null,null,null,null,null,null,null,null,0,null,null,0,0,0]
[null,null,null,null,null,null,null,null,0,null,null,0,0,0]
[null,null,null,null,null,null,null,null,0,null,null,0,0,0]
[null,null,null,null,null,null,null,null,0,null,null,0,0,0]
[null,null,null,null,null,null,null,null,0,null,null,0,0,0]
[null,null,null,null,null,null,null,null,0,null,null,0,0,0]
[null,null,null,null,null,null,null,null,0,null,null,0,0,0]
[null,null,null,null,null,null,null,null,0,null,null,0,0,0]
[null,null,null,null,null,null,null,null,0,null,null,0,0,0]
[null,null,null,null,null,null,null,null,0,null,null,0,0,0]
[null,null,null,null,null,null,null,null,0,null,null,0,0,0]
[null,null,null,null,null,null,null,null,0,null,null,0,0,0]
[null,null,null,null,null,null,null,null,0,null,null,0,0,0]
[null,null,null,null,null,null,null,null,0,null,null,0,0,0]
[null,null,null,null,null,null,null,null,0,null,null,0,0,0]
[null,null,null,null,null,null,null,null,0,null,null,0,0,0]
[null,null,null,null,null,null,null,null,0,null,null,0,0,0]
[null,null,null,null,null,null,null,null,0,null,null,0,0,0]
[null,null,null,null,null,null,null,null,0,null,null,0,0,0]
[null,null,null,null,null,null,null,null,0,null,null,0,0,0]
[null,null,null,null,null,null,null,null,0,null,null,0,0,0]
[null,null,null,null,null,null,null,null,0,null,null,0,0,0]
[null,null,null,null,null,null,null,null,0,null,null,0,0,0]
[null,null,null,null,null,null,null,null,0,null,null,0,0,0]
[null,null,null,null,null,null,null,null,0,null,null,0,0,0]
[null,null,null,null,null,null,null,null,0,null,null,0,0,0]
[null,null,null,null,null,null,null,null,0,null,null,0,0,0]
[null,null,null,null,null,null,null,null,0,null,null,0,0,0]
[null,null,null,null,null,null,null,null,0,null,null,0,0,0]
[null,null,null,null,null,null,null,null,0,null,null,0,0,0]
[null,null,null,null,null,null,null,null,0,null,null,0,0,0]
[null,null,null,null,null,null,null,null,0,null,null,0,0,0]
[null,null,null,null,null,null,null,null,0,null,null,0,0,0]
[null,null,null,null,null,null,null,null,0,null,null,0,0,0]
[null,null,null,null,null,null,null,null,0,null,null,0,0,0]
[null,null,null,null,null,null,null,null,0,null,null,0,0,0]
[null,null,null,null,null,null,null,null,0,null,null,0,0,0]
[null,null,null,null,null,null,null,null,0,null,null,0,0,0]
[null,null,null,null,null,null,null,null,0,null,null,0,0,0]
[null,null,null,null,null,null,null,null,0,null,null,0,0,0]
[null,null,null,null,null,null,null,null,0,null,null,0,0,0]
[null,null,null,null,null,null,null,null,0,null,null,0,0,0]
[null,null,null,null,null,null,null,null,0,null,null,0,0,0]
[null,null,null,null,null,null,null,null,0,null,null,0,0,0]
[null,null,null,null,null,null,null,null,0,null,null,0,0,0]
[null,null,null,null,null,null,null,null,{"$f":"IF(F262=\"مصري \",G262,G262*H262)","v":0},null,null,{"$f":"IF(E262=\"DR\",I262,0)","v":0},{"$f":"IF(E262=\"CR\",I262,0)","v":0},{"$f":"M262-L262","v":0}]
[null,null,null,null,null,null,null,null,0,null,null,0,0,0]
[null,null,null,null,null,null,null,null,0,null,null,0,0,0]
[null,null,null,null,null,null,null,null,0,null,null,0,0,0]
[null,null,null,null,null,null,null,null,0,null,null,0,0,0]
[null,null,null,null,null,null,null,null,0,null,null,0,0,0]
[null,null,null,null,null,null,null,null,0,null,null,0,0,0]
[null,null,null,null,null,null,null,null,0,null,null,0,0,0]
[null,null,null,null,null,null,null,null,0,null,null,0,0,0]
[null,null,null,null,null,null,null,null,0,null,null,0,0,0]
[null,null,null,null,null,null,null,null,0,null,null,0,0,0]
[null,null,null,null,null,null,null,null,0,null,null,0,0,0]
[null,null,null,null,null,null,null,null,0,null,null,0,0,0]
[null,null,null,null,null,null,null,null,0,null,null,0,0,0]
[null,null,null,null,null,null,null,null,0,null,null,0,0,0]
[null,null,null,null,null,null,null,null,0,null,null,0,0,0]
[null,null,null,null,null,null,null,null,0,null,null,0,0,0]
[null,null,null,null,null,null,null,null,0,null,null,0,0,0]
[null,null,null,null,null,null,null,null,0,null,null,0,0,0]
[null,null,null,null,null,null,null,null,0,null,null,0,0,0]
[null,null,null,null,null,null,null,null,0,null,null,0,0,0]
[null,null,null,null,null,null,null,null,0,null,null,0,0,0]
[null,null,null,null,null,null,null,null,0,null,null,0,0,0]
[null,null,null,null,null,null,null,null,0,null,null,0,0,0]
[null,null,null,null,null,null,null,null,0,null,null,0,0,0]
[null,null,null,null,null,null,null,null,0,null,null,0,0,0]
[null,null,null,null,null,null,null,null,0,null,null,0,0,0]
[null,null,null,null,null,null,null,null,0,null,null,0,0,0]
[null,null,null,null,null,null,null,null,0,null,null,0,0,0]
[null,null,null,null,null,null,null,null,0,null,null,0,0,0]
[null,null,null,null,null,null,null,null,0,null,null,0,0,0]
[null,null,null,null,null,null,null,null,0,null,null,0,0,0]
[null,null,null,null,null,null,null,null,0,null,null,0,0,0]
[null,null,null,null,null,null,null,null,0,null,null,0,0,0]
[null,null,null,null,null,null,null,null,0,null,null,0,0,0]
[null,null,null,null,null,null,null,null,0,null,null,0,0,0]
[null,null,null,null,null,null,null,null,0,null,null,0,0,0]
[null,null,null,null,null,null,null,null,0,null,null,0,0,0]
[null,null,null,null,null,null,null,null,0,null,null,0,0,0]
[null,null,null,null,null,null,null,null,0,null,null,0,0,0]
[null,null,null,null,null,null,null,null,0,null,null,0,0,0]
[null,null,null,null,null,null,null,null,0,null,null,0,0,0]
[null,null,null,null,null,null,null,null,0,null,null,0,0,0]
[null,null,null,null,null,null,null,null,0,null,null,0,0,0]
[null,null,null,null,null,null,null,null,0,null,null,0,0,0]
[null,null,null,null,null,null,null,null,0,null,null,0,0,0]
[null,null,null,null,null,null,null,null,0,null,null,0,0,0]
[null,null,null,null,null,null,null,null,0,null,null,0,0,0]
[null,null,null,null,null,null,null,null,0,null,null,0,0,0]
[null,null,null,null,null,null,null,null,0,null,null,0,0,0]
[null,null,null,null,null,null,null,null,0,null,null,0,0,0]
[null,null,null,null,null,null,null,null,0,null,null,0,0,0]
[null,null,null,null,null,null,null,null,0,null,null,0,0,0]
[null,null,null,null,null,null,null,null,0,null,null,0,0,0]
[null,null,null,null,null,null,null,null,0,null,null,0,0,0]
[null,null,null,null,null,null,null,null,0,null,null,0,0,0]
[null,null,null,null,null,null,null,null,0,null,null,0,0,0]
[null,null,null,null,null,null,null,null,0,null,null,0,0,0]
[null,null,null,null,null,null,null,null,0,null,null,0,0,0]
[null,null,null,null,null,null,null,null,0,null,null,0,0,0]
[null,null,null,null,null,null,null,null,0,null,null,0,0,0]
[null,null,null,null,null,null,null,null,0,null,null,0,0,0]
[null,null,null,null,null,null,null,null,0,null,null,0,0,0]
[null,null,null,null,null,null,null,null,0,null,null,0,0,0]
[null,null,null,null,null,null,null,null,{"$f":"IF(F326=\"مصري \",G326,G326*H326)","v":0},null,null,{"$f":"IF(E326=\"DR\",I326,0)","v":0},{"$f":"IF(E326=\"CR\",I326,0)","v":0},{"$f":"M326-L326","v":0}]
[null,null,null,null,null,null,null,null,0,null,null,0,0,0]
[null,null,null,null,null,null,null,null,0,null,null,0,0,0]
[null,null,null,null,null,null,null,null,0,null,null,0,0,0]
[null,null,null,null,null,null,null,null,0,null,null,0,0,0]
[null,null,null,null,null,null,null,null,0,null,null,0,0,0]
[null,null,null,null,null,null,null,null,0,null,null,0,0,0]
[null,null,null,null,null,null,null,null,0,null,null,0,0,0]
[null,null,null,null,null,null,null,null,0,null,null,0,0,0]
[null,null,null,null,null,null,null,null,0,null,null,0,0,0]
[null,null,null,null,null,null,null,null,0,null,null,0,0,0]
[null,null,null,null,null,null,null,null,0,null,null,0,0,0]
[null,null,null,null,null,null,null,null,0,null,null,0,0,0]
[null,null,null,null,null,null,null,null,0,null,null,0,0,0]
[null,null,null,null,null,null,null,null,0,null,null,0,0,0]
[null,null,null,null,null,null,null,null,0,null,null,0,0,0]
[null,null,null,null,null,null,null,null,0,null,null,0,0,0]
[null,null,null,null,null,null,null,null,0,null,null,0,0,0]
[null,null,null,null,null,null,null,null,0,null,null,0,0,0]
[null,null,null,null,null,null,null,null,0,null,null,0,0,0]
[null,null,null,null,null,null,null,null,0,null,null,0,0,0]
[null,null,null,null,null,null,null,null,0,null,null,0,0,0]
[null,null,null,null,null,null,null,null,0,null,null,0,0,0]
[null,null,null,null,null,null,null,null,0,null,null,0,0,0]
[null,null,null,null,null,null,null,null,0,null,null,0,0,0]
[null,null,null,null,null,null,null,null,0,null,null,0,0,0]
[null,null,null,null,null,null,null,null,0,null,null,0,0,0]
[null,null,null,null,null,null,null,null,0,null,null,0,0,0]
[null,null,null,null,null,null,null,null,0,null,null,0,0,0]
[null,null,null,null,null,null,null,null,0,null,null,0,0,0]
[null,null,null,null,null,null,null,null,0,null,null,0,0,0]
[null,null,null,null,null,null,null,null,0,null,null,0,0,0]
[null,null,null,null,null,null,null,null,0,null,null,0,0,0]
[null,null,null,null,null,null,null,null,0,null,null,0,0,0]
[null,null,null,null,null,null,null,null,0,null,null,0,0,0]
[null,null,null,null,null,null,null,null,0,null,null,0,0,0]
[null,null,null,null,null,null,null,null,0,null,null,0,0,0]
[null,null,null,null,null,null,null,null,0,null,null,0,0,0]
[null,null,null,null,null,null,null,null,0,null,null,0,0,0]
[null,null,null,null,null,null,null,null,0,null,null,0,0,0]
[null,null,null,null,null,null,null,null,0,null,null,0,0,0]
[null,null,null,null,null,null,null,null,0,null,null,0,0,0]
[null,null,null,null,null,null,null,null,0,null,null,0,0,0]
[null,null,null,null,null,null,null,null,0,null,null,0,0,0]
[null,null,null,null,null,null,null,null,0,null,null,0,0,0]
[null,null,null,null,null,null,null,null,0,null,null,0,0,0]
[null,null,null,null,null,null,null,null,0,null,null,0,0,0]
[null,null,null,null,null,null,null,null,0,null,null,0,0,0]
[null,null,null,null,null,null,null,null,0,null,null,0,0,0]
[null,null,null,null,null,null,null,null,0,null,null,0,0,0]
[null,null,null,null,null,null,null,null,0,null,null,0,0,0]
[null,null,null,null,null,null,null,null,0,null,null,0,0,0]
[null,null,null,null,null,null,null,null,0,null,null,0,0,0]
[null,null,null,null,null,null,null,null,0,null,null,0,0,0]
[null,null,null,null,null,null,null,null,0,null,null,0,0,0]
[null,null,null,null,null,null,null,null,0,null,null,0,0,0]
[null,null,null,null,null,null,null,null,0,null,null,0,0,0]
[null,null,null,null,null,null,null,null,0,null,null,0,0,0]
[null,null,null,null,null,null,null,null,0,null,null,0,0,0]
[null,null,null,null,null,null,null,null,0,null,null,0,0,0]
[null,null,null,null,null,null,null,null,0,null,null,0,0,0]
[null,null,null,null,null,null,null,null,0,null,null,0,0,0]
[null,null,null,null,null,null,null,null,0,null,null,0,0,0]
[null,null,null,null,null,null,null,null,0,null,null,0,0,0]
[null,null,null,null,null,null,null,null,{"$f":"IF(F390=\"مصري \",G390,G390*H390)","v":0},null,null,{"$f":"IF(E390=\"DR\",I390,0)","v":0},{"$f":"IF(E390=\"CR\",I390,0)","v":0},{"$f":"M390-L390","v":0}]
[null,null,null,null,null,null,null,null,0,null,null,0,0,0]
[null,null,null,null,null,null,null,null,0,null,null,0,0,0]
[null,null,null,null,null,null,null,null,0,null,null,0,0,0]
[null,null,null,null,null,null,null,null,0,null,null,0,0,0]
[null,null,null,null,null,null,null,null,0,null,null,0,0,0]
[null,null,null,null,null,null,null,null,0,null,null,0,0,0]
[null,null,null,null,null,null,null,null,0,null,null,0,0,0]
[null,null,null,null,null,null,null,null,0,null,null,0,0,0]
[null,null,null,null,null,null,null,null,0,null,null,0,0,0]
[null,null,null,null,null,null,null,null,0,null,null,0,0,0]
[null,null,null,null,null,null,null,null,0,null,null,0,0,0]
[null,null,null,null,null,null,null,null,0,null,null,0,0,0]
[null,null,null,null,null,null,null,null,0,null,null,0,0,0]
[null,null,null,null,null,null,null,null,0,null,null,0,0,0]
[null,null,null,null,null,null,null,null,0,null,null,0,0,0]
[null,null,null,null,null,null,null,null,0,null,null,0,0,0]
[null,null,null,null,null,null,null,null,0,null,null,0,0,0]
[null,null,null,null,null,null,null,null,0,null,null,0,0,0]
[null,null,null,null,null,null,null,null,0,null,null,0,0,0]
[null,null,null,null,null,null,null,null,0,null,null,0,0,0]
[null,null,null,null,null,null,null,null,0,null,null,0,0,0]
[null,null,null,null,null,null,null,null,0,null,null,0,0,0]
[null,null,null,null,null,null,null,null,0,null,null,0,0,0]
[null,null,null,null,null,null,null,null,0,null,null,0,0,0]
[null,null,null,null,null,null,null,null,0,null,null,0,0,0]
[null,null,null,null,null,null,null,null,0,null,null,0,0,0]
[null,null,null,null,null,null,null,null,0,null,null,0,0,0]
[null,null,null,null,null,null,null,null,0,null,null,0,0,0]
[null,null,null,null,null,null,null,null,0,null,null,0,0,0]
[null,null,null,null,null,null,null,null,0,null,null,0,0,0]
[null,null,null,null,null,null,null,null,0,null,null,0,0,0]
[null,null,null,null,null,null,null,null,0,null,null,0,0,0]
[null,null,null,null,null,null,null,null,0,null,null,0,0,0]
[null,null,null,null,null,null,null,null,0,null,null,0,0,0]
[null,null,null,null,null,null,null,null,0,null,null,0,0,0]
[null,null,null,null,null,null,null,null,0,null,null,0,0,0]
[null,null,null,null,null,null,null,null,0,null,null,0,0,0]
[null,null,null,null,null,null,null,null,0,null,null,0,0,0]
[null,null,null,null,null,null,null,null,0,null,null,0,0,0]
[null,null,null,null,null,null,null,null,0,null,null,0,0,0]
[null,null,null,null,null,null,null,null,0,null,null,0,0,0]
[null,null,null,null,null,null,null,null,0,null,null,0,0,0]
[null,null,null,null,null,null,null,null,0,null,null,0,0,0]
[null,null,null,null,null,null,null,null,0,null,null,0,0,0]
[null,null,null,null,null,null,null,null,0,null,null,0,0,0]
[null,null,null,null,null,null,null,null,0,null,null,0,0,0]
[null,null,null,null,null,null,null,null,0,null,null,0,0,0]
[null,null,null,null,null,null,null,null,0,null,null,0,0,0]
[null,null,null,null,null,null,null,null,0,null,null,0,0,0]
[null,null,null,null,null,null,null,null,0,null,null,0,0,0]
[null,null,null,null,null,null,null,null,0,null,null,0,0,0]
[null,null,null,null,null,null,null,null,0,null,null,0,0,0]
[null,null,null,null,null,null,null,null,0,null,null,0,0,0]
[null,null,null,null,null,null,null,null,0,null,null,0,0,0]
[null,null,null,null,null,null,null,null,0,null,null,0,0,0]
[null,null,null,null,null,null,null,null,0,null,null,0,0,0]
[null,null,null,null,null,null,null,null,0,null,null,0,0,0]
[null,null,null,null,null,null,null,null,0,null,null,0,0,0]
[null,null,null,null,null,null,null,null,0,null,null,0,0,0]
[null,null,null,null,null,null,null,null,0,null,null,0,0,0]
[null,null,null,null,null,null,null,null,0,null,null,0,0,0]
[null,null,null,null,null,null,null,null,0,null,null,0,0,0]
[null,null,null,null,null,null,null,null,0,null,null,0,0,0]
[null,null,null,null,null,null,null,null,{"$f":"IF(F454=\"مصري \",G454,G454*H454)","v":0},null,null,{"$f":"IF(E454=\"DR\",I454,0)","v":0},{"$f":"IF(E454=\"CR\",I454,0)","v":0},{"$f":"M454-L454","v":0}]
[null,null,null,null,null,null,null,null,0,null,null,0,0,0]
[null,null,null,null,null,null,null,null,0,null,null,0,0,0]
[null,null,null,null,null,null,null,null,0,null,null,0,0,0]
[null,null,null,null,null,null,null,null,0,null,null,0,0,0]
[null,null,null,null,null,null,null,null,0,null,null,0,0,0]
[null,null,null,null,null,null,null,null,0,null,null,0,0,0]
[null,null,null,null,null,null,null,null,0,null,null,0,0,0]
[null,null,null,null,null,null,null,null,0,null,null,0,0,0]
[null,null,null,null,null,null,null,null,0,null,null,0,0,0]
[null,null,null,null,null,null,null,null,0,null,null,0,0,0]
[null,null,null,null,null,null,null,null,0,null,null,0,0,0]
[null,null,null,null,null,null,null,null,0,null,null,0,0,0]
[null,null,null,null,null,null,null,null,0,null,null,0,0,0]
[null,null,null,null,null,null,null,null,0,null,null,0,0,0]
[null,null,null,null,null,null,null,null,0,null,null,0,0,0]
[null,null,null,null,null,null,null,null,0,null,null,0,0,0]
[null,null,null,null,null,null,null,null,0,null,null,0,0,0]
[null,null,null,null,null,null,null,null,0,null,null,0,0,0]
[null,null,null,null,null,null,null,null,0,null,null,0,0,0]
[null,null,null,null,null,null,null,null,0,null,null,0,0,0]
[null,null,null,null,null,null,null,null,0,null,null,0,0,0]
[null,null,null,null,null,null,null,null,0,null,null,0,0,0]
[null,null,null,null,null,null,null,null,0,null,null,0,0,0]
[null,null,null,null,null,null,null,null,0,null,null,0,0,0]
[null,null,null,null,null,null,null,null,0,null,null,0,0,0]
[null,null,null,null,null,null,null,null,0,null,null,0,0,0]
[null,null,null,null,null,null,null,null,0,null,null,0,0,0]
[null,null,null,null,null,null,null,null,0,null,null,0,0,0]
[null,null,null,null,null,null,null,null,0,null,null,0,0,0]
[null,null,null,null,null,null,null,null,0,null,null,0,0,0]
[null,null,null,null,null,null,null,null,0,null,null,0,0,0]
[null,null,null,null,null,null,null,null,0,null,null,0,0,0]
[null,null,null,null,null,null,null,null,0,null,null,0,0,0]
[null,null,null,null,null,null,null,null,0,null,null,0,0,0]
[null,null,null,null,null,null,null,null,0,null,null,0,0,0]
[null,null,null,null,null,null,null,null,0,null,null,0,0,0]
[null,null,null,null,null,null,null,null,0,null,null,0,0,0]
[null,null,null,null,null,null,null,null,0,null,null,0,0,0]
[null,null,null,null,null,null,null,null,0,null,null,0,0,0]
[null,null,null,null,null,null,null,null,0,null,null,0,0,0]
[null,null,null,null,null,null,null,null,0,null,null,0,0,0]
[null,null,null,null,null,null,null,null,0,null,null,0,0,0]
[null,null,null,null,null,null,null,null,0,null,null,0,0,0]
[null,null,null,null,null,null,null,null,0,null,null,0,0,0]
[null,null,null,null,null,null,null,null,0,null,null,0,0,0]
[null,null,null,null,null,null,null,null,0,null,null,0,0,0]
[null,null,null,null,null,null,null,null,0,null,null,0,0,0]
[null,null,null,null,null,null,null,null,0,null,null,0,0,0]
[null,null,null,null,null,null,null,null,0,null,null,0,0,0]
[null,null,null,null,null,null,null,null,0,null,null,0,0,0]
[null,null,null,null,null,null,null,null,0,null,null,0,0,0]
[null,null,null,null,null,null,null,null,0,null,null,0,0,0]
[null,null,null,null,null,null,null,null,0,null,null,0,0,0]
[null,null,null,null,null,null,null,null,0,null,null,0,0,0]
[null,null,null,null,null,null,null,null,0,null,null,0,0,0]
[null,null,null,null,null,null,null,null,0,null,null,0,0,0]
[null,null,null,null,null,null,null,null,0,null,null,0,0,0]
[null,null,null,null,null,null,null,null,0,null,null,0,0,0]
[null,null,null,null,null,null,null,null,0,null,null,0,0,0]
[null,null,null,null,null,null,null,null,0,null,null,0,0,0]
[null,null,null,null,null,null,null,null,0,null,null,0,0,0]
[null,null,null,null,null,null,null,null,0,null,null,0,0,0]
[null,null,null,null,null,null,null,null,0,null,null,0,0,0]
[null,null,null,null,null,null,null,null,{"$f":"IF(F518=\"مصري \",G518,G518*H518)","v":0},null,null,{"$f":"IF(E518=\"DR\",I518,0)","v":0},{"$f":"IF(E518=\"CR\",I518,0)","v":0},{"$f":"M518-L518","v":0}]
[null,null,null,null,null,null,null,null,0,null,null,0,0,0]
[null,null,null,null,null,null,null,null,0,null,null,0,0,0]
[null,null,null,null,null,null,null,null,0,null,null,0,0,0]
[null,null,null,null,null,null,null,null,0,null,null,0,0,0]
[null,null,null,null,null,null,null,null,0,null,null,0,0,0]
[null,null,null,null,null,null,null,null,0,null,null,0,0,0]
[null,null,null,null,null,null,null,null,0,null,null,0,0,0]
[null,null,null,null,null,null,null,null,0,null,null,0,0,0]
[null,null,null,null,null,null,null,null,0,null,null,0,0,0]
[null,null,null,null,null,null,null,null,0,null,null,0,0,0]
[null,null,null,null,null,null,null,null,0,null,null,0,0,0]
[null,null,null,null,null,null,null,null,0,null,null,0,0,0]
[null,null,null,null,null,null,null,null,0,null,null,0,0,0]
[null,null,null,null,null,null,null,null,0,null,null,0,0,0]
[null,null,null,null,null,null,null,null,0,null,null,0,0,0]
[null,null,null,null,null,null,null,null,0,null,null,0,0,0]
[null,null,null,null,null,null,null,null,0,null,null,0,0,0]
[null,null,null,null,null,null,null,null,0,null,null,0,0,0]
[null,null,null,null,null,null,null,null,0,null,null,0,0,0]
[null,null,null,null,null,null,null,null,0,null,null,0,0,0]
[null,null,null,null,null,null,null,null,0,null,null,0,0,0]
[null,null,null,null,null,null,null,null,0,null,null,0,0,0]
[null,null,null,null,null,null,null,null,0,null,null,0,0,0]
[null,null,null,null,null,null,null,null,0,null,null,0,0,0]
[null,null,null,null,null,null,null,null,0,null,null,0,0,0]
[null,null,null,null,null,null,null,null,0,null,null,0,0,0]
[null,null,null,null,null,null,null,null,0,null,null,0,0,0]
[null,null,null,null,null,null,null,null,0,null,null,0,0,0]
[null,null,null,null,null,null,null,null,0,null,null,0,0,0]
[null,null,null,null,null,null,null,null,0,null,null,0,0,0]
[null,null,null,null,null,null,null,null,0,null,null,0,0,0]
[null,null,null,null,null,null,null,null,0,null,null,0,0,0]
[null,null,null,null,null,null,null,null,0,null,null,0,0,0]
[null,null,null,null,null,null,null,null,0,null,null,0,0,0]
[null,null,null,null,null,null,null,null,0,null,null,0,0,0]
[null,null,null,null,null,null,null,null,0,null,null,0,0,0]
[null,null,null,null,null,null,null,null,0,null,null,0,0,0]
[null,null,null,null,null,null,null,null,0,null,null,0,0,0]
[null,null,null,null,null,null,null,null,0,null,null,0,0,0]
[null,null,null,null,null,null,null,null,0,null,null,0,0,0]
[null,null,null,null,null,null,null,null,0,null,null,0,0,0]
[null,null,null,null,null,null,null,null,0,null,null,0,0,0]
[null,null,null,null,null,null,null,null,0,null,null,0,0,0]
[null,null,null,null,null,null,null,null,0,null,null,0,0,0]
[null,null,null,null,null,null,null,null,0,null,null,0,0,0]
[null,null,null,null,null,null,null,null,0,null,null,0,0,0]
[null,null,null,null,null,null,null,null,0,null,null,0,0,0]
[null,null,null,null,null,null,null,null,0,null,null,0,0,0]
[null,null,null,null,null,null,null,null,0,null,null,0,0,0]
[null,null,null,null,null,null,null,null,0,null,null,0,0,0]
[null,null,null,null,null,null,null,null,0,null,null,0,0,0]
[null,null,null,null,null,null,null,null,0,null,null,0,0,0]
[null,null,null,null,null,null,null,null,0,null,null,0,0,0]
[null,null,null,null,null,null,null,null,0,null,null,0,0,0]
[null,null,null,null,null,null,null,null,0,null,null,0,0,0]
[null,null,null,null,null,null,null,null,0,null,null,0,0,0]
[null,null,null,null,null,null,null,null,0,null,null,0,0,0]
[null,null,null,null,null,null,null,null,0,null,null,0,0,0]
[null,null,null,null,null,null,null,null,0,null,null,0,0,0]
[null,null,null,null,null,null,null,null,0,null,null,0,0,0]
[null,null,null,null,null,null,null,null,0,null,null,0,0,0]
[null,null,null,null,null,null,null,null,0,null,null,0,0,0]
[null,null,null,null,null,null,null,null,0,null,null,0,0,0]
[null,null,null,null,null,null,null,null,{"$f":"IF(F582=\"مصري \",G582,G582*H582)","v":0},null,null,{"$f":"IF(E582=\"DR\",I582,0)","v":0},{"$f":"IF(E582=\"CR\",I582,0)","v":0},{"$f":"M582-L582","v":0}]
[null,null,null,null,null,null,null,null,0,null,null,0,0,0]
[null,null,null,null,null,null,null,null,0,null,null,0,0,0]
[null,null,null,null,null,null,null,null,0,null,null,0,0,0]
[null,null,null,null,null,null,null,null,0,null,null,0,0,0]
[null,null,null,null,null,null,null,null,0,null,null,0,0,0]
[null,null,null,null,null,null,null,null,0,null,null,0,0,0]
[null,null,null,null,null,null,null,null,0,null,null,0,0,0]
[null,null,null,null,null,null,null,null,0,null,null,0,0,0]
[null,null,null,null,null,null,null,null,0,null,null,0,0,0]
[null,null,null,null,null,null,null,null,0,null,null,0,0,0]
[null,null,null,null,null,null,null,null,0,null,null,0,0,0]
[null,null,null,null,null,null,null,null,0,null,null,0,0,0]
[null,null,null,null,null,null,null,null,0,null,null,0,0,0]
[null,null,null,null,null,null,null,null,0,null,null,0,0,0]
[null,null,null,null,null,null,null,null,0,null,null,0,0,0]
[null,null,null,null,null,null,null,null,0,null,null,0,0,0]
[null,null,null,null,null,null,null,null,0,null,null,0,0,0]
[null,null,null,null,null,null,null,null,0,null,null,0,0,0]
[null,null,null,null,null,null,null,null,0,null,null,0,0,0]
[null,null,null,null,null,null,null,null,0,null,null,0,0,0]
[null,null,null,null,null,null,null,null,0,null,null,0,0,0]
[null,null,null,null,null,null,null,null,0,null,null,0,0,0]
[null,null,null,null,null,null,null,null,0,null,null,0,0,0]
[null,null,null,null,null,null,null,null,0,null,null,0,0,0]
[null,null,null,null,null,null,null,null,0,null,null,0,0,0]
[null,null,null,null,null,null,null,null,0,null,null,0,0,0]
[null,null,null,null,null,null,null,null,0,null,null,0,0,0]
[null,null,null,null,null,null,null,null,0,null,null,0,0,0]
[null,null,null,null,null,null,null,null,0,null,null,0,0,0]
[null,null,null,null,null,null,null,null,0,null,null,0,0,0]
[null,null,null,null,null,null,null,null,0,null,null,0,0,0]
[null,null,null,null,null,null,null,null,0,null,null,0,0,0]
[null,null,null,null,null,null,null,null,0,null,null,0,0,0]
[null,null,null,null,null,null,null,null,0,null,null,0,0,0]
[null,null,null,null,null,null,null,null,0,null,null,0,0,0]
[null,null,null,null,null,null,null,null,0,null,null,0,0,0]
[null,null,null,null,null,null,null,null,0,null,null,0,0,0]
[null,null,null,null,null,null,null,null,0,null,null,0,0,0]
[null,null,null,null,null,null,null,null,0,null,null,0,0,0]
[null,null,null,null,null,null,null,null,0,null,null,0,0,0]
[null,null,null,null,null,null,null,null,0,null,null,0,0,0]
[null,null,null,null,null,null,null,null,0,null,null,0,0,0]
[null,null,null,null,null,null,null,null,0,null,null,0,0,0]
[null,null,null,null,null,null,null,null,0,null,null,0,0,0]
[null,null,null,null,null,null,null,null,0,null,null,0,0,0]
[null,null,null,null,null,null,null,null,0,null,null,0,0,0]
[null,null,null,null,null,null,null,null,0,null,null,0,0,0]
[null,null,null,null,null,null,null,null,0,null,null,0,0,0]
[null,null,null,null,null,null,null,null,0,null,null,0,0,0]
[null,null,null,null,null,null,null,null,0,null,null,0,0,0]
[null,null,null,null,null,null,null,null,0,null,null,0,0,0]
[null,null,null,null,null,null,null,null,0,null,null,0,0,0]
[null,null,null,null,null,null,null,null,0,null,null,0,0,0]
[null,null,null,null,null,null,null,null,0,null,null,0,0,0]
[null,null,null,null,null,null,null,null,0,null,null,0,0,0]
[null,null,null,null,null,null,null,null,0,null,null,0,0,0]
[null,null,null,null,null,null,null,null,0,null,null,0,0,0]
[null,null,null,null,null,null,null,null,0,null,null,0,0,0]
[null,null,null,null,null,null,null,null,0,null,null,0,0,0]
[null,null,null,null,null,null,null,null,0,null,null,0,0,0]
[null,null,null,null,null,null,null,null,0,null,null,0,0,0]
[null,null,null,null,null,null,null,null,0,null,null,0,0,0]
[null,null,null,null,null,null,null,null,0,null,null,0,0,0]
[null,null,null,null,null,null,null,null,{"$f":"IF(F646=\"مصري \",G646,G646*H646)","v":0},null,null,{"$f":"IF(E646=\"DR\",I646,0)","v":0},{"$f":"IF(E646=\"CR\",I646,0)","v":0},{"$f":"M646-L646","v":0}]
[null,null,null,null,null,null,null,null,0,null,null,0,0,0]
[null,null,null,null,null,null,null,null,0,null,null,0,0,0]
[null,null,null,null,null,null,null,null,0,null,null,0,0,0]
[null,null,null,null,null,null,null,null,0,null,null,0,0,0]
[null,null,null,null,null,null,null,null,0,null,null,0,0,0]
[null,null,null,null,null,null,null,null,0,null,null,0,0,0]
[null,null,null,null,null,null,null,null,0,null,null,0,0,0]
[null,null,null,null,null,null,null,null,0,null,null,0,0,0]
[null,null,null,null,null,null,null,null,0,null,null,0,0,0]
[null,null,null,null,null,null,null,null,0,null,null,0,0,0]
[null,null,null,null,null,null,null,null,0,null,null,0,0,0]
[null,null,null,null,null,null,null,null,0,null,null,0,0,0]
[null,null,null,null,null,null,null,null,0,null,null,0,0,0]
[null,null,null,null,null,null,null,null,0,null,null,0,0,0]
[null,null,null,null,null,null,null,null,0,null,null,0,0,0]
[null,null,null,null,null,null,null,null,0,null,null,0,0,0]
[null,null,null,null,null,null,null,null,0,null,null,0,0,0]
[null,null,null,null,null,null,null,null,0,null,null,0,0,0]
[null,null,null,null,null,null,null,null,0,null,null,0,0,0]
[null,null,null,null,null,null,null,null,0,null,null,0,0,0]
[null,null,null,null,null,null,null,null,0,null,null,0,0,0]
[null,null,null,null,null,null,null,null,0,null,null,0,0,0]
[null,null,null,null,null,null,null,null,0,null,null,0,0,0]
[null,null,null,null,null,null,null,null,0,null,null,0,0,0]
[null,null,null,null,null,null,null,null,0,null,null,0,0,0]
[null,null,null,null,null,null,null,null,0,null,null,0,0,0]
[null,null,null,null,null,null,null,null,0,null,null,0,0,0]
[null,null,null,null,null,null,null,null,0,null,null,0,0,0]
[null,null,null,null,null,null,null,null,0,null,null,0,0,0]
[null,null,null,null,null,null,null,null,0,null,null,0,0,0]
[null,null,null,null,null,null,null,null,0,null,null,0,0,0]
[null,null,null,null,null,null,null,null,0,null,null,0,0,0]
[null,null,null,null,null,null,null,null,0,null,null,0,0,0]
[null,null,null,null,null,null,null,null,0,null,null,0,0,0]
[null,null,null,null,null,null,null,null,0,null,null,0,0,0]
[null,null,null,null,null,null,null,null,0,null,null,0,0,0]
[null,null,null,null,null,null,null,null,0,null,null,0,0,0]
[null,null,null,null,null,null,null,null,0,null,null,0,0,0]
[null,null,null,null,null,null,null,null,0,null,null,0,0,0]
[null,null,null,null,null,null,null,null,0,null,null,0,0,0]
[null,null,null,null,null,null,null,null,0,null,null,0,0,0]
[null,null,null,null,null,null,null,null,0,null,null,0,0,0]
[null,null,null,null,null,null,null,null,0,null,null,0,0,0]
[null,null,null,null,null,null,null,null,0,null,null,0,0,0]
[null,null,null,null,null,null,null,null,0,null,null,0,0,0]
[null,null,null,null,null,null,null,null,0,null,null,0,0,0]
[null,null,null,null,null,null,null,null,0,null,null,0,0,0]
[null,null,null,null,null,null,null,null,0,null,null,0,0,0]
[null,null,null,null,null,null,null,null,0,null,null,0,0,0]
[null,null,null,null,null,null,null,null,0,null,null,0,0,0]
[null,null,null,null,null,null,null,null,0,null,null,0,0,0]
[null,null,null,null,null,null,null,null,0,null,null,0,0,0]
[null,null,null,null,null,null,null,null,0,null,null,0,0,0]
[null,null,null,null,null,null,null,null,0,null,null,0,0,0]
[null,null,null,null,null,null,null,null,0,null,null,0,0,0]
[null,null,null,null,null,null,null,null,0,null,null,0,0,0]
[null,null,null,null,null,null,null,null,0,null,null,0,0,0]
[null,null,null,null,null,null,null,null,0,null,null,0,0,0]
[null,null,null,null,null,null,null,null,0,null,null,0,0,0]
[null,null,null,null,null,null,null,null,0,null,null,0,0,0]
[null,null,null,null,null,null,null,null,0,null,null,0,0,0]
[null,null,null,null,null,null,null,null,0,null,null,0,0,0]
[null,null,null,null,null,null,null,null,0,null,null,0,0,0]
[null,null,null,null,null,null,null,null,{"$f":"IF(F710=\"مصري \",G710,G710*H710)","v":0},null,null,{"$f":"IF(E710=\"DR\",I710,0)","v":0},{"$f":"IF(E710=\"CR\",I710,0)","v":0},{"$f":"M710-L710","v":0}]
[null,null,null,null,null,null,null,null,0,null,null,0,0,0]
[null,null,null,null,null,null,null,null,0,null,null,0,0,0]
[null,null,null,null,null,null,null,null,0,null,null,0,0,0]
[null,null,null,null,null,null,null,null,0,null,null,0,0,0]
[null,null,null,null,null,null,null,null,0,null,null,0,0,0]
[null,null,null,null,null,null,null,null,0,null,null,0,0,0]
[null,null,null,null,null,null,null,null,0,null,null,0,0,0]
[null,null,null,null,null,null,null,null,0,null,null,0,0,0]
[null,null,null,null,null,null,null,null,0,null,null,0,0,0]
[null,null,null,null,null,null,null,null,0,null,null,0,0,0]
[null,null,null,null,null,null,null,null,0,null,null,0,0,0]
[null,null,null,null,null,null,null,null,0,null,null,0,0,0]
[null,null,null,null,null,null,null,null,0,null,null,0,0,0]
[null,null,null,null,null,null,null,null,0,null,null,0,0,0]
[null,null,null,null,null,null,null,null,0,null,null,0,0,0]
[null,null,null,null,null,null,null,null,0,null,null,0,0,0]
[null,null,null,null,null,null,null,null,0,null,null,0,0,0]
[null,null,null,null,null,null,null,null,0,null,null,0,0,0]
[null,null,null,null,null,null,null,null,0,null,null,0,0,0]
[null,null,null,null,null,null,null,null,0,null,null,0,0,0]
[null,null,null,null,null,null,null,null,0,null,null,0,0,0]
[null,null,null,null,null,null,null,null,0,null,null,0,0,0]
[null,null,null,null,null,null,null,null,0,null,null,0,0,0]
[null,null,null,null,null,null,null,null,0,null,null,0,0,0]
[null,null,null,null,null,null,null,null,0,null,null,0,0,0]
[null,null,null,null,null,null,null,null,0,null,null,0,0,0]
[null,null,null,null,null,null,null,null,0,null,null,0,0,0]
[null,null,null,null,null,null,null,null,0,null,null,0,0,0]
[null,null,null,null,null,null,null,null,0,null,null,0,0,0]
[null,null,null,null,null,null,null,null,0,null,null,0,0,0]
[null,null,null,null,null,null,null,null,0,null,null,0,0,0]
[null,null,null,null,null,null,null,null,0,null,null,0,0,0]
[null,null,null,null,null,null,null,null,0,null,null,0,0,0]
[null,null,null,null,null,null,null,null,0,null,null,0,0,0]
[null,null,null,null,null,null,null,null,0,null,null,0,0,0]
[null,null,null,null,null,null,null,null,0,null,null,0,0,0]
[null,null,null,null,null,null,null,null,0,null,null,0,0,0]
[null,null,null,null,null,null,null,null,0,null,null,0,0,0]
[null,null,null,null,null,null,null,null,0,null,null,0,0,0]
[null,null,null,null,null,null,null,null,0,null,null,0,0,0]
[null,null,null,null,null,null,null,null,0,null,null,0,0,0]
[null,null,null,null,null,null,null,null,0,null,null,0,0,0]
[null,null,null,null,null,null,null,null,0,null,null,0,0,0]
[null,null,null,null,null,null,null,null,0,null,null,0,0,0]
[null,null,null,null,null,null,null,null,0,null,null,0,0,0]
[null,null,null,null,null,null,null,null,0,null,null,0,0,0]
[null,null,null,null,null,null,null,null,0,null,null,0,0,0]
[null,null,null,null,null,null,null,null,0,null,null,0,0,0]
[null,null,null,null,null,null,null,null,0,null,null,0,0,0]
[null,null,null,null,null,null,null,null,0,null,null,0,0,0]
[null,null,null,null,null,null,null,null,0,null,null,0,0,0]
[null,null,null,null,null,null,null,null,0,null,null,0,0,0]
[null,null,null,null,null,null,null,null,0,null,null,0,0,0]
[null,null,null,null,null,null,null,null,0,null,null,0,0,0]
[null,null,null,null,null,null,null,null,0,null,null,0,0,0]
[null,null,null,null,null,null,null,null,0,null,null,0,0,0]
[null,null,null,null,null,null,null,null,0,null,null,0,0,0]
[null,null,null,null,null,null,null,null,0,null,null,0,0,0]
[null,null,null,null,null,null,null,null,0,null,null,0,0,0]
[null,null,null,null,null,null,null,null,0,null,null,0,0,0]
[null,null,null,null,null,null,null,null,0,null,null,0,0,0]
[null,null,null,null,null,null,null,null,0,null,null,0,0,0]
[null,null,null,null,null,null,null,null,0,null,null,0,0,0]
[null,null,null,null,null,null,null,null,{"$f":"IF(F774=\"مصري \",G774,G774*H774)","v":0},null,null,{"$f":"IF(E774=\"DR\",I774,0)","v":0},{"$f":"IF(E774=\"CR\",I774,0)","v":0},{"$f":"M774-L774","v":0}]
[null,null,null,null,null,null,null,null,0,null,null,0,0,0]
[null,null,null,null,null,null,null,null,0,null,null,0,0,0]
[null,null,null,null,null,null,null,null,0,null,null,0,0,0]
[null,null,null,null,null,null,null,null,0,null,null,0,0,0]
[null,null,null,null,null,null,null,null,0,null,null,0,0,0]
[null,null,null,null,null,null,null,null,0,null,null,0,0,0]
[null,null,null,null,null,null,null,null,0,null,null,0,0,0]
[null,null,null,null,null,null,null,null,0,null,null,0,0,0]
[null,null,null,null,null,null,null,null,0,null,null,0,0,0]
[null,null,null,null,null,null,null,null,0,null,null,0,0,0]
[null,null,null,null,null,null,null,null,0,null,null,0,0,0]
[null,null,null,null,null,null,null,null,0,null,null,0,0,0]
[null,null,null,null,null,null,null,null,0,null,null,0,0,0]
[null,null,null,null,null,null,null,null,0,null,null,0,0,0]
[null,null,null,null,null,null,null,null,0,null,null,0,0,0]
[null,null,null,null,null,null,null,null,0,null,null,0,0,0]
[null,null,null,null,null,null,null,null,0,null,null,0,0,0]
[null,null,null,null,null,null,null,null,0,null,null,0,0,0]
[null,null,null,null,null,null,null,null,0,null,null,0,0,0]
[null,null,null,null,null,null,null,null,0,null,null,0,0,0]
[null,null,null,null,null,null,null,null,0,null,null,0,0,0]
[null,null,null,null,null,null,null,null,0,null,null,0,0,0]
[null,null,null,null,null,null,null,null,0,null,null,0,0,0]
[null,null,null,null,null,null,null,null,0,null,null,0,0,0]
[null,null,null,null,null,null,null,null,0,null,null,0,0,0]
[null,null,null,null,null,null,null,null,0,null,null,0,0,0]
[null,null,null,null,null,null,null,null,0,null,null,0,0,0]
[null,null,null,null,null,null,null,null,0,null,null,0,0,0]
[null,null,null,null,null,null,null,null,0,null,null,0,0,0]
[null,null,null,null,null,null,null,null,0,null,null,0,0,0]
[null,null,null,null,null,null,null,null,0,null,null,0,0,0]
[null,null,null,null,null,null,null,null,0,null,null,0,0,0]
[null,null,null,null,null,null,null,null,0,null,null,0,0,0]
[null,null,null,null,null,null,null,null,0,null,null,0,0,0]
[null,null,null,null,null,null,null,null,0,null,null,0,0,0]
[null,null,null,null,null,null,null,null,0,null,null,0,0,0]
[null,null,null,null,null,null,null,null,0,null,null,0,0,0]
[null,null,null,null,null,null,null,null,0,null,null,0,0,0]
[null,null,null,null,null,null,null,null,0,null,null,0,0,0]
[null,null,null,null,null,null,null,null,0,null,null,0,0,0]
[null,null,null,null,null,null,null,null,0,null,null,0,0,0]
[null,null,null,null,null,null,null,null,0,null,null,0,0,0]
[null,null,null,null,null,null,null,null,0,null,null,0,0,0]
[null,null,null,null,null,null,null,null,0,null,null,0,0,0]
[null,null,null,null,null,null,null,null,0,null,null,0,0,0]
[null,null,null,null,null,null,null,null,0,null,null,0,0,0]
[null,null,null,null,null,null,null,null,0,null,null,0,0,0]
[null,null,null,null,null,null,null,null,0,null,null,0,0,0]
[null,null,null,null,null,null,null,null,0,null,null,0,0,0]
[null,null,null,null,null,null,null,null,0,null,null,0,0,0]
[null,null,null,null,null,null,null,null,0,null,null,0,0,0]
[null,null,null,null,null,null,null,null,0,null,null,0,0,0]
[null,null,null,null,null,null,null,null,0,null,null,0,0,0]
[null,null,null,null,null,null,null,null,0,null,null,0,0,0]
[null,null,null,null,null,null,null,null,0,null,null,0,0,0]
[null,null,null,null,null,null,null,null,0,null,null,0,0,0]
[null,null,null,null,null,null,null,null,0,null,null,0,0,0]
[null,null,null,null,null,null,null,null,0,null,null,0,0,0]
[null,null,null,null,null,null,null,null,0,null,null,0,0,0]
[null,null,null,null,null,null,null,null,0,null,null,0,0,0]
[null,null,null,null,null,null,null,null,0,null,null,0,0,0]
[null,null,null,null,null,null,null,null,0,null,null,0,0,0]
[null,null,null,null,null,null,null,null,0,null,null,0,0,0]
[null,null,null,null,null,null,null,null,{"$f":"IF(F838=\"مصري \",G838,G838*H838)","v":0},null,null,{"$f":"IF(E838=\"DR\",I838,0)","v":0},{"$f":"IF(E838=\"CR\",I838,0)","v":0},{"$f":"M838-L838","v":0}]
[null,null,null,null,null,null,null,null,0,null,null,0,0,0]
[null,null,null,null,null,null,null,null,0,null,null,0,0,0]
[null,null,null,null,null,null,null,null,0,null,null,0,0,0]
[null,null,null,null,null,null,null,null,0,null,null,0,0,0]
[null,null,null,null,null,null,null,null,0,null,null,0,0,0]
[null,null,null,null,null,null,null,null,0,null,null,0,0,0]
[null,null,null,null,null,null,null,null,0,null,null,0,0,0]
[null,null,null,null,null,null,null,null,0,null,null,0,0,0]
[null,null,null,null,null,null,null,null,0,null,null,0,0,0]
[null,null,null,null,null,null,null,null,0,null,null,0,0,0]
[null,null,null,null,null,null,null,null,0,null,null,0,0,0]
[null,null,null,null,null,null,null,null,0,null,null,0,0,0]
[null,null,null,null,null,null,null,null,0,null,null,0,0,0]
[null,null,null,null,null,null,null,null,0,null,null,0,0,0]
[null,null,null,null,null,null,null,null,0,null,null,0,0,0]
[null,null,null,null,null,null,null,null,0,null,null,0,0,0]
[null,null,null,null,null,null,null,null,0,null,null,0,0,0]
[null,null,null,null,null,null,null,null,0,null,null,0,0,0]
[null,null,null,null,null,null,null,null,0,null,null,0,0,0]
[null,null,null,null,null,null,null,null,0,null,null,0,0,0]
[null,null,null,null,null,null,null,null,0,null,null,0,0,0]
[null,null,null,null,null,null,null,null,0,null,null,0,0,0]
[null,null,null,null,null,null,null,null,0,null,null,0,0,0]
[null,null,null,null,null,null,null,null,0,null,null,0,0,0]
[null,null,null,null,null,null,null,null,0,null,null,0,0,0]
[null,null,null,null,null,null,null,null,0,null,null,0,0,0]
[null,null,null,null,null,null,null,null,0,null,null,0,0,0]
[null,null,null,null,null,null,null,null,0,null,null,0,0,0]
[null,null,null,null,null,null,null,null,0,null,null,0,0,0]
[null,null,null,null,null,null,null,null,0,null,null,0,0,0]
[null,null,null,null,null,null,null,null,0,null,null,0,0,0]
[null,null,null,null,null,null,null,null,0,null,null,0,0,0]
[null,null,null,null,null,null,null,null,0,null,null,0,0,0]
[null,null,null,null,null,null,null,null,0,null,null,0,0,0]
[null,null,null,null,null,null,null,null,0,null,null,0,0,0]
[null,null,null,null,null,null,null,null,0,null,null,0,0,0]
[null,null,null,null,null,null,null,null,0,null,null,0,0,0]
[null,null,null,null,null,null,null,null,0,null,null,0,0,0]
[null,null,null,null,null,null,null,null,0,null,null,0,0,0]
[null,null,null,null,null,null,null,null,0,null,null,0,0,0]
[null,null,null,null,null,null,null,null,0,null,null,0,0,0]
[null,null,null,null,null,null,null,null,0,null,null,0,0,0]
[null,null,null,null,null,null,null,null,0,null,null,0,0,0]
[null,null,null,null,null,null,null,null,0,null,null,0,0,0]
[null,null,null,null,null,null,null,null,0,null,null,0,0,0]
[null,null,null,null,null,null,null,null,0,null,null,0,0,0]
[null,null,null,null,null,null,null,null,0,null,null,0,0,0]
[null,null,null,null,null,null,null,null,0,null,null,0,0,0]
[null,null,null,null,null,null,null,null,0,null,null,0,0,0]
[null,null,null,null,null,null,null,null,0,null,null,0,0,0]
[null,null,null,null,null,null,null,null,0,null,null,0,0,0]
[null,null,null,null,null,null,null,null,0,null,null,0,0,0]
[null,null,null,null,null,null,null,null,0,null,null,0,0,0]
[null,null,null,null,null,null,null,null,0,null,null,0,0,0]
[null,null,null,null,null,null,null,null,0,null,null,0,0,0]
[null,null,null,null,null,null,null,null,0,null,null,0,0,0]
[null,null,null,null,null,null,null,null,0,null,null,0,0,0]
[null,null,null,null,null,null,null,null,0,null,null,0,0,0]
[null,null,null,null,null,null,null,null,0,null,null,0,0,0]
[null,null,null,null,null,null,null,null,0,null,null,0,0,0]
[null,null,null,null,null,null,null,null,0,null,null,0,0,0]
[null,null,null,null,null,null,null,null,0,null,null,0,0,0]
[null,null,null,null,null,null,null,null,0,null,null,0,0,0]
[null,null,null,null,null,null,null,null,{"$f":"IF(F902=\"مصري \",G902,G902*H902)","v":0},null,null,{"$f":"IF(E902=\"DR\",I902,0)","v":0},{"$f":"IF(E902=\"CR\",I902,0)","v":0},{"$f":"M902-L902","v":0}]
[null,null,null,null,null,null,null,null,0,null,null,0,0,0]
[null,null,null,null,null,null,null,null,0,null,null,0,0,0]
[null,null,null,null,null,null,null,null,0,null,null,0,0,0]
[null,null,null,null,null,null,null,null,0,null,null,0,0,0]
[null,null,null,null,null,null,null,null,0,null,null,0,0,0]
[null,null,null,null,null,null,null,null,0,null,null,0,0,0]
[null,null,null,null,null,null,null,null,0,null,null,0,0,0]
[null,null,null,null,null,null,null,null,0,null,null,0,0,0]
[null,null,null,null,null,null,null,null,0,null,null,0,0,0]
[null,null,null,null,null,null,null,null,0,null,null,0,0,0]
[null,null,null,null,null,null,null,null,0,null,null,0,0,0]
[null,null,null,null,null,null,null,null,0,null,null,0,0,0]
[null,null,null,null,null,null,null,null,0,null,null,0,0,0]
[null,null,null,null,null,null,null,null,0,null,null,0,0,0]
[null,null,null,null,null,null,null,null,0,null,null,0,0,0]
[null,null,null,null,null,null,null,null,0,null,null,0,0,0]
[null,null,null,null,null,null,null,null,0,null,null,0,0,0]
[null,null,null,null,null,null,null,null,0,null,null,0,0,0]
[null,null,null,null,null,null,null,null,0,null,null,0,0,0]
[null,null,null,null,null,null,null,null,0,null,null,0,0,0]
[null,null,null,null,null,null,null,null,0,null,null,0,0,0]
[null,null,null,null,null,null,null,null,0,null,null,0,0,0]
[null,null,null,null,null,null,null,null,0,null,null,0,0,0]
[null,null,null,null,null,null,null,null,0,null,null,0,0,0]
[null,null,null,null,null,null,null,null,0,null,null,0,0,0]
[null,null,null,null,null,null,null,null,0,null,null,0,0,0]
[null,null,null,null,null,null,null,null,0,null,null,0,0,0]
[null,null,null,null,null,null,null,null,0,null,null,0,0,0]
[null,null,null,null,null,null,null,null,0,null,null,0,0,0]
[null,null,null,null,null,null,null,null,0,null,null,0,0,0]
[null,null,null,null,null,null,null,null,0,null,null,0,0,0]
[null,null,null,null,null,null,null,null,0,null,null,0,0,0]
[null,null,null,null,null,null,null,null,0,null,null,0,0,0]
[null,null,null,null,null,null,null,null,0,null,null,0,0,0]
[null,null,null,null,null,null,null,null,0,null,null,0,0,0]
[null,null,null,null,null,null,null,null,0,null,null,0,0,0]
[null,null,null,null,null,null,null,null,0,null,null,0,0,0]
[null,null,null,null,null,null,null,null,0,null,null,0,0,0]
[null,null,null,null,null,null,null,null,0,null,null,0,0,0]
[null,null,null,null,null,null,null,null,0,null,null,0,0,0]
[null,null,null,null,null,null,null,null,0,null,null,0,0,0]
[null,null,null,null,null,null,null,null,0,null,null,0,0,0]
[null,null,null,null,null,null,null,null,0,null,null,0,0,0]
[null,null,null,null,null,null,null,null,0,null,null,0,0,0]
[null,null,null,null,null,null,null,null,0,null,null,0,0,0]
[null,null,null,null,null,null,null,null,0,null,null,0,0,0]
[null,null,null,null,null,null,null,null,0,null,null,0,0,0]
[null,null,null,null,null,null,null,null,0,null,null,0,0,0]
[null,null,null,null,null,null,null,null,0,null,null,0,0,0]
[null,null,null,null,null,null,null,null,0,null,null,0,0,0]
[null,null,null,null,null,null,null,null,0,null,null,0,0,0]
[null,null,null,null,null,null,null,null,0,null,null,0,0,0]
[null,null,null,null,null,null,null,null,0,null,null,0,0,0]
[null,null,null,null,null,null,null,null,0,null,null,0,0,0]
[null,null,null,null,null,null,null,null,0,null,null,0,0,0]
[null,null,null,null,null,null,null,null,0,null,null,0,0,0]
[null,null,null,null,null,null,null,null,0,null,null,0,0,0]
[null,null,null,null,null,null,null,null,0,null,null,0,0,0]
[null,null,null,null,null,null,null,null,0,null,null,0,0,0]
[null,null,null,null,null,null,null,null,0,null,null,0,0,0]
[null,null,null,null,null,null,null,null,0,null,null,0,0,0]
[null,null,null,null,null,null,null,null,0,null,null,0,0,0]
[null,null,null,null,null,null,null,null,0,null,null,0,0,0]
[null,null,null,null,null,null,null,null,{"$f":"IF(F966=\"مصري \",G966,G966*H966)","v":0},null,null,{"$f":"IF(E966=\"DR\",I966,0)","v":0},{"$f":"IF(E966=\"CR\",I966,0)","v":0},{"$f":"M966-L966","v":0}]
[null,null,null,null,null,null,null,null,0,null,null,0,0,0]
[null,null,null,null,null,null,null,null,0,null,null,0,0,0]
[null,null,null,null,null,null,null,null,0,null,null,0,0,0]
[null,null,null,null,null,null,null,null,0,null,null,0,0,0]
[null,null,null,null,null,null,null,null,0,null,null,0,0,0]
[null,null,null,null,null,null,null,null,0,null,null,0,0,0]
[null,null,null,null,null,null,null,null,0,null,null,0,0,0]
[null,null,null,null,null,null,null,null,0,null,null,0,0,0]
[null,null,null,null,null,null,null,null,0,null,null,0,0,0]
[null,null,null,null,null,null,null,null,0,null,null,0,0,0]
[null,null,null,null,null,null,null,null,0,null,null,0,0,0]
[null,null,null,null,null,null,null,null,0,null,null,0,0,0]
[null,null,null,null,null,null,null,null,0,null,null,0,0,0]
[null,null,null,null,null,null,null,null,0,null,null,0,0,0]
[null,null,null,null,null,null,null,null,0,null,null,0,0,0]
[null,null,null,null,null,null,null,null,0,null,null,0,0,0]
[null,null,null,null,null,null,null,null,0,null,null,0,0,0]
[null,null,null,null,null,null,null,null,0,null,null,0,0,0]
[null,null,null,null,null,null,null,null,0,null,null,0,0,0]
[null,null,null,null,null,null,null,null,0,null,null,0,0,0]
[null,null,null,null,null,null,null,null,0,null,null,0,0,0]
[null,null,null,null,null,null,null,null,0,null,null,0,0,0]
[null,null,null,null,null,null,null,null,0,null,null,0,0,0]
[null,null,null,null,null,null,null,null,0,null,null,0,0,0]
[null,null,null,null,null,null,null,null,0,null,null,0,0,0]
[null,null,null,null,null,null,null,null,0,null,null,0,0,0]
[null,null,null,null,null,null,null,null,0,null,null,0,0,0]
[null,null,null,null,null,null,null,null,0,null,null,0,0,0]
[null,null,null,null,null,null,null,null,0,null,null,0,0,0]
[null,null,null,null,null,null,null,null,0,null,null,0,0,0]
[null,null,null,null,null,null,null,null,0,null,null,0,0,0]
[null,null,null,null,null,null,null,null,0,null,null,0,0,0]
[null,null,null,null,null,null,null,null,0,null,null,0,0,0]
[null,null,null,null,null,null,null,null,0,null,null,0,0,0]
[null,null,null,null,null,null,null,null,0,null,null,0,0,0]
[null,null,null,null,null,null,null,null,0,null,null,0,0,0]
[null,null,null,null,null,null,null,null,null,null,null,{"$f":"SUM(L5:L1002)","v":0},{"$f":"SUM(M5:M1002)","v":0},0]

{"sheet":"QNB","index":2,"n_rows":1003,"n_cols":33,"rows_kept":1003,"cut":false,"hidden":false,"merged":[[1,9,2,12],[1,0,2,1],[1,2,2,2],[1,5,2,6],[1,7,2,7],[1,8,2,8],[1,3,2,4]]}
[]
["تاريخ اليوم",null,{"$f":"TODAY()","v":"2020-07-19"},"بنك قطر الوطني",null,"الرصيد حتى",null,{"$f":"VLOOKUP(1000000000,B5:B1002,1)","v":{"$error":"#N/A"}},{"$f":"N1003","v":0},{"$f":"CurrText(I2)","v":"صفر جنية"}]
[]
["م","التاريخ ","طريقة التحصيل ","طريقة السحب","نوع الحركة ","نوع الحساب ","المبلغ","سعر الصرف","القيمة بالجنية المصري","رقم الوحده ","البيان ","مدين ","دائن ","الرصيد",null,null,null,null,null,null,null,null,null,null,null,null,null,null,"نوع الحساب","نوع الحركة ",null,"طريقة التحصيل","طريقة السحب"]
[null,null,null,null,null,null,null,null,{"$f":"IF(F5=\"مصري \",G5,G5*H5)","v":0},null,null,{"$f":"IF(E5=\"DR\",I5,0)","v":0},{"$f":"IF(E5=\"CR\",I5,0)","v":0},{"$f":"M5-L5","v":0},null,null,null,null,null,null,null,null,null,null,null,null,null,"ايداع ","مصري ","CR",null,"تحويل"]
[null,null,null,null,null,null,null,null,{"$f":"IF(F6=\"مصري \",G6,G6*H6)","v":0},null,null,{"$f":"IF(E6=\"DR\",I6,0)","v":0},{"$f":"IF(E6=\"CR\",I6,0)","v":0},{"$f":"M6-L6","v":0},null,null,null,null,null,null,null,null,null,null,null,null,null,null,"دولار ","DR",null,"تحويل داخلي"]
[null,null,null,null,null,null,null,null,0,null,null,0,0,0,null,null,null,null,null,null,null,null,null,null,null,null,null,null,"استرليني",null,null,"تحويل للحساب"]
[null,null,null,null,null,null,null,null,0,null,null,0,0,0,null,null,null,null,null,null,null,null,null,null,null,null,null,null,null,null,null,"شيك "]
[null,null,null,null,null,null,null,null,0,null,null,0,0,0,null,null,null,null,null,null,null,null,null,null,null,null,null,null,null,null,null,"فيزا"]
[null,null,null,null,null,null,null,null,0,null,null,0,0,0,null,null,null,null,null,null,null,null,null,null,null,null,null,null,null,null,null,"ايداع نقدي"]
[null,null,null,null,null,null,null,null,0,null,null,0,0,0]
[null,null,null,null,null,null,null,null,0,null,null,0,0,0]
[null,null,null,null,null,null,null,null,0,null,null,0,0,0]
[null,null,null,null,null,null,null,null,0,null,null,0,0,0]
[null,null,null,null,null,null,null,null,0,null,null,0,0,0]
[null,null,null,null,null,null,null,null,0,null,null,0,0,0]
[null,null,null,null,null,null,null,null,0,null,null,0,0,0]
[null,null,null,null,null,null,null,null,0,null,null,0,0,0]
[null,null,null,null,null,null,null,null,0,null,null,0,0,0]
[null,null,null,null,null,null,null,null,0,null,null,0,0,0]
[null,null,null,null,null,null,null,null,0,null,null,0,0,0]
[null,null,null,null,null,null,null,null,0,null,null,0,0,0]
[null,null,null,null,null,null,null,null,0,null,null,0,0,0]
[null,null,null,null,null,null,null,null,0,null,null,0,0,0]
[null,null,null,null,null,null,null,null,0,null,null,0,0,0]
[null,null,null,null,null,null,null,null,0,null,null,0,0,0]
[null,null,null,null,null,null,null,null,0,null,null,0,0,0]
[null,null,null,null,null,null,null,null,0,null,null,0,0,0]
[null,null,null,null,null,null,null,null,0,null,null,0,0,0]
[null,null,null,null,null,null,null,null,0,null,null,0,0,0]
[null,null,null,null,null,null,null,null,0,null,null,0,0,0]
[null,null,null,null,null,null,null,null,0,null,null,0,0,0]
[null,null,null,null,null,null,null,null,0,null,null,0,0,0]
[null,null,null,null,null,null,null,null,0,null,null,0,0,0]
[null,null,null,null,null,null,null,null,0,null,null,0,0,0]
[null,null,null,null,null,null,null,null,0,null,null,0,0,0]
[null,null,null,null,null,null,null,null,0,null,null,0,0,0]
[null,null,null,null,null,null,null,null,0,null,null,0,0,0]
[null,null,null,null,null,null,null,null,0,null,null,0,0,0]
[null,null,null,null,null,null,null,null,0,null,null,0,0,0]
[null,null,null,null,null,null,null,null,0,null,null,0,0,0]
[null,null,null,null,null,null,null,null,0,null,null,0,0,0]
[null,null,null,null,null,null,null,null,0,null,null,0,0,0]
[null,null,null,null,null,null,null,null,0,null,null,0,0,0]
[null,null,null,null,null,null,null,null,0,null,null,0,0,0]
[null,null,null,null,null,null,null,null,0,null,null,0,0,0]
[null,null,null,null,null,null,null,null,0,null,null,0,0,0]
[null,null,null,null,null,null,null,null,0,null,null,0,0,0]
[null,null,null,null,null,null,null,null,0,null,null,0,0,0]
[null,null,null,null,null,null,null,null,0,null,null,0,0,0]
[null,null,null,null,null,null,null,null,0,null,null,0,0,0]
[null,null,null,null,null,null,null,null,0,null,null,0,0,0]
[null,null,null,null,null,null,null,null,0,null,null,0,0,0]
[null,null,null,null,null,null,null,null,0,null,null,0,0,0]
[null,null,null,null,null,null,null,null,0,null,null,0,0,0]
[null,null,null,null,null,null,null,null,0,null,null,0,0,0]
[null,null,null,null,null,null,null,null,0,null,null,0,0,0]
[null,null,null,null,null,null,null,null,0,null,null,0,0,0]
[null,null,null,null,null,null,null,null,0,null,null,0,0,0]
[null,null,null,null,null,null,null,null,0,null,null,0,0,0]
[null,null,null,null,null,null,null,null,0,null,null,0,0,0]
[null,null,null,null,null,null,null,null,0,null,null,0,0,0]
[null,null,null,null,null,null,null,null,0,null,null,0,0,0]
[null,null,null,null,null,null,null,null,0,null,null,0,0,0]
[null,null,null,null,null,null,null,null,0,null,null,0,0,0]
[null,null,null,null,null,null,null,null,0,null,null,0,0,0]
[null,null,null,null,null,null,null,null,0,null,null,0,0,0]
[null,null,null,null,null,null,null,null,0,null,null,0,0,0]
[null,null,null,null,null,null,null,null,0,null,null,0,0,0]
[null,null,null,null,null,null,null,null,{"$f":"IF(F70=\"مصري \",G70,G70*H70)","v":0},null,null,{"$f":"IF(E70=\"DR\",I70,0)","v":0},{"$f":"IF(E70=\"CR\",I70,0)","v":0},{"$f":"M70-L70","v":0}]
[null,null,null,null,null,null,null,null,0,null,null,0,0,0]
[null,null,null,null,null,null,null,null,0,null,null,0,0,0]
[null,null,null,null,null,null,null,null,0,null,null,0,0,0]
[null,null,null,null,null,null,null,null,0,null,null,0,0,0]
[null,null,null,null,null,null,null,null,0,null,null,0,0,0]
[null,null,null,null,null,null,null,null,0,null,null,0,0,0]
[null,null,null,null,null,null,null,null,0,null,null,0,0,0]
[null,null,null,null,null,null,null,null,0,null,null,0,0,0]
[null,null,null,null,null,null,null,null,0,null,null,0,0,0]
[null,null,null,null,null,null,null,null,0,null,null,0,0,0]
[null,null,null,null,null,null,null,null,0,null,null,0,0,0]
[null,null,null,null,null,null,null,null,0,null,null,0,0,0]
[null,null,null,null,null,null,null,null,0,null,null,0,0,0]
[null,null,null,null,null,null,null,null,0,null,null,0,0,0]
[null,null,null,null,null,null,null,null,0,null,null,0,0,0]
[null,null,null,null,null,null,null,null,0,null,null,0,0,0]
[null,null,null,null,null,null,null,null,0,null,null,0,0,0]
[null,null,null,null,null,null,null,null,0,null,null,0,0,0]
[null,null,null,null,null,null,null,null,0,null,null,0,0,0]
[null,null,null,null,null,null,null,null,0,null,null,0,0,0]
[null,null,null,null,null,null,null,null,0,null,null,0,0,0]
[null,null,null,null,null,null,null,null,0,null,null,0,0,0]
[null,null,null,null,null,null,null,null,0,null,null,0,0,0]
[null,null,null,null,null,null,null,null,0,null,null,0,0,0]
[null,null,null,null,null,null,null,null,0,null,null,0,0,0]
[null,null,null,null,null,null,null,null,0,null,null,0,0,0]
[null,null,null,null,null,null,null,null,0,null,null,0,0,0]
[null,null,null,null,null,null,null,null,0,null,null,0,0,0]
[null,null,null,null,null,null,null,null,0,null,null,0,0,0]
[null,null,null,null,null,null,null,null,0,null,null,0,0,0]
[null,null,null,null,null,null,null,null,0,null,null,0,0,0]
[null,null,null,null,null,null,null,null,0,null,null,0,0,0]
[null,null,null,null,null,null,null,null,0,null,null,0,0,0]
[null,null,null,null,null,null,null,null,0,null,null,0,0,0]
[null,null,null,null,null,null,null,null,0,null,null,0,0,0]
[null,null,null,null,null,null,null,null,0,null,null,0,0,0]
[null,null,null,null,null,null,null,null,0,null,null,0,0,0]
[null,null,null,null,null,null,null,null,0,null,null,0,0,0]
[null,null,null,null,null,null,null,null,0,null,null,0,0,0]
[null,null,null,null,null,null,null,null,0,null,null,0,0,0]
[null,null,null,null,null,null,null,null,0,null,null,0,0,0]
[null,null,null,null,null,null,null,null,0,null,null,0,0,0]
[null,null,null,null,null,null,null,null,0,null,null,0,0,0]
[null,null,null,null,null,null,null,null,0,null,null,0,0,0]
[null,null,null,null,null,null,null,null,0,null,null,0,0,0]
[null,null,null,null,null,null,null,null,0,null,null,0,0,0]
[null,null,null,null,null,null,null,null,0,null,null,0,0,0]
[null,null,null,null,null,null,null,null,0,null,null,0,0,0]
[null,null,null,null,null,null,null,null,0,null,null,0,0,0]
[null,null,null,null,null,null,null,null,0,null,null,0,0,0]
[null,null,null,null,null,null,null,null,0,null,null,0,0,0]
[null,null,null,null,null,null,null,null,0,null,null,0,0,0]
[null,null,null,null,null,null,null,null,0,null,null,0,0,0]
[null,null,null,null,null,null,null,null,0,null,null,0,0,0]
[null,null,null,null,null,null,null,null,0,null,null,0,0,0]
[null,null,null,null,null,null,null,null,0,null,null,0,0,0]
[null,null,null,null,null,null,null,null,0,null,null,0,0,0]
[null,null,null,null,null,null,null,null,0,null,null,0,0,0]
[null,null,null,null,null,null,null,null,0,null,null,0,0,0]
[null,null,null,null,null,null,null,null,0,null,null,0,0,0]
[null,null,null,null,null,null,null,null,0,null,null,0,0,0]
[null,null,null,null,null,null,null,null,0,null,null,0,0,0]
[null,null,null,null,null,null,null,null,0,null,null,0,0,0]
[null,null,null,null,null,null,null,null,{"$f":"IF(F134=\"مصري \",G134,G134*H134)","v":0},null,null,{"$f":"IF(E134=\"DR\",I134,0)","v":0},{"$f":"IF(E134=\"CR\",I134,0)","v":0},{"$f":"M134-L134","v":0}]
[null,null,null,null,null,null,null,null,0,null,null,0,0,0]
[null,null,null,null,null,null,null,null,0,null,null,0,0,0]
[null,null,null,null,null,null,null,null,0,null,null,0,0,0]
[null,null,null,null,null,null,null,null,0,null,null,0,0,0]
[null,null,null,null,null,null,null,null,0,null,null,0,0,0]
[null,null,null,null,null,null,null,null,0,null,null,0,0,0]
[null,null,null,null,null,null,null,null,0,null,null,0,0,0]
[null,null,null,null,null,null,null,null,0,null,null,0,0,0]
[null,null,null,null,null,null,null,null,0,null,null,0,0,0]
[null,null,null,null,null,null,null,null,0,null,null,0,0,0]
[null,null,null,null,null,null,null,null,0,null,null,0,0,0]
[null,null,null,null,null,null,null,null,0,null,null,0,0,0]
[null,null,null,null,null,null,null,null,0,null,null,0,0,0]
[null,null,null,null,null,null,null,null,0,null,null,0,0,0]
[null,null,null,null,null,null,null,null,0,null,null,0,0,0]
[null,null,null,null,null,null,null,null,0,null,null,0,0,0]
[null,null,null,null,null,null,null,null,0,null,null,0,0,0]
[null,null,null,null,null,null,null,null,0,null,null,0,0,0]
[null,null,null,null,null,null,null,null,0,null,null,0,0,0]
[null,null,null,null,null,null,null,null,0,null,null,0,0,0]
[null,null,null,null,null,null,null,null,0,null,null,0,0,0]
[null,null,null,null,null,null,null,null,0,null,null,0,0,0]
[null,null,null,null,null,null,null,null,0,null,null,0,0,0]
[null,null,null,null,null,null,null,null,0,null,null,0,0,0]
[null,null,null,null,null,null,null,null,0,null,null,0,0,0]
[null,null,null,null,null,null,null,null,0,null,null,0,0,0]
[null,null,null,null,null,null,null,null,0,null,null,0,0,0]
[null,null,null,null,null,null,null,null,0,null,null,0,0,0]
[null,null,null,null,null,null,null,null,0,null,null,0,0,0]
[null,null,null,null,null,null,null,null,0,null,null,0,0,0]
[null,null,null,null,null,null,null,null,0,null,null,0,0,0]
[null,null,null,null,null,null,null,null,0,null,null,0,0,0]
[null,null,null,null,null,null,null,null,0,null,null,0,0,0]
[null,null,null,null,null,null,null,null,0,null,null,0,0,0]
[null,null,null,null,null,null,null,null,0,null,null,0,0,0]
[null,null,null,null,null,null,null,null,0,null,null,0,0,0]
[null,null,null,null,null,null,null,null,0,null,null,0,0,0]
[null,null,null,null,null,null,null,null,0,null,null,0,0,0]
[null,null,null,null,null,null,null,null,0,null,null,0,0,0]
[null,null,null,null,null,null,null,null,0,null,null,0,0,0]
[null,null,null,null,null,null,null,null,0,null,null,0,0,0]
[null,null,null,null,null,null,null,null,0,null,null,0,0,0]
[null,null,null,null,null,null,null,null,0,null,null,0,0,0]
[null,null,null,null,null,null,null,null,0,null,null,0,0,0]
[null,null,null,null,null,null,null,null,0,null,null,0,0,0]
[null,null,null,null,null,null,null,null,0,null,null,0,0,0]
[null,null,null,null,null,null,null,null,0,null,null,0,0,0]
[null,null,null,null,null,null,null,null,0,null,null,0,0,0]
[null,null,null,null,null,null,null,null,0,null,null,0,0,0]
[null,null,null,null,null,null,null,null,0,null,null,0,0,0]
[null,null,null,null,null,null,null,null,0,null,null,0,0,0]
[null,null,null,null,null,null,null,null,0,null,null,0,0,0]
[null,null,null,null,null,null,null,null,0,null,null,0,0,0]
[null,null,null,null,null,null,null,null,0,null,null,0,0,0]
[null,null,null,null,null,null,null,null,0,null,null,0,0,0]
[null,null,null,null,null,null,null,null,0,null,null,0,0,0]
[null,null,null,null,null,null,null,null,0,null,null,0,0,0]
[null,null,null,null,null,null,null,null,0,null,null,0,0,0]
[null,null,null,null,null,null,null,null,0,null,null,0,0,0]
[null,null,null,null,null,null,null,null,0,null,null,0,0,0]
[null,null,null,null,null,null,null,null,0,null,null,0,0,0]
[null,null,null,null,null,null,null,null,0,null,null,0,0,0]
[null,null,null,null,null,null,null,null,0,null,null,0,0,0]
[null,null,null,null,null,null,null,null,{"$f":"IF(F198=\"مصري \",G198,G198*H198)","v":0},null,null,{"$f":"IF(E198=\"DR\",I198,0)","v":0},{"$f":"IF(E198=\"CR\",I198,0)","v":0},{"$f":"M198-L198","v":0}]
[null,null,null,null,null,null,null,null,0,null,null,0,0,0]
[null,null,null,null,null,null,null,null,0,null,null,0,0,0]
[null,null,null,null,null,null,null,null,0,null,null,0,0,0]
[null,null,null,null,null,null,null,null,0,null,null,0,0,0]
[null,null,null,null,null,null,null,null,0,null,null,0,0,0]
[null,null,null,null,null,null,null,null,0,null,null,0,0,0]
[null,null,null,null,null,null,null,null,0,null,null,0,0,0]
[null,null,null,null,null,null,null,null,0,null,null,0,0,0]
[null,null,null,null,null,null,null,null,0,null,null,0,0,0]
[null,null,null,null,null,null,null,null,0,null,null,0,0,0]
[null,null,null,null,null,null,null,null,0,null,null,0,0,0]
[null,null,null,null,null,null,null,null,0,null,null,0,0,0]
[null,null,null,null,null,null,null,null,0,null,null,0,0,0]
[null,null,null,null,null,null,null,null,0,null,null,0,0,0]
[null,null,null,null,null,null,null,null,0,null,null,0,0,0]
[null,null,null,null,null,null,null,null,0,null,null,0,0,0]
[null,null,null,null,null,null,null,null,0,null,null,0,0,0]
[null,null,null,null,null,null,null,null,0,null,null,0,0,0]
[null,null,null,null,null,null,null,null,0,null,null,0,0,0]
[null,null,null,null,null,null,null,null,0,null,null,0,0,0]
[null,null,null,null,null,null,null,null,0,null,null,0,0,0]
[null,null,null,null,null,null,null,null,0,null,null,0,0,0]
[null,null,null,null,null,null,null,null,0,null,null,0,0,0]
[null,null,null,null,null,null,null,null,0,null,null,0,0,0]
[null,null,null,null,null,null,null,null,0,null,null,0,0,0]
[null,null,null,null,null,null,null,null,0,null,null,0,0,0]
[null,null,null,null,null,null,null,null,0,null,null,0,0,0]
[null,null,null,null,null,null,null,null,0,null,null,0,0,0]
[null,null,null,null,null,null,null,null,0,null,null,0,0,0]
[null,null,null,null,null,null,null,null,0,null,null,0,0,0]
[null,null,null,null,null,null,null,null,0,null,null,0,0,0]
[null,null,null,null,null,null,null,null,0,null,null,0,0,0]
[null,null,null,null,null,null,null,null,0,null,null,0,0,0]
[null,null,null,null,null,null,null,null,0,null,null,0,0,0]
[null,null,null,null,null,null,null,null,0,null,null,0,0,0]
[null,null,null,null,null,null,null,null,0,null,null,0,0,0]
[null,null,null,null,null,null,null,null,0,null,null,0,0,0]
[null,null,null,null,null,null,null,null,0,null,null,0,0,0]
[null,null,null,null,null,null,null,null,0,null,null,0,0,0]
[null,null,null,null,null,null,null,null,0,null,null,0,0,0]
[null,null,null,null,null,null,null,null,0,null,null,0,0,0]
[null,null,null,null,null,null,null,null,0,null,null,0,0,0]
[null,null,null,null,null,null,null,null,0,null,null,0,0,0]
[null,null,null,null,null,null,null,null,0,null,null,0,0,0]
[null,null,null,null,null,null,null,null,0,null,null,0,0,0]
[null,null,null,null,null,null,null,null,0,null,null,0,0,0]
[null,null,null,null,null,null,null,null,0,null,null,0,0,0]
[null,null,null,null,null,null,null,null,0,null,null,0,0,0]
[null,null,null,null,null,null,null,null,0,null,null,0,0,0]
[null,null,null,null,null,null,null,null,0,null,null,0,0,0]
[null,null,null,null,null,null,null,null,0,null,null,0,0,0]
[null,null,null,null,null,null,null,null,0,null,null,0,0,0]
[null,null,null,null,null,null,null,null,0,null,null,0,0,0]
[null,null,null,null,null,null,null,null,0,null,null,0,0,0]
[null,null,null,null,null,null,null,null,0,null,null,0,0,0]
[null,null,null,null,null,null,null,null,0,null,null,0,0,0]
[null,null,null,null,null,null,null,null,0,null,null,0,0,0]
[null,null,null,null,null,null,null,null,0,null,null,0,0,0]
[null,null,null,null,null,null,null,null,0,null,null,0,0,0]
[null,null,null,null,null,null,null,null,0,null,null,0,0,0]
[null,null,null,null,null,null,null,null,0,null,null,0,0,0]
[null,null,null,null,null,null,null,null,0,null,null,0,0,0]
[null,null,null,null,null,null,null,null,0,null,null,0,0,0]
[null,null,null,null,null,null,null,null,{"$f":"IF(F262=\"مصري \",G262,G262*H262)","v":0},null,null,{"$f":"IF(E262=\"DR\",I262,0)","v":0},{"$f":"IF(E262=\"CR\",I262,0)","v":0},{"$f":"M262-L262","v":0}]
[null,null,null,null,null,null,null,null,0,null,null,0,0,0]
[null,null,null,null,null,null,null,null,0,null,null,0,0,0]
[null,null,null,null,null,null,null,null,0,null,null,0,0,0]
[null,null,null,null,null,null,null,null,0,null,null,0,0,0]
[null,null,null,null,null,null,null,null,0,null,null,0,0,0]
[null,null,null,null,null,null,null,null,0,null,null,0,0,0]
[null,null,null,null,null,null,null,null,0,null,null,0,0,0]
[null,null,null,null,null,null,null,null,0,null,null,0,0,0]
[null,null,null,null,null,null,null,null,0,null,null,0,0,0]
[null,null,null,null,null,null,null,null,0,null,null,0,0,0]
[null,null,null,null,null,null,null,null,0,null,null,0,0,0]
[null,null,null,null,null,null,null,null,0,null,null,0,0,0]
[null,null,null,null,null,null,null,null,0,null,null,0,0,0]
[null,null,null,null,null,null,null,null,0,null,null,0,0,0]
[null,null,null,null,null,null,null,null,0,null,null,0,0,0]
[null,null,null,null,null,null,null,null,0,null,null,0,0,0]
[null,null,null,null,null,null,null,null,0,null,null,0,0,0]
[null,null,null,null,null,null,null,null,0,null,null,0,0,0]
[null,null,null,null,null,null,null,null,0,null,null,0,0,0]
[null,null,null,null,null,null,null,null,0,null,null,0,0,0]
[null,null,null,null,null,null,null,null,0,null,null,0,0,0]
[null,null,null,null,null,null,null,null,0,null,null,0,0,0]
[null,null,null,null,null,null,null,null,0,null,null,0,0,0]
[null,null,null,null,null,null,null,null,0,null,null,0,0,0]
[null,null,null,null,null,null,null,null,0,null,null,0,0,0]
[null,null,null,null,null,null,null,null,0,null,null,0,0,0]
[null,null,null,null,null,null,null,null,0,null,null,0,0,0]
[null,null,null,null,null,null,null,null,0,null,null,0,0,0]
[null,null,null,null,null,null,null,null,0,null,null,0,0,0]
[null,null,null,null,null,null,null,null,0,null,null,0,0,0]
[null,null,null,null,null,null,null,null,0,null,null,0,0,0]
[null,null,null,null,null,null,null,null,0,null,null,0,0,0]
[null,null,null,null,null,null,null,null,0,null,null,0,0,0]
[null,null,null,null,null,null,null,null,0,null,null,0,0,0]
[null,null,null,null,null,null,null,null,0,null,null,0,0,0]
[null,null,null,null,null,null,null,null,0,null,null,0,0,0]
[null,null,null,null,null,null,null,null,0,null,null,0,0,0]
[null,null,null,null,null,null,null,null,0,null,null,0,0,0]
[null,null,null,null,null,null,null,null,0,null,null,0,0,0]
[null,null,null,null,null,null,null,null,0,null,null,0,0,0]
[null,null,null,null,null,null,null,null,0,null,null,0,0,0]
[null,null,null,null,null,null,null,null,0,null,null,0,0,0]
[null,null,null,null,null,null,null,null,0,null,null,0,0,0]
[null,null,null,null,null,null,null,null,0,null,null,0,0,0]
[null,null,null,null,null,null,null,null,0,null,null,0,0,0]
[null,null,null,null,null,null,null,null,0,null,null,0,0,0]
[null,null,null,null,null,null,null,null,0,null,null,0,0,0]
[null,null,null,null,null,null,null,null,0,null,null,0,0,0]
[null,null,null,null,null,null,null,null,0,null,null,0,0,0]
[null,null,null,null,null,null,null,null,0,null,null,0,0,0]
[null,null,null,null,null,null,null,null,0,null,null,0,0,0]
[null,null,null,null,null,null,null,null,0,null,null,0,0,0]
[null,null,null,null,null,null,null,null,0,null,null,0,0,0]
[null,null,null,null,null,null,null,null,0,null,null,0,0,0]
[null,null,null,null,null,null,null,null,0,null,null,0,0,0]
[null,null,null,null,null,null,null,null,0,null,null,0,0,0]
[null,null,null,null,null,null,null,null,0,null,null,0,0,0]
[null,null,null,null,null,null,null,null,0,null,null,0,0,0]
[null,null,null,null,null,null,null,null,0,null,null,0,0,0]
[null,null,null,null,null,null,null,null,0,null,null,0,0,0]
[null,null,null,null,null,null,null,null,0,null,null,0,0,0]
[null,null,null,null,null,null,null,null,0,null,null,0,0,0]
[null,null,null,null,null,null,null,null,0,null,null,0,0,0]
[null,null,null,null,null,null,null,null,{"$f":"IF(F326=\"مصري \",G326,G326*H326)","v":0},null,null,{"$f":"IF(E326=\"DR\",I326,0)","v":0},{"$f":"IF(E326=\"CR\",I326,0)","v":0},{"$f":"M326-L326","v":0}]
[null,null,null,null,null,null,null,null,0,null,null,0,0,0]
[null,null,null,null,null,null,null,null,0,null,null,0,0,0]
[null,null,null,null,null,null,null,null,0,null,null,0,0,0]
[null,null,null,null,null,null,null,null,0,null,null,0,0,0]
[null,null,null,null,null,null,null,null,0,null,null,0,0,0]
[null,null,null,null,null,null,null,null,0,null,null,0,0,0]
[null,null,null,null,null,null,null,null,0,null,null,0,0,0]
[null,null,null,null,null,null,null,null,0,null,null,0,0,0]
[null,null,null,null,null,null,null,null,0,null,null,0,0,0]
[null,null,null,null,null,null,null,null,0,null,null,0,0,0]
[null,null,null,null,null,null,null,null,0,null,null,0,0,0]
[null,null,null,null,null,null,null,null,0,null,null,0,0,0]
[null,null,null,null,null,null,null,null,0,null,null,0,0,0]
[null,null,null,null,null,null,null,null,0,null,null,0,0,0]
[null,null,null,null,null,null,null,null,0,null,null,0,0,0]
[null,null,null,null,null,null,null,null,0,null,null,0,0,0]
[null,null,null,null,null,null,null,null,0,null,null,0,0,0]
[null,null,null,null,null,null,null,null,0,null,null,0,0,0]
[null,null,null,null,null,null,null,null,0,null,null,0,0,0]
[null,null,null,null,null,null,null,null,0,null,null,0,0,0]
[null,null,null,null,null,null,null,null,0,null,null,0,0,0]
[null,null,null,null,null,null,null,null,0,null,null,0,0,0]
[null,null,null,null,null,null,null,null,0,null,null,0,0,0]
[null,null,null,null,null,null,null,null,0,null,null,0,0,0]
[null,null,null,null,null,null,null,null,0,null,null,0,0,0]
[null,null,null,null,null,null,null,null,0,null,null,0,0,0]
[null,null,null,null,null,null,null,null,0,null,null,0,0,0]
[null,null,null,null,null,null,null,null,0,null,null,0,0,0]
[null,null,null,null,null,null,null,null,0,null,null,0,0,0]
[null,null,null,null,null,null,null,null,0,null,null,0,0,0]
[null,null,null,null,null,null,null,null,0,null,null,0,0,0]
[null,null,null,null,null,null,null,null,0,null,null,0,0,0]
[null,null,null,null,null,null,null,null,0,null,null,0,0,0]
[null,null,null,null,null,null,null,null,0,null,null,0,0,0]
[null,null,null,null,null,null,null,null,0,null,null,0,0,0]
[null,null,null,null,null,null,null,null,0,null,null,0,0,0]
[null,null,null,null,null,null,null,null,0,null,null,0,0,0]
[null,null,null,null,null,null,null,null,0,null,null,0,0,0]
[null,null,null,null,null,null,null,null,0,null,null,0,0,0]
[null,null,null,null,null,null,null,null,0,null,null,0,0,0]
[null,null,null,null,null,null,null,null,0,null,null,0,0,0]
[null,null,null,null,null,null,null,null,0,null,null,0,0,0]
[null,null,null,null,null,null,null,null,0,null,null,0,0,0]
[null,null,null,null,null,null,null,null,0,null,null,0,0,0]
[null,null,null,null,null,null,null,null,0,null,null,0,0,0]
[null,null,null,null,null,null,null,null,0,null,null,0,0,0]
[null,null,null,null,null,null,null,null,0,null,null,0,0,0]
[null,null,null,null,null,null,null,null,0,null,null,0,0,0]
[null,null,null,null,null,null,null,null,0,null,null,0,0,0]
[null,null,null,null,null,null,null,null,0,null,null,0,0,0]
[null,null,null,null,null,null,null,null,0,null,null,0,0,0]
[null,null,null,null,null,null,null,null,0,null,null,0,0,0]
[null,null,null,null,null,null,null,null,0,null,null,0,0,0]
[null,null,null,null,null,null,null,null,0,null,null,0,0,0]
[null,null,null,null,null,null,null,null,0,null,null,0,0,0]
[null,null,null,null,null,null,null,null,0,null,null,0,0,0]
[null,null,null,null,null,null,null,null,0,null,null,0,0,0]
[null,null,null,null,null,null,null,null,0,null,null,0,0,0]
[null,null,null,null,null,null,null,null,0,null,null,0,0,0]
[null,null,null,null,null,null,null,null,0,null,null,0,0,0]
[null,null,null,null,null,null,null,null,0,null,null,0,0,0]
[null,null,null,null,null,null,null,null,0,null,null,0,0,0]
[null,null,null,null,null,null,null,null,0,null,null,0,0,0]
[null,null,null,null,null,null,null,null,{"$f":"IF(F390=\"مصري \",G390,G390*H390)","v":0},null,null,{"$f":"IF(E390=\"DR\",I390,0)","v":0},{"$f":"IF(E390=\"CR\",I390,0)","v":0},{"$f":"M390-L390","v":0}]
[null,null,null,null,null,null,null,null,0,null,null,0,0,0]
[null,null,null,null,null,null,null,null,0,null,null,0,0,0]
[null,null,null,null,null,null,null,null,0,null,null,0,0,0]
[null,null,null,null,null,null,null,null,0,null,null,0,0,0]
[null,null,null,null,null,null,null,null,0,null,null,0,0,0]
[null,null,null,null,null,null,null,null,0,null,null,0,0,0]
[null,null,null,null,null,null,null,null,0,null,null,0,0,0]
[null,null,null,null,null,null,null,null,0,null,null,0,0,0]
[null,null,null,null,null,null,null,null,0,null,null,0,0,0]
[null,null,null,null,null,null,null,null,0,null,null,0,0,0]
[null,null,null,null,null,null,null,null,0,null,null,0,0,0]
[null,null,null,null,null,null,null,null,0,null,null,0,0,0]
[null,null,null,null,null,null,null,null,0,null,null,0,0,0]
[null,null,null,null,null,null,null,null,0,null,null,0,0,0]
[null,null,null,null,null,null,null,null,0,null,null,0,0,0]
[null,null,null,null,null,null,null,null,0,null,null,0,0,0]
[null,null,null,null,null,null,null,null,0,null,null,0,0,0]
[null,null,null,null,null,null,null,null,0,null,null,0,0,0]
[null,null,null,null,null,null,null,null,0,null,null,0,0,0]
[null,null,null,null,null,null,null,null,0,null,null,0,0,0]
[null,null,null,null,null,null,null,null,0,null,null,0,0,0]
[null,null,null,null,null,null,null,null,0,null,null,0,0,0]
[null,null,null,null,null,null,null,null,0,null,null,0,0,0]
[null,null,null,null,null,null,null,null,0,null,null,0,0,0]
[null,null,null,null,null,null,null,null,0,null,null,0,0,0]
[null,null,null,null,null,null,null,null,0,null,null,0,0,0]
[null,null,null,null,null,null,null,null,0,null,null,0,0,0]
[null,null,null,null,null,null,null,null,0,null,null,0,0,0]
[null,null,null,null,null,null,null,null,0,null,null,0,0,0]
[null,null,null,null,null,null,null,null,0,null,null,0,0,0]
[null,null,null,null,null,null,null,null,0,null,null,0,0,0]
[null,null,null,null,null,null,null,null,0,null,null,0,0,0]
[null,null,null,null,null,null,null,null,0,null,null,0,0,0]
[null,null,null,null,null,null,null,null,0,null,null,0,0,0]
[null,null,null,null,null,null,null,null,0,null,null,0,0,0]
[null,null,null,null,null,null,null,null,0,null,null,0,0,0]
[null,null,null,null,null,null,null,null,0,null,null,0,0,0]
[null,null,null,null,null,null,null,null,0,null,null,0,0,0]
[null,null,null,null,null,null,null,null,0,null,null,0,0,0]
[null,null,null,null,null,null,null,null,0,null,null,0,0,0]
[null,null,null,null,null,null,null,null,0,null,null,0,0,0]
[null,null,null,null,null,null,null,null,0,null,null,0,0,0]
[null,null,null,null,null,null,null,null,0,null,null,0,0,0]
[null,null,null,null,null,null,null,null,0,null,null,0,0,0]
[null,null,null,null,null,null,null,null,0,null,null,0,0,0]
[null,null,null,null,null,null,null,null,0,null,null,0,0,0]
[null,null,null,null,null,null,null,null,0,null,null,0,0,0]
[null,null,null,null,null,null,null,null,0,null,null,0,0,0]
[null,null,null,null,null,null,null,null,0,null,null,0,0,0]
[null,null,null,null,null,null,null,null,0,null,null,0,0,0]
[null,null,null,null,null,null,null,null,0,null,null,0,0,0]
[null,null,null,null,null,null,null,null,0,null,null,0,0,0]
[null,null,null,null,null,null,null,null,0,null,null,0,0,0]
[null,null,null,null,null,null,null,null,0,null,null,0,0,0]
[null,null,null,null,null,null,null,null,0,null,null,0,0,0]
[null,null,null,null,null,null,null,null,0,null,null,0,0,0]
[null,null,null,null,null,null,null,null,0,null,null,0,0,0]
[null,null,null,null,null,null,null,null,0,null,null,0,0,0]
[null,null,null,null,null,null,null,null,0,null,null,0,0,0]
[null,null,null,null,null,null,null,null,0,null,null,0,0,0]
[null,null,null,null,null,null,null,null,0,null,null,0,0,0]
[null,null,null,null,null,null,null,null,0,null,null,0,0,0]
[null,null,null,null,null,null,null,null,0,null,null,0,0,0]
[null,null,null,null,null,null,null,null,{"$f":"IF(F454=\"مصري \",G454,G454*H454)","v":0},null,null,{"$f":"IF(E454=\"DR\",I454,0)","v":0},{"$f":"IF(E454=\"CR\",I454,0)","v":0},{"$f":"M454-L454","v":0}]
[null,null,null,null,null,null,null,null,0,null,null,0,0,0]
[null,null,null,null,null,null,null,null,0,null,null,0,0,0]
[null,null,null,null,null,null,null,null,0,null,null,0,0,0]
[null,null,null,null,null,null,null,null,0,null,null,0,0,0]
[null,null,null,null,null,null,null,null,0,null,null,0,0,0]
[null,null,null,null,null,null,null,null,0,null,null,0,0,0]
[null,null,null,null,null,null,null,null,0,null,null,0,0,0]
[null,null,null,null,null,null,null,null,0,null,null,0,0,0]
[null,null,null,null,null,null,null,null,0,null,null,0,0,0]
[null,null,null,null,null,null,null,null,0,null,null,0,0,0]
[null,null,null,null,null,null,null,null,0,null,null,0,0,0]
[null,null,null,null,null,null,null,null,0,null,null,0,0,0]
[null,null,null,null,null,null,null,null,0,null,null,0,0,0]
[null,null,null,null,null,null,null,null,0,null,null,0,0,0]
[null,null,null,null,null,null,null,null,0,null,null,0,0,0]
[null,null,null,null,null,null,null,null,0,null,null,0,0,0]
[null,null,null,null,null,null,null,null,0,null,null,0,0,0]
[null,null,null,null,null,null,null,null,0,null,null,0,0,0]
[null,null,null,null,null,null,null,null,0,null,null,0,0,0]
[null,null,null,null,null,null,null,null,0,null,null,0,0,0]
[null,null,null,null,null,null,null,null,0,null,null,0,0,0]
[null,null,null,null,null,null,null,null,0,null,null,0,0,0]
[null,null,null,null,null,null,null,null,0,null,null,0,0,0]
[null,null,null,null,null,null,null,null,0,null,null,0,0,0]
[null,null,null,null,null,null,null,null,0,null,null,0,0,0]
[null,null,null,null,null,null,null,null,0,null,null,0,0,0]
[null,null,null,null,null,null,null,null,0,null,null,0,0,0]
[null,null,null,null,null,null,null,null,0,null,null,0,0,0]
[null,null,null,null,null,null,null,null,0,null,null,0,0,0]
[null,null,null,null,null,null,null,null,0,null,null,0,0,0]
[null,null,null,null,null,null,null,null,0,null,null,0,0,0]
[null,null,null,null,null,null,null,null,0,null,null,0,0,0]
[null,null,null,null,null,null,null,null,0,null,null,0,0,0]
[null,null,null,null,null,null,null,null,0,null,null,0,0,0]
[null,null,null,null,null,null,null,null,0,null,null,0,0,0]
[null,null,null,null,null,null,null,null,0,null,null,0,0,0]
[null,null,null,null,null,null,null,null,0,null,null,0,0,0]
[null,null,null,null,null,null,null,null,0,null,null,0,0,0]
[null,null,null,null,null,null,null,null,0,null,null,0,0,0]
[null,null,null,null,null,null,null,null,0,null,null,0,0,0]
[null,null,null,null,null,null,null,null,0,null,null,0,0,0]
[null,null,null,null,null,null,null,null,0,null,null,0,0,0]
[null,null,null,null,null,null,null,null,0,null,null,0,0,0]
[null,null,null,null,null,null,null,null,0,null,null,0,0,0]
[null,null,null,null,null,null,null,null,0,null,null,0,0,0]
[null,null,null,null,null,null,null,null,0,null,null,0,0,0]
[null,null,null,null,null,null,null,null,0,null,null,0,0,0]
[null,null,null,null,null,null,null,null,0,null,null,0,0,0]
[null,null,null,null,null,null,null,null,0,null,null,0,0,0]
[null,null,null,null,null,null,null,null,0,null,null,0,0,0]
[null,null,null,null,null,null,null,null,0,null,null,0,0,0]
[null,null,null,null,null,null,null,null,0,null,null,0,0,0]
[null,null,null,null,null,null,null,null,0,null,null,0,0,0]
[null,null,null,null,null,null,null,null,0,null,null,0,0,0]
[null,null,null,null,null,null,null,null,0,null,null,0,0,0]
[null,null,null,null,null,null,null,null,0,null,null,0,0,0]
[null,null,null,null,null,null,null,null,0,null,null,0,0,0]
[null,null,null,null,null,null,null,null,0,null,null,0,0,0]
[null,null,null,null,null,null,null,null,0,null,null,0,0,0]
[null,null,null,null,null,null,null,null,0,null,null,0,0,0]
[null,null,null,null,null,null,null,null,0,null,null,0,0,0]
[null,null,null,null,null,null,null,null,0,null,null,0,0,0]
[null,null,null,null,null,null,null,null,0,null,null,0,0,0]
[null,null,null,null,null,null,null,null,{"$f":"IF(F518=\"مصري \",G518,G518*H518)","v":0},null,null,{"$f":"IF(E518=\"DR\",I518,0)","v":0},{"$f":"IF(E518=\"CR\",I518,0)","v":0},{"$f":"M518-L518","v":0}]
[null,null,null,null,null,null,null,null,0,null,null,0,0,0]
[null,null,null,null,null,null,null,null,0,null,null,0,0,0]
[null,null,null,null,null,null,null,null,0,null,null,0,0,0]
[null,null,null,null,null,null,null,null,0,null,null,0,0,0]
[null,null,null,null,null,null,null,null,0,null,null,0,0,0]
[null,null,null,null,null,null,null,null,0,null,null,0,0,0]
[null,null,null,null,null,null,null,null,0,null,null,0,0,0]
[null,null,null,null,null,null,null,null,0,null,null,0,0,0]
[null,null,null,null,null,null,null,null,0,null,null,0,0,0]
[null,null,null,null,null,null,null,null,0,null,null,0,0,0]
[null,null,null,null,null,null,null,null,0,null,null,0,0,0]
[null,null,null,null,null,null,null,null,0,null,null,0,0,0]
[null,null,null,null,null,null,null,null,0,null,null,0,0,0]
[null,null,null,null,null,null,null,null,0,null,null,0,0,0]
[null,null,null,null,null,null,null,null,0,null,null,0,0,0]
[null,null,null,null,null,null,null,null,0,null,null,0,0,0]
[null,null,null,null,null,null,null,null,0,null,null,0,0,0]
[null,null,null,null,null,null,null,null,0,null,null,0,0,0]
[null,null,null,null,null,null,null,null,0,null,null,0,0,0]
[null,null,null,null,null,null,null,null,0,null,null,0,0,0]
[null,null,null,null,null,null,null,null,0,null,null,0,0,0]
[null,null,null,null,null,null,null,null,0,null,null,0,0,0]
[null,null,null,null,null,null,null,null,0,null,null,0,0,0]
[null,null,null,null,null,null,null,null,0,null,null,0,0,0]
[null,null,null,null,null,null,null,null,0,null,null,0,0,0]
[null,null,null,null,null,null,null,null,0,null,null,0,0,0]
[null,null,null,null,null,null,null,null,0,null,null,0,0,0]
[null,null,null,null,null,null,null,null,0,null,null,0,0,0]
[null,null,null,null,null,null,null,null,0,null,null,0,0,0]
[null,null,null,null,null,null,null,null,0,null,null,0,0,0]
[null,null,null,null,null,null,null,null,0,null,null,0,0,0]
[null,null,null,null,null,null,null,null,0,null,null,0,0,0]
[null,null,null,null,null,null,null,null,0,null,null,0,0,0]
[null,null,null,null,null,null,null,null,0,null,null,0,0,0]
[null,null,null,null,null,null,null,null,0,null,null,0,0,0]
[null,null,null,null,null,null,null,null,0,null,null,0,0,0]
[null,null,null,null,null,null,null,null,0,null,null,0,0,0]
[null,null,null,null,null,null,null,null,0,null,null,0,0,0]
[null,null,null,null,null,null,null,null,0,null,null,0,0,0]
[null,null,null,null,null,null,null,null,0,null,null,0,0,0]
[null,null,null,null,null,null,null,null,0,null,null,0,0,0]
[null,null,null,null,null,null,null,null,0,null,null,0,0,0]
[null,null,null,null,null,null,null,null,0,null,null,0,0,0]
[null,null,null,null,null,null,null,null,0,null,null,0,0,0]
[null,null,null,null,null,null,null,null,0,null,null,0,0,0]
[null,null,null,null,null,null,null,null,0,null,null,0,0,0]
[null,null,null,null,null,null,null,null,0,null,null,0,0,0]
[null,null,null,null,null,null,null,null,0,null,null,0,0,0]
[null,null,null,null,null,null,null,null,0,null,null,0,0,0]
[null,null,null,null,null,null,null,null,0,null,null,0,0,0]
[null,null,null,null,null,null,null,null,0,null,null,0,0,0]
[null,null,null,null,null,null,null,null,0,null,null,0,0,0]
[null,null,null,null,null,null,null,null,0,null,null,0,0,0]
[null,null,null,null,null,null,null,null,0,null,null,0,0,0]
[null,null,null,null,null,null,null,null,0,null,null,0,0,0]
[null,null,null,null,null,null,null,null,0,null,null,0,0,0]
[null,null,null,null,null,null,null,null,0,null,null,0,0,0]
[null,null,null,null,null,null,null,null,0,null,null,0,0,0]
[null,null,null,null,null,null,null,null,0,null,null,0,0,0]
[null,null,null,null,null,null,null,null,0,null,null,0,0,0]
[null,null,null,null,null,null,null,null,0,null,null,0,0,0]
[null,null,null,null,null,null,null,null,0,null,null,0,0,0]
[null,null,null,null,null,null,null,null,0,null,null,0,0,0]
[null,null,null,null,null,null,null,null,{"$f":"IF(F582=\"مصري \",G582,G582*H582)","v":0},null,null,{"$f":"IF(E582=\"DR\",I582,0)","v":0},{"$f":"IF(E582=\"CR\",I582,0)","v":0},{"$f":"M582-L582","v":0}]
[null,null,null,null,null,null,null,null,0,null,null,0,0,0]
[null,null,null,null,null,null,null,null,0,null,null,0,0,0]
[null,null,null,null,null,null,null,null,0,null,null,0,0,0]
[null,null,null,null,null,null,null,null,0,null,null,0,0,0]
[null,null,null,null,null,null,null,null,0,null,null,0,0,0]
[null,null,null,null,null,null,null,null,0,null,null,0,0,0]
[null,null,null,null,null,null,null,null,0,null,null,0,0,0]
[null,null,null,null,null,null,null,null,0,null,null,0,0,0]
[null,null,null,null,null,null,null,null,0,null,null,0,0,0]
[null,null,null,null,null,null,null,null,0,null,null,0,0,0]
[null,null,null,null,null,null,null,null,0,null,null,0,0,0]
[null,null,null,null,null,null,null,null,0,null,null,0,0,0]
[null,null,null,null,null,null,null,null,0,null,null,0,0,0]
[null,null,null,null,null,null,null,null,0,null,null,0,0,0]
[null,null,null,null,null,null,null,null,0,null,null,0,0,0]
[null,null,null,null,null,null,null,null,0,null,null,0,0,0]
[null,null,null,null,null,null,null,null,0,null,null,0,0,0]
[null,null,null,null,null,null,null,null,0,null,null,0,0,0]
[null,null,null,null,null,null,null,null,0,null,null,0,0,0]
[null,null,null,null,null,null,null,null,0,null,null,0,0,0]
[null,null,null,null,null,null,null,null,0,null,null,0,0,0]
[null,null,null,null,null,null,null,null,0,null,null,0,0,0]
[null,null,null,null,null,null,null,null,0,null,null,0,0,0]
[null,null,null,null,null,null,null,null,0,null,null,0,0,0]
[null,null,null,null,null,null,null,null,0,null,null,0,0,0]
[null,null,null,null,null,null,null,null,0,null,null,0,0,0]
[null,null,null,null,null,null,null,null,0,null,null,0,0,0]
[null,null,null,null,null,null,null,null,0,null,null,0,0,0]
[null,null,null,null,null,null,null,null,0,null,null,0,0,0]
[null,null,null,null,null,null,null,null,0,null,null,0,0,0]
[null,null,null,null,null,null,null,null,0,null,null,0,0,0]
[null,null,null,null,null,null,null,null,0,null,null,0,0,0]
[null,null,null,null,null,null,null,null,0,null,null,0,0,0]
[null,null,null,null,null,null,null,null,0,null,null,0,0,0]
[null,null,null,null,null,null,null,null,0,null,null,0,0,0]
[null,null,null,null,null,null,null,null,0,null,null,0,0,0]
[null,null,null,null,null,null,null,null,0,null,null,0,0,0]
[null,null,null,null,null,null,null,null,0,null,null,0,0,0]
[null,null,null,null,null,null,null,null,0,null,null,0,0,0]
[null,null,null,null,null,null,null,null,0,null,null,0,0,0]
[null,null,null,null,null,null,null,null,0,null,null,0,0,0]
[null,null,null,null,null,null,null,null,0,null,null,0,0,0]
[null,null,null,null,null,null,null,null,0,null,null,0,0,0]
[null,null,null,null,null,null,null,null,0,null,null,0,0,0]
[null,null,null,null,null,null,null,null,0,null,null,0,0,0]
[null,null,null,null,null,null,null,null,0,null,null,0,0,0]
[null,null,null,null,null,null,null,null,0,null,null,0,0,0]
[null,null,null,null,null,null,null,null,0,null,null,0,0,0]
[null,null,null,null,null,null,null,null,0,null,null,0,0,0]
[null,null,null,null,null,null,null,null,0,null,null,0,0,0]
[null,null,null,null,null,null,null,null,0,null,null,0,0,0]
[null,null,null,null,null,null,null,null,0,null,null,0,0,0]
[null,null,null,null,null,null,null,null,0,null,null,0,0,0]
[null,null,null,null,null,null,null,null,0,null,null,0,0,0]
[null,null,null,null,null,null,null,null,0,null,null,0,0,0]
[null,null,null,null,null,null,null,null,0,null,null,0,0,0]
[null,null,null,null,null,null,null,null,0,null,null,0,0,0]
[null,null,null,null,null,null,null,null,0,null,null,0,0,0]
[null,null,null,null,null,null,null,null,0,null,null,0,0,0]
[null,null,null,null,null,null,null,null,0,null,null,0,0,0]
[null,null,null,null,null,null,null,null,0,null,null,0,0,0]
[null,null,null,null,null,null,null,null,0,null,null,0,0,0]
[null,null,null,null,null,null,null,null,0,null,null,0,0,0]
[null,null,null,null,null,null,null,null,{"$f":"IF(F646=\"مصري \",G646,G646*H646)","v":0},null,null,{"$f":"IF(E646=\"DR\",I646,0)","v":0},{"$f":"IF(E646=\"CR\",I646,0)","v":0},{"$f":"M646-L646","v":0}]
[null,null,null,null,null,null,null,null,0,null,null,0,0,0]
[null,null,null,null,null,null,null,null,0,null,null,0,0,0]
[null,null,null,null,null,null,null,null,0,null,null,0,0,0]
[null,null,null,null,null,null,null,null,0,null,null,0,0,0]
[null,null,null,null,null,null,null,null,0,null,null,0,0,0]
[null,null,null,null,null,null,null,null,0,null,null,0,0,0]
[null,null,null,null,null,null,null,null,0,null,null,0,0,0]
[null,null,null,null,null,null,null,null,0,null,null,0,0,0]
[null,null,null,null,null,null,null,null,0,null,null,0,0,0]
[null,null,null,null,null,null,null,null,0,null,null,0,0,0]
[null,null,null,null,null,null,null,null,0,null,null,0,0,0]
[null,null,null,null,null,null,null,null,0,null,null,0,0,0]
[null,null,null,null,null,null,null,null,0,null,null,0,0,0]
[null,null,null,null,null,null,null,null,0,null,null,0,0,0]
[null,null,null,null,null,null,null,null,0,null,null,0,0,0]
[null,null,null,null,null,null,null,null,0,null,null,0,0,0]
[null,null,null,null,null,null,null,null,0,null,null,0,0,0]
[null,null,null,null,null,null,null,null,0,null,null,0,0,0]
[null,null,null,null,null,null,null,null,0,null,null,0,0,0]
[null,null,null,null,null,null,null,null,0,null,null,0,0,0]
[null,null,null,null,null,null,null,null,0,null,null,0,0,0]
[null,null,null,null,null,null,null,null,0,null,null,0,0,0]
[null,null,null,null,null,null,null,null,0,null,null,0,0,0]
[null,null,null,null,null,null,null,null,0,null,null,0,0,0]
[null,null,null,null,null,null,null,null,0,null,null,0,0,0]
[null,null,null,null,null,null,null,null,0,null,null,0,0,0]
[null,null,null,null,null,null,null,null,0,null,null,0,0,0]
[null,null,null,null,null,null,null,null,0,null,null,0,0,0]
[null,null,null,null,null,null,null,null,0,null,null,0,0,0]
[null,null,null,null,null,null,null,null,0,null,null,0,0,0]
[null,null,null,null,null,null,null,null,0,null,null,0,0,0]
[null,null,null,null,null,null,null,null,0,null,null,0,0,0]
[null,null,null,null,null,null,null,null,0,null,null,0,0,0]
[null,null,null,null,null,null,null,null,0,null,null,0,0,0]
[null,null,null,null,null,null,null,null,0,null,null,0,0,0]
[null,null,null,null,null,null,null,null,0,null,null,0,0,0]
[null,null,null,null,null,null,null,null,0,null,null,0,0,0]
[null,null,null,null,null,null,null,null,0,null,null,0,0,0]
[null,null,null,null,null,null,null,null,0,null,null,0,0,0]
[null,null,null,null,null,null,null,null,0,null,null,0,0,0]
[null,null,null,null,null,null,null,null,0,null,null,0,0,0]
[null,null,null,null,null,null,null,null,0,null,null,0,0,0]
[null,null,null,null,null,null,null,null,0,null,null,0,0,0]
[null,null,null,null,null,null,null,null,0,null,null,0,0,0]
[null,null,null,null,null,null,null,null,0,null,null,0,0,0]
[null,null,null,null,null,null,null,null,0,null,null,0,0,0]
[null,null,null,null,null,null,null,null,0,null,null,0,0,0]
[null,null,null,null,null,null,null,null,0,null,null,0,0,0]
[null,null,null,null,null,null,null,null,0,null,null,0,0,0]
[null,null,null,null,null,null,null,null,0,null,null,0,0,0]
[null,null,null,null,null,null,null,null,0,null,null,0,0,0]
[null,null,null,null,null,null,null,null,0,null,null,0,0,0]
[null,null,null,null,null,null,null,null,0,null,null,0,0,0]
[null,null,null,null,null,null,null,null,0,null,null,0,0,0]
[null,null,null,null,null,null,null,null,0,null,null,0,0,0]
[null,null,null,null,null,null,null,null,0,null,null,0,0,0]
[null,null,null,null,null,null,null,null,0,null,null,0,0,0]
[null,null,null,null,null,null,null,null,0,null,null,0,0,0]
[null,null,null,null,null,null,null,null,0,null,null,0,0,0]
[null,null,null,null,null,null,null,null,0,null,null,0,0,0]
[null,null,null,null,null,null,null,null,0,null,null,0,0,0]
[null,null,null,null,null,null,null,null,0,null,null,0,0,0]
[null,null,null,null,null,null,null,null,0,null,null,0,0,0]
[null,null,null,null,null,null,null,null,{"$f":"IF(F710=\"مصري \",G710,G710*H710)","v":0},null,null,{"$f":"IF(E710=\"DR\",I710,0)","v":0},{"$f":"IF(E710=\"CR\",I710,0)","v":0},{"$f":"M710-L710","v":0}]
[null,null,null,null,null,null,null,null,0,null,null,0,0,0]
[null,null,null,null,null,null,null,null,0,null,null,0,0,0]
[null,null,null,null,null,null,null,null,0,null,null,0,0,0]
[null,null,null,null,null,null,null,null,0,null,null,0,0,0]
[null,null,null,null,null,null,null,null,0,null,null,0,0,0]
[null,null,null,null,null,null,null,null,0,null,null,0,0,0]
[null,null,null,null,null,null,null,null,0,null,null,0,0,0]
[null,null,null,null,null,null,null,null,0,null,null,0,0,0]
[null,null,null,null,null,null,null,null,0,null,null,0,0,0]
[null,null,null,null,null,null,null,null,0,null,null,0,0,0]
[null,null,null,null,null,null,null,null,0,null,null,0,0,0]
[null,null,null,null,null,null,null,null,0,null,null,0,0,0]
[null,null,null,null,null,null,null,null,0,null,null,0,0,0]
[null,null,null,null,null,null,null,null,0,null,null,0,0,0]
[null,null,null,null,null,null,null,null,0,null,null,0,0,0]
[null,null,null,null,null,null,null,null,0,null,null,0,0,0]
[null,null,null,null,null,null,null,null,0,null,null,0,0,0]
[null,null,null,null,null,null,null,null,0,null,null,0,0,0]
[null,null,null,null,null,null,null,null,0,null,null,0,0,0]
[null,null,null,null,null,null,null,null,0,null,null,0,0,0]
[null,null,null,null,null,null,null,null,0,null,null,0,0,0]
[null,null,null,null,null,null,null,null,0,null,null,0,0,0]
[null,null,null,null,null,null,null,null,0,null,null,0,0,0]
[null,null,null,null,null,null,null,null,0,null,null,0,0,0]
[null,null,null,null,null,null,null,null,0,null,null,0,0,0]
[null,null,null,null,null,null,null,null,0,null,null,0,0,0]
[null,null,null,null,null,null,null,null,0,null,null,0,0,0]
[null,null,null,null,null,null,null,null,0,null,null,0,0,0]
[null,null,null,null,null,null,null,null,0,null,null,0,0,0]
[null,null,null,null,null,null,null,null,0,null,null,0,0,0]
[null,null,null,null,null,null,null,null,0,null,null,0,0,0]
[null,null,null,null,null,null,null,null,0,null,null,0,0,0]
[null,null,null,null,null,null,null,null,0,null,null,0,0,0]
[null,null,null,null,null,null,null,null,0,null,null,0,0,0]
[null,null,null,null,null,null,null,null,0,null,null,0,0,0]
[null,null,null,null,null,null,null,null,0,null,null,0,0,0]
[null,null,null,null,null,null,null,null,0,null,null,0,0,0]
[null,null,null,null,null,null,null,null,0,null,null,0,0,0]
[null,null,null,null,null,null,null,null,0,null,null,0,0,0]
[null,null,null,null,null,null,null,null,0,null,null,0,0,0]
[null,null,null,null,null,null,null,null,0,null,null,0,0,0]
[null,null,null,null,null,null,null,null,0,null,null,0,0,0]
[null,null,null,null,null,null,null,null,0,null,null,0,0,0]
[null,null,null,null,null,null,null,null,0,null,null,0,0,0]
[null,null,null,null,null,null,null,null,0,null,null,0,0,0]
[null,null,null,null,null,null,null,null,0,null,null,0,0,0]
[null,null,null,null,null,null,null,null,0,null,null,0,0,0]
[null,null,null,null,null,null,null,null,0,null,null,0,0,0]
[null,null,null,null,null,null,null,null,0,null,null,0,0,0]
[null,null,null,null,null,null,null,null,0,null,null,0,0,0]
[null,null,null,null,null,null,null,null,0,null,null,0,0,0]
[null,null,null,null,null,null,null,null,0,null,null,0,0,0]
[null,null,null,null,null,null,null,null,0,null,null,0,0,0]
[null,null,null,null,null,null,null,null,0,null,null,0,0,0]
[null,null,null,null,null,null,null,null,0,null,null,0,0,0]
[null,null,null,null,null,null,null,null,0,null,null,0,0,0]
[null,null,null,null,null,null,null,null,0,null,null,0,0,0]
[null,null,null,null,null,null,null,null,0,null,null,0,0,0]
[null,null,null,null,null,null,null,null,0,null,null,0,0,0]
[null,null,null,null,null,null,null,null,0,null,null,0,0,0]
[null,null,null,null,null,null,null,null,0,null,null,0,0,0]
[null,null,null,null,null,null,null,null,0,null,null,0,0,0]
[null,null,null,null,null,null,null,null,0,null,null,0,0,0]
[null,null,null,null,null,null,null,null,{"$f":"IF(F774=\"مصري \",G774,G774*H774)","v":0},null,null,{"$f":"IF(E774=\"DR\",I774,0)","v":0},{"$f":"IF(E774=\"CR\",I774,0)","v":0},{"$f":"M774-L774","v":0}]
[null,null,null,null,null,null,null,null,0,null,null,0,0,0]
[null,null,null,null,null,null,null,null,0,null,null,0,0,0]
[null,null,null,null,null,null,null,null,0,null,null,0,0,0]
[null,null,null,null,null,null,null,null,0,null,null,0,0,0]
[null,null,null,null,null,null,null,null,0,null,null,0,0,0]
[null,null,null,null,null,null,null,null,0,null,null,0,0,0]
[null,null,null,null,null,null,null,null,0,null,null,0,0,0]
[null,null,null,null,null,null,null,null,0,null,null,0,0,0]
[null,null,null,null,null,null,null,null,0,null,null,0,0,0]
[null,null,null,null,null,null,null,null,0,null,null,0,0,0]
[null,null,null,null,null,null,null,null,0,null,null,0,0,0]
[null,null,null,null,null,null,null,null,0,null,null,0,0,0]
[null,null,null,null,null,null,null,null,0,null,null,0,0,0]
[null,null,null,null,null,null,null,null,0,null,null,0,0,0]
[null,null,null,null,null,null,null,null,0,null,null,0,0,0]
[null,null,null,null,null,null,null,null,0,null,null,0,0,0]
[null,null,null,null,null,null,null,null,0,null,null,0,0,0]
[null,null,null,null,null,null,null,null,0,null,null,0,0,0]
[null,null,null,null,null,null,null,null,0,null,null,0,0,0]
[null,null,null,null,null,null,null,null,0,null,null,0,0,0]
[null,null,null,null,null,null,null,null,0,null,null,0,0,0]
[null,null,null,null,null,null,null,null,0,null,null,0,0,0]
[null,null,null,null,null,null,null,null,0,null,null,0,0,0]
[null,null,null,null,null,null,null,null,0,null,null,0,0,0]
[null,null,null,null,null,null,null,null,0,null,null,0,0,0]
[null,null,null,null,null,null,null,null,0,null,null,0,0,0]
[null,null,null,null,null,null,null,null,0,null,null,0,0,0]
[null,null,null,null,null,null,null,null,0,null,null,0,0,0]
[null,null,null,null,null,null,null,null,0,null,null,0,0,0]
[null,null,null,null,null,null,null,null,0,null,null,0,0,0]
[null,null,null,null,null,null,null,null,0,null,null,0,0,0]
[null,null,null,null,null,null,null,null,0,null,null,0,0,0]
[null,null,null,null,null,null,null,null,0,null,null,0,0,0]
[null,null,null,null,null,null,null,null,0,null,null,0,0,0]
[null,null,null,null,null,null,null,null,0,null,null,0,0,0]
[null,null,null,null,null,null,null,null,0,null,null,0,0,0]
[null,null,null,null,null,null,null,null,0,null,null,0,0,0]
[null,null,null,null,null,null,null,null,0,null,null,0,0,0]
[null,null,null,null,null,null,null,null,0,null,null,0,0,0]
[null,null,null,null,null,null,null,null,0,null,null,0,0,0]
[null,null,null,null,null,null,null,null,0,null,null,0,0,0]
[null,null,null,null,null,null,null,null,0,null,null,0,0,0]
[null,null,null,null,null,null,null,null,0,null,null,0,0,0]
[null,null,null,null,null,null,null,null,0,null,null,0,0,0]
[null,null,null,null,null,null,null,null,0,null,null,0,0,0]
[null,null,null,null,null,null,null,null,0,null,null,0,0,0]
[null,null,null,null,null,null,null,null,0,null,null,0,0,0]
[null,null,null,null,null,null,null,null,0,null,null,0,0,0]
[null,null,null,null,null,null,null,null,0,null,null,0,0,0]
[null,null,null,null,null,null,null,null,0,null,null,0,0,0]
[null,null,null,null,null,null,null,null,0,null,null,0,0,0]
[null,null,null,null,null,null,null,null,0,null,null,0,0,0]
[null,null,null,null,null,null,null,null,0,null,null,0,0,0]
[null,null,null,null,null,null,null,null,0,null,null,0,0,0]
[null,null,null,null,null,null,null,null,0,null,null,0,0,0]
[null,null,null,null,null,null,null,null,0,null,null,0,0,0]
[null,null,null,null,null,null,null,null,0,null,null,0,0,0]
[null,null,null,null,null,null,null,null,0,null,null,0,0,0]
[null,null,null,null,null,null,null,null,0,null,null,0,0,0]
[null,null,null,null,null,null,null,null,0,null,null,0,0,0]
[null,null,null,null,null,null,null,null,0,null,null,0,0,0]
[null,null,null,null,null,null,null,null,0,null,null,0,0,0]
[null,null,null,null,null,null,null,null,0,null,null,0,0,0]
[null,null,null,null,null,null,null,null,{"$f":"IF(F838=\"مصري \",G838,G838*H838)","v":0},null,null,{"$f":"IF(E838=\"DR\",I838,0)","v":0},{"$f":"IF(E838=\"CR\",I838,0)","v":0},{"$f":"M838-L838","v":0}]
[null,null,null,null,null,null,null,null,0,null,null,0,0,0]
[null,null,null,null,null,null,null,null,0,null,null,0,0,0]
[null,null,null,null,null,null,null,null,0,null,null,0,0,0]
[null,null,null,null,null,null,null,null,0,null,null,0,0,0]
[null,null,null,null,null,null,null,null,0,null,null,0,0,0]
[null,null,null,null,null,null,null,null,0,null,null,0,0,0]
[null,null,null,null,null,null,null,null,0,null,null,0,0,0]
[null,null,null,null,null,null,null,null,0,null,null,0,0,0]
[null,null,null,null,null,null,null,null,0,null,null,0,0,0]
[null,null,null,null,null,null,null,null,0,null,null,0,0,0]
[null,null,null,null,null,null,null,null,0,null,null,0,0,0]
[null,null,null,null,null,null,null,null,0,null,null,0,0,0]
[null,null,null,null,null,null,null,null,0,null,null,0,0,0]
[null,null,null,null,null,null,null,null,0,null,null,0,0,0]
[null,null,null,null,null,null,null,null,0,null,null,0,0,0]
[null,null,null,null,null,null,null,null,0,null,null,0,0,0]
[null,null,null,null,null,null,null,null,0,null,null,0,0,0]
[null,null,null,null,null,null,null,null,0,null,null,0,0,0]
[null,null,null,null,null,null,null,null,0,null,null,0,0,0]
[null,null,null,null,null,null,null,null,0,null,null,0,0,0]
[null,null,null,null,null,null,null,null,0,null,null,0,0,0]
[null,null,null,null,null,null,null,null,0,null,null,0,0,0]
[null,null,null,null,null,null,null,null,0,null,null,0,0,0]
[null,null,null,null,null,null,null,null,0,null,null,0,0,0]
[null,null,null,null,null,null,null,null,0,null,null,0,0,0]
[null,null,null,null,null,null,null,null,0,null,null,0,0,0]
[null,null,null,null,null,null,null,null,0,null,null,0,0,0]
[null,null,null,null,null,null,null,null,0,null,null,0,0,0]
[null,null,null,null,null,null,null,null,0,null,null,0,0,0]
[null,null,null,null,null,null,null,null,0,null,null,0,0,0]
[null,null,null,null,null,null,null,null,0,null,null,0,0,0]
[null,null,null,null,null,null,null,null,0,null,null,0,0,0]
[null,null,null,null,null,null,null,null,0,null,null,0,0,0]
[null,null,null,null,null,null,null,null,0,null,null,0,0,0]
[null,null,null,null,null,null,null,null,0,null,null,0,0,0]
[null,null,null,null,null,null,null,null,0,null,null,0,0,0]
[null,null,null,null,null,null,null,null,0,null,null,0,0,0]
[null,null,null,null,null,null,null,null,0,null,null,0,0,0]
[null,null,null,null,null,null,null,null,0,null,null,0,0,0]
[null,null,null,null,null,null,null,null,0,null,null,0,0,0]
[null,null,null,null,null,null,null,null,0,null,null,0,0,0]
[null,null,null,null,null,null,null,null,0,null,null,0,0,0]
[null,null,null,null,null,null,null,null,0,null,null,0,0,0]
[null,null,null,null,null,null,null,null,0,null,null,0,0,0]
[null,null,null,null,null,null,null,null,0,null,null,0,0,0]
[null,null,null,null,null,null,null,null,0,null,null,0,0,0]
[null,null,null,null,null,null,null,null,0,null,null,0,0,0]
[null,null,null,null,null,null,null,null,0,null,null,0,0,0]
[null,null,null,null,null,null,null,null,0,null,null,0,0,0]
[null,null,null,null,null,null,null,null,0,null,null,0,0,0]
[null,null,null,null,null,null,null,null,0,null,null,0,0,0]
[null,null,null,null,null,null,null,null,0,null,null,0,0,0]
[null,null,null,null,null,null,null,null,0,null,null,0,0,0]
[null,null,null,null,null,null,null,null,0,null,null,0,0,0]
[null,null,null,null,null,null,null,null,0,null,null,0,0,0]
[null,null,null,null,null,null,null,null,0,null,null,0,0,0]
[null,null,null,null,null,null,null,null,0,null,null,0,0,0]
[null,null,null,null,null,null,null,null,0,null,null,0,0,0]
[null,null,null,null,null,null,null,null,0,null,null,0,0,0]
[null,null,null,null,null,null,null,null,0,null,null,0,0,0]
[null,null,null,null,null,null,null,null,0,null,null,0,0,0]
[null,null,null,null,null,null,null,null,0,null,null,0,0,0]
[null,null,null,null,null,null,null,null,0,null,null,0,0,0]
[null,null,null,null,null,null,null,null,{"$f":"IF(F902=\"مصري \",G902,G902*H902)","v":0},null,null,{"$f":"IF(E902=\"DR\",I902,0)","v":0},{"$f":"IF(E902=\"CR\",I902,0)","v":0},{"$f":"M902-L902","v":0}]
[null,null,null,null,null,null,null,null,0,null,null,0,0,0]
[null,null,null,null,null,null,null,null,0,null,null,0,0,0]
[null,null,null,null,null,null,null,null,0,null,null,0,0,0]
[null,null,null,null,null,null,null,null,0,null,null,0,0,0]
[null,null,null,null,null,null,null,null,0,null,null,0,0,0]
[null,null,null,null,null,null,null,null,0,null,null,0,0,0]
[null,null,null,null,null,null,null,null,0,null,null,0,0,0]
[null,null,null,null,null,null,null,null,0,null,null,0,0,0]
[null,null,null,null,null,null,null,null,0,null,null,0,0,0]
[null,null,null,null,null,null,null,null,0,null,null,0,0,0]
[null,null,null,null,null,null,null,null,0,null,null,0,0,0]
[null,null,null,null,null,null,null,null,0,null,null,0,0,0]
[null,null,null,null,null,null,null,null,0,null,null,0,0,0]
[null,null,null,null,null,null,null,null,0,null,null,0,0,0]
[null,null,null,null,null,null,null,null,0,null,null,0,0,0]
[null,null,null,null,null,null,null,null,0,null,null,0,0,0]
[null,null,null,null,null,null,null,null,0,null,null,0,0,0]
[null,null,null,null,null,null,null,null,0,null,null,0,0,0]
[null,null,null,null,null,null,null,null,0,null,null,0,0,0]
[null,null,null,null,null,null,null,null,0,null,null,0,0,0]
[null,null,null,null,null,null,null,null,0,null,null,0,0,0]
[null,null,null,null,null,null,null,null,0,null,null,0,0,0]
[null,null,null,null,null,null,null,null,0,null,null,0,0,0]
[null,null,null,null,null,null,null,null,0,null,null,0,0,0]
[null,null,null,null,null,null,null,null,0,null,null,0,0,0]
[null,null,null,null,null,null,null,null,0,null,null,0,0,0]
[null,null,null,null,null,null,null,null,0,null,null,0,0,0]
[null,null,null,null,null,null,null,null,0,null,null,0,0,0]
[null,null,null,null,null,null,null,null,0,null,null,0,0,0]
[null,null,null,null,null,null,null,null,0,null,null,0,0,0]
[null,null,null,null,null,null,null,null,0,null,null,0,0,0]
[null,null,null,null,null,null,null,null,0,null,null,0,0,0]
[null,null,null,null,null,null,null,null,0,null,null,0,0,0]
[null,null,null,null,null,null,null,null,0,null,null,0,0,0]
[null,null,null,null,null,null,null,null,0,null,null,0,0,0]
[null,null,null,null,null,null,null,null,0,null,null,0,0,0]
[null,null,null,null,null,null,null,null,0,null,null,0,0,0]
[null,null,null,null,null,null,null,null,0,null,null,0,0,0]
[null,null,null,null,null,null,null,null,0,null,null,0,0,0]
[null,null,null,null,null,null,null,null,0,null,null,0,0,0]
[null,null,null,null,null,null,null,null,0,null,null,0,0,0]
[null,null,null,null,null,null,null,null,0,null,null,0,0,0]
[null,null,null,null,null,null,null,null,0,null,null,0,0,0]
[null,null,null,null,null,null,null,null,0,null,null,0,0,0]
[null,null,null,null,null,null,null,null,0,null,null,0,0,0]
[null,null,null,null,null,null,null,null,0,null,null,0,0,0]
[null,null,null,null,null,null,null,null,0,null,null,0,0,0]
[null,null,null,null,null,null,null,null,0,null,null,0,0,0]
[null,null,null,null,null,null,null,null,0,null,null,0,0,0]
[null,null,null,null,null,null,null,null,0,null,null,0,0,0]
[null,null,null,null,null,null,null,null,0,null,null,0,0,0]
[null,null,null,null,null,null,null,null,0,null,null,0,0,0]
[null,null,null,null,null,null,null,null,0,null,null,0,0,0]
[null,null,null,null,null,null,null,null,0,null,null,0,0,0]
[null,null,null,null,null,null,null,null,0,null,null,0,0,0]
[null,null,null,null,null,null,null,null,0,null,null,0,0,0]
[null,null,null,null,null,null,null,null,0,null,null,0,0,0]
[null,null,null,null,null,null,null,null,0,null,null,0,0,0]
[null,null,null,null,null,null,null,null,0,null,null,0,0,0]
[null,null,null,null,null,null,null,null,0,null,null,0,0,0]
[null,null,null,null,null,null,null,null,0,null,null,0,0,0]
[null,null,null,null,null,null,null,null,0,null,null,0,0,0]
[null,null,null,null,null,null,null,null,0,null,null,0,0,0]
[null,null,null,null,null,null,null,null,{"$f":"IF(F966=\"مصري \",G966,G966*H966)","v":0},null,null,{"$f":"IF(E966=\"DR\",I966,0)","v":0},{"$f":"IF(E966=\"CR\",I966,0)","v":0},{"$f":"M966-L966","v":0}]
[null,null,null,null,null,null,null,null,0,null,null,0,0,0]
[null,null,null,null,null,null,null,null,0,null,null,0,0,0]
[null,null,null,null,null,null,null,null,0,null,null,0,0,0]
[null,null,null,null,null,null,null,null,0,null,null,0,0,0]
[null,null,null,null,null,null,null,null,0,null,null,0,0,0]
[null,null,null,null,null,null,null,null,0,null,null,0,0,0]
[null,null,null,null,null,null,null,null,0,null,null,0,0,0]
[null,null,null,null,null,null,null,null,0,null,null,0,0,0]
[null,null,null,null,null,null,null,null,0,null,null,0,0,0]
[null,null,null,null,null,null,null,null,0,null,null,0,0,0]
[null,null,null,null,null,null,null,null,0,null,null,0,0,0]
[null,null,null,null,null,null,null,null,0,null,null,0,0,0]
[null,null,null,null,null,null,null,null,0,null,null,0,0,0]
[null,null,null,null,null,null,null,null,0,null,null,0,0,0]
[null,null,null,null,null,null,null,null,0,null,null,0,0,0]
[null,null,null,null,null,null,null,null,0,null,null,0,0,0]
[null,null,null,null,null,null,null,null,0,null,null,0,0,0]
[null,null,null,null,null,null,null,null,0,null,null,0,0,0]
[null,null,null,null,null,null,null,null,0,null,null,0,0,0]
[null,null,null,null,null,null,null,null,0,null,null,0,0,0]
[null,null,null,null,null,null,null,null,0,null,null,0,0,0]
[null,null,null,null,null,null,null,null,0,null,null,0,0,0]
[null,null,null,null,null,null,null,null,0,null,null,0,0,0]
[null,null,null,null,null,null,null,null,0,null,null,0,0,0]
[null,null,null,null,null,null,null,null,0,null,null,0,0,0]
[null,null,null,null,null,null,null,null,0,null,null,0,0,0]
[null,null,null,null,null,null,null,null,0,null,null,0,0,0]
[null,null,null,null,null,null,null,null,0,null,null,0,0,0]
[null,null,null,null,null,null,null,null,0,null,null,0,0,0]
[null,null,null,null,null,null,null,null,0,null,null,0,0,0]
[null,null,null,null,null,null,null,null,0,null,null,0,0,0]
[null,null,null,null,null,null,null,null,0,null,null,0,0,0]
[null,null,null,null,null,null,null,null,0,null,null,0,0,0]
[null,null,null,null,null,null,null,null,0,null,null,0,0,0]
[null,null,null,null,null,null,null,null,0,null,null,0,0,0]
[null,null,null,null,null,null,null,null,0,null,null,0,0,0]
[null,null,null,null,null,null,null,null,null,null,null,{"$f":"SUM(L5:L1002)","v":0},{"$f":"SUM(M5:M1002)","v":0},0]

{"sheet":"بنك مصر","index":3,"n_rows":1003,"n_cols":33,"rows_kept":1003,"cut":false,"hidden":false,"merged":[[1,9,2,12],[1,0,2,1],[1,2,2,2],[1,5,2,6],[1,7,2,7],[1,8,2,8],[1,3,2,4]]}
[]
["تاريخ اليوم",null,{"$f":"TODAY()","v":"2020-07-19"},"بنك مصر",null,"الرصيد حتى",null,{"$f":"VLOOKUP(1000000000,B5:B1002,1)","v":{"$error":"#N/A"}},{"$f":"N1003","v":0},{"$f":"CurrText(I2)","v":"صفر جنية"}]
[]
["م","التاريخ ","طريقة التحصيل ","طريقة السحب","نوع الحركة ","نوع الحساب ","المبلغ","سعر الصرف","القيمة بالجنية المصري","رقم الوحده ","البيان ","مدين ","دائن ","الرصيد",null,null,null,null,null,null,null,null,null,null,null,null,null,null,"نوع الحساب","نوع الحركة ",null,"طريقة التحصيل","طريقة السحب"]
[null,null,null,null,null,null,null,null,{"$f":"IF(F5=\"مصري \",G5,G5*H5)","v":0},null,null,{"$f":"IF(E5=\"DR\",I5,0)","v":0},{"$f":"IF(E5=\"CR\",I5,0)","v":0},{"$f":"M5-L5","v":0},null,null,null,null,null,null,null,null,null,null,null,null,null,null,"مصري ","CR",null,"تحويل"]
[null,null,null,null,null,null,null,null,{"$f":"IF(F6=\"مصري \",G6,G6*H6)","v":0},null,null,{"$f":"IF(E6=\"DR\",I6,0)","v":0},{"$f":"IF(E6=\"CR\",I6,0)","v":0},{"$f":"M6-L6","v":0},null,null,null,null,null,null,null,null,null,null,null,null,null,null,"دولار ","DR",null,"تحويل داخلي"]
[null,null,null,null,null,null,null,null,0,null,null,0,0,0,null,null,null,null,null,null,null,null,null,null,null,null,null,null,"يورو",null,null,"تحويل للحساب"]
[null,null,null,null,null,null,null,null,0,null,null,0,0,0,null,null,null,null,null,null,null,null,null,null,null,null,null,null,null,null,null,"شيك "]
[null,null,null,null,null,null,null,null,0,null,null,0,0,0,null,null,null,null,null,null,null,null,null,null,null,null,null,null,null,null,null,"فيزا"]
[null,null,null,null,null,null,null,null,0,null,null,0,0,0,null,null,null,null,null,null,null,null,null,null,null,null,null,null,null,null,null,"ايداع نقدي"]
[null,null,null,null,null,null,null,null,0,null,null,0,0,0]
[null,null,null,null,null,null,null,null,0,null,null,0,0,0]
[null,null,null,null,null,null,null,null,0,null,null,0,0,0]
[null,null,null,null,null,null,null,null,0,null,null,0,0,0]
[null,null,null,null,null,null,null,null,0,null,null,0,0,0]
[null,null,null,null,null,null,null,null,0,null,null,0,0,0]
[null,null,null,null,null,null,null,null,0,null,null,0,0,0]
[null,null,null,null,null,null,null,null,0,null,null,0,0,0]
[null,null,null,null,null,null,null,null,0,null,null,0,0,0]
[null,null,null,null,null,null,null,null,0,null,null,0,0,0]
[null,null,null,null,null,null,null,null,0,null,null,0,0,0]
[null,null,null,null,null,null,null,null,0,null,null,0,0,0]
[null,null,null,null,null,null,null,null,0,null,null,0,0,0]
[null,null,null,null,null,null,null,null,0,null,null,0,0,0]
[null,null,null,null,null,null,null,null,0,null,null,0,0,0]
[null,null,null,null,null,null,null,null,0,null,null,0,0,0]
[null,null,null,null,null,null,null,null,0,null,null,0,0,0]
[null,null,null,null,null,null,null,null,0,null,null,0,0,0]
[null,null,null,null,null,null,null,null,0,null,null,0,0,0]
[null,null,null,null,null,null,null,null,0,null,null,0,0,0]
[null,null,null,null,null,null,null,null,0,null,null,0,0,0]
[null,null,null,null,null,null,null,null,0,null,null,0,0,0]
[null,null,null,null,null,null,null,null,0,null,null,0,0,0]
[null,null,null,null,null,null,null,null,0,null,null,0,0,0]
[null,null,null,null,null,null,null,null,0,null,null,0,0,0]
[null,null,null,null,null,null,null,null,0,null,null,0,0,0]
[null,null,null,null,null,null,null,null,0,null,null,0,0,0]
[null,null,null,null,null,null,null,null,0,null,null,0,0,0]
[null,null,null,null,null,null,null,null,0,null,null,0,0,0]
[null,null,null,null,null,null,null,null,0,null,null,0,0,0]
[null,null,null,null,null,null,null,null,0,null,null,0,0,0]
[null,null,null,null,null,null,null,null,0,null,null,0,0,0]
[null,null,null,null,null,null,null,null,0,null,null,0,0,0]
[null,null,null,null,null,null,null,null,0,null,null,0,0,0]
[null,null,null,null,null,null,null,null,0,null,null,0,0,0]
[null,null,null,null,null,null,null,null,0,null,null,0,0,0]
[null,null,null,null,null,null,null,null,0,null,null,0,0,0]
[null,null,null,null,null,null,null,null,0,null,null,0,0,0]
[null,null,null,null,null,null,null,null,0,null,null,0,0,0]
[null,null,null,null,null,null,null,null,0,null,null,0,0,0]
[null,null,null,null,null,null,null,null,0,null,null,0,0,0]
[null,null,null,null,null,null,null,null,0,null,null,0,0,0]
[null,null,null,null,null,null,null,null,0,null,null,0,0,0]
[null,null,null,null,null,null,null,null,0,null,null,0,0,0]
[null,null,null,null,null,null,null,null,0,null,null,0,0,0]
[null,null,null,null,null,null,null,null,0,null,null,0,0,0]
[null,null,null,null,null,null,null,null,0,null,null,0,0,0]
[null,null,null,null,null,null,null,null,0,null,null,0,0,0]
[null,null,null,null,null,null,null,null,0,null,null,0,0,0]
[null,null,null,null,null,null,null,null,0,null,null,0,0,0]
[null,null,null,null,null,null,null,null,0,null,null,0,0,0]
[null,null,null,null,null,null,null,null,0,null,null,0,0,0]
[null,null,null,null,null,null,null,null,0,null,null,0,0,0]
[null,null,null,null,null,null,null,null,0,null,null,0,0,0]
[null,null,null,null,null,null,null,null,0,null,null,0,0,0]
[null,null,null,null,null,null,null,null,0,null,null,0,0,0]
[null,null,null,null,null,null,null,null,0,null,null,0,0,0]
[null,null,null,null,null,null,null,null,0,null,null,0,0,0]
[null,null,null,null,null,null,null,null,0,null,null,0,0,0]
[null,null,null,null,null,null,null,null,{"$f":"IF(F70=\"مصري \",G70,G70*H70)","v":0},null,null,{"$f":"IF(E70=\"DR\",I70,0)","v":0},{"$f":"IF(E70=\"CR\",I70,0)","v":0},{"$f":"M70-L70","v":0}]
[null,null,null,null,null,null,null,null,0,null,null,0,0,0]
[null,null,null,null,null,null,null,null,0,null,null,0,0,0]
[null,null,null,null,null,null,null,null,0,null,null,0,0,0]
[null,null,null,null,null,null,null,null,0,null,null,0,0,0]
[null,null,null,null,null,null,null,null,0,null,null,0,0,0]
[null,null,null,null,null,null,null,null,0,null,null,0,0,0]
[null,null,null,null,null,null,null,null,0,null,null,0,0,0]
[null,null,null,null,null,null,null,null,0,null,null,0,0,0]
[null,null,null,null,null,null,null,null,0,null,null,0,0,0]
[null,null,null,null,null,null,null,null,0,null,null,0,0,0]
[null,null,null,null,null,null,null,null,0,null,null,0,0,0]
[null,null,null,null,null,null,null,null,0,null,null,0,0,0]
[null,null,null,null,null,null,null,null,0,null,null,0,0,0]
[null,null,null,null,null,null,null,null,0,null,null,0,0,0]
[null,null,null,null,null,null,null,null,0,null,null,0,0,0]
[null,null,null,null,null,null,null,null,0,null,null,0,0,0]
[null,null,null,null,null,null,null,null,0,null,null,0,0,0]
[null,null,null,null,null,null,null,null,0,null,null,0,0,0]
[null,null,null,null,null,null,null,null,0,null,null,0,0,0]
[null,null,null,null,null,null,null,null,0,null,null,0,0,0]
[null,null,null,null,null,null,null,null,0,null,null,0,0,0]
[null,null,null,null,null,null,null,null,0,null,null,0,0,0]
[null,null,null,null,null,null,null,null,0,null,null,0,0,0]
[null,null,null,null,null,null,null,null,0,null,null,0,0,0]
[null,null,null,null,null,null,null,null,0,null,null,0,0,0]
[null,null,null,null,null,null,null,null,0,null,null,0,0,0]
[null,null,null,null,null,null,null,null,0,null,null,0,0,0]
[null,null,null,null,null,null,null,null,0,null,null,0,0,0]
[null,null,null,null,null,null,null,null,0,null,null,0,0,0]
[null,null,null,null,null,null,null,null,0,null,null,0,0,0]
[null,null,null,null,null,null,null,null,0,null,null,0,0,0]
[null,null,null,null,null,null,null,null,0,null,null,0,0,0]
[null,null,null,null,null,null,null,null,0,null,null,0,0,0]
[null,null,null,null,null,null,null,null,0,null,null,0,0,0]
[null,null,null,null,null,null,null,null,0,null,null,0,0,0]
[null,null,null,null,null,null,null,null,0,null,null,0,0,0]
[null,null,null,null,null,null,null,null,0,null,null,0,0,0]
[null,null,null,null,null,null,null,null,0,null,null,0,0,0]
[null,null,null,null,null,null,null,null,0,null,null,0,0,0]
[null,null,null,null,null,null,null,null,0,null,null,0,0,0]
[null,null,null,null,null,null,null,null,0,null,null,0,0,0]
[null,null,null,null,null,null,null,null,0,null,null,0,0,0]
[null,null,null,null,null,null,null,null,0,null,null,0,0,0]
[null,null,null,null,null,null,null,null,0,null,null,0,0,0]
[null,null,null,null,null,null,null,null,0,null,null,0,0,0]
[null,null,null,null,null,null,null,null,0,null,null,0,0,0]
[null,null,null,null,null,null,null,null,0,null,null,0,0,0]
[null,null,null,null,null,null,null,null,0,null,null,0,0,0]
[null,null,null,null,null,null,null,null,0,null,null,0,0,0]
[null,null,null,null,null,null,null,null,0,null,null,0,0,0]
[null,null,null,null,null,null,null,null,0,null,null,0,0,0]
[null,null,null,null,null,null,null,null,0,null,null,0,0,0]
[null,null,null,null,null,null,null,null,0,null,null,0,0,0]
[null,null,null,null,null,null,null,null,0,null,null,0,0,0]
[null,null,null,null,null,null,null,null,0,null,null,0,0,0]
[null,null,null,null,null,null,null,null,0,null,null,0,0,0]
[null,null,null,null,null,null,null,null,0,null,null,0,0,0]
[null,null,null,null,null,null,null,null,0,null,null,0,0,0]
[null,null,null,null,null,null,null,null,0,null,null,0,0,0]
[null,null,null,null,null,null,null,null,0,null,null,0,0,0]
[null,null,null,null,null,null,null,null,0,null,null,0,0,0]
[null,null,null,null,null,null,null,null,0,null,null,0,0,0]
[null,null,null,null,null,null,null,null,0,null,null,0,0,0]
[null,null,null,null,null,null,null,null,{"$f":"IF(F134=\"مصري \",G134,G134*H134)","v":0},null,null,{"$f":"IF(E134=\"DR\",I134,0)","v":0},{"$f":"IF(E134=\"CR\",I134,0)","v":0},{"$f":"M134-L134","v":0}]
[null,null,null,null,null,null,null,null,0,null,null,0,0,0]
[null,null,null,null,null,null,null,null,0,null,null,0,0,0]
[null,null,null,null,null,null,null,null,0,null,null,0,0,0]
[null,null,null,null,null,null,null,null,0,null,null,0,0,0]
[null,null,null,null,null,null,null,null,0,null,null,0,0,0]
[null,null,null,null,null,null,null,null,0,null,null,0,0,0]
[null,null,null,null,null,null,null,null,0,null,null,0,0,0]
[null,null,null,null,null,null,null,null,0,null,null,0,0,0]
[null,null,null,null,null,null,null,null,0,null,null,0,0,0]
[null,null,null,null,null,null,null,null,0,null,null,0,0,0]
[null,null,null,null,null,null,null,null,0,null,null,0,0,0]
[null,null,null,null,null,null,null,null,0,null,null,0,0,0]
[null,null,null,null,null,null,null,null,0,null,null,0,0,0]
[null,null,null,null,null,null,null,null,0,null,null,0,0,0]
[null,null,null,null,null,null,null,null,0,null,null,0,0,0]
[null,null,null,null,null,null,null,null,0,null,null,0,0,0]
[null,null,null,null,null,null,null,null,0,null,null,0,0,0]
[null,null,null,null,null,null,null,null,0,null,null,0,0,0]
[null,null,null,null,null,null,null,null,0,null,null,0,0,0]
[null,null,null,null,null,null,null,null,0,null,null,0,0,0]
[null,null,null,null,null,null,null,null,0,null,null,0,0,0]
[null,null,null,null,null,null,null,null,0,null,null,0,0,0]
[null,null,null,null,null,null,null,null,0,null,null,0,0,0]
[null,null,null,null,null,null,null,null,0,null,null,0,0,0]
[null,null,null,null,null,null,null,null,0,null,null,0,0,0]
[null,null,null,null,null,null,null,null,0,null,null,0,0,0]
[null,null,null,null,null,null,null,null,0,null,null,0,0,0]
[null,null,null,null,null,null,null,null,0,null,null,0,0,0]
[null,null,null,null,null,null,null,null,0,null,null,0,0,0]
[null,null,null,null,null,null,null,null,0,null,null,0,0,0]
[null,null,null,null,null,null,null,null,0,null,null,0,0,0]
[null,null,null,null,null,null,null,null,0,null,null,0,0,0]
[null,null,null,null,null,null,null,null,0,null,null,0,0,0]
[null,null,null,null,null,null,null,null,0,null,null,0,0,0]
[null,null,null,null,null,null,null,null,0,null,null,0,0,0]
[null,null,null,null,null,null,null,null,0,null,null,0,0,0]
[null,null,null,null,null,null,null,null,0,null,null,0,0,0]
[null,null,null,null,null,null,null,null,0,null,null,0,0,0]
[null,null,null,null,null,null,null,null,0,null,null,0,0,0]
[null,null,null,null,null,null,null,null,0,null,null,0,0,0]
[null,null,null,null,null,null,null,null,0,null,null,0,0,0]
[null,null,null,null,null,null,null,null,0,null,null,0,0,0]
[null,null,null,null,null,null,null,null,0,null,null,0,0,0]
[null,null,null,null,null,null,null,null,0,null,null,0,0,0]
[null,null,null,null,null,null,null,null,0,null,null,0,0,0]
[null,null,null,null,null,null,null,null,0,null,null,0,0,0]
[null,null,null,null,null,null,null,null,0,null,null,0,0,0]
[null,null,null,null,null,null,null,null,0,null,null,0,0,0]
[null,null,null,null,null,null,null,null,0,null,null,0,0,0]
[null,null,null,null,null,null,null,null,0,null,null,0,0,0]
[null,null,null,null,null,null,null,null,0,null,null,0,0,0]
[null,null,null,null,null,null,null,null,0,null,null,0,0,0]
[null,null,null,null,null,null,null,null,0,null,null,0,0,0]
[null,null,null,null,null,null,null,null,0,null,null,0,0,0]
[null,null,null,null,null,null,null,null,0,null,null,0,0,0]
[null,null,null,null,null,null,null,null,0,null,null,0,0,0]
[null,null,null,null,null,null,null,null,0,null,null,0,0,0]
[null,null,null,null,null,null,null,null,0,null,null,0,0,0]
[null,null,null,null,null,null,null,null,0,null,null,0,0,0]
[null,null,null,null,null,null,null,null,0,null,null,0,0,0]
[null,null,null,null,null,null,null,null,0,null,null,0,0,0]
[null,null,null,null,null,null,null,null,0,null,null,0,0,0]
[null,null,null,null,null,null,null,null,0,null,null,0,0,0]
[null,null,null,null,null,null,null,null,{"$f":"IF(F198=\"مصري \",G198,G198*H198)","v":0},null,null,{"$f":"IF(E198=\"DR\",I198,0)","v":0},{"$f":"IF(E198=\"CR\",I198,0)","v":0},{"$f":"M198-L198","v":0}]
[null,null,null,null,null,null,null,null,0,null,null,0,0,0]
[null,null,null,null,null,null,null,null,0,null,null,0,0,0]
[null,null,null,null,null,null,null,null,0,null,null,0,0,0]
[null,null,null,null,null,null,null,null,0,null,null,0,0,0]
[null,null,null,null,null,null,null,null,0,null,null,0,0,0]
[null,null,null,null,null,null,null,null,0,null,null,0,0,0]
[null,null,null,null,null,null,null,null,0,null,null,0,0,0]
[null,null,null,null,null,null,null,null,0,null,null,0,0,0]
[null,null,null,null,null,null,null,null,0,null,null,0,0,0]
[null,null,null,null,null,null,null,null,0,null,null,0,0,0]
[null,null,null,null,null,null,null,null,0,null,null,0,0,0]
[null,null,null,null,null,null,null,null,0,null,null,0,0,0]
[null,null,null,null,null,null,null,null,0,null,null,0,0,0]
[null,null,null,null,null,null,null,null,0,null,null,0,0,0]
[null,null,null,null,null,null,null,null,0,null,null,0,0,0]
[null,null,null,null,null,null,null,null,0,null,null,0,0,0]
[null,null,null,null,null,null,null,null,0,null,null,0,0,0]
[null,null,null,null,null,null,null,null,0,null,null,0,0,0]
[null,null,null,null,null,null,null,null,0,null,null,0,0,0]
[null,null,null,null,null,null,null,null,0,null,null,0,0,0]
[null,null,null,null,null,null,null,null,0,null,null,0,0,0]
[null,null,null,null,null,null,null,null,0,null,null,0,0,0]
[null,null,null,null,null,null,null,null,0,null,null,0,0,0]
[null,null,null,null,null,null,null,null,0,null,null,0,0,0]
[null,null,null,null,null,null,null,null,0,null,null,0,0,0]
[null,null,null,null,null,null,null,null,0,null,null,0,0,0]
[null,null,null,null,null,null,null,null,0,null,null,0,0,0]
[null,null,null,null,null,null,null,null,0,null,null,0,0,0]
[null,null,null,null,null,null,null,null,0,null,null,0,0,0]
[null,null,null,null,null,null,null,null,0,null,null,0,0,0]
[null,null,null,null,null,null,null,null,0,null,null,0,0,0]
[null,null,null,null,null,null,null,null,0,null,null,0,0,0]
[null,null,null,null,null,null,null,null,0,null,null,0,0,0]
[null,null,null,null,null,null,null,null,0,null,null,0,0,0]
[null,null,null,null,null,null,null,null,0,null,null,0,0,0]
[null,null,null,null,null,null,null,null,0,null,null,0,0,0]
[null,null,null,null,null,null,null,null,0,null,null,0,0,0]
[null,null,null,null,null,null,null,null,0,null,null,0,0,0]
[null,null,null,null,null,null,null,null,0,null,null,0,0,0]
[null,null,null,null,null,null,null,null,0,null,null,0,0,0]
[null,null,null,null,null,null,null,null,0,null,null,0,0,0]
[null,null,null,null,null,null,null,null,0,null,null,0,0,0]
[null,null,null,null,null,null,null,null,0,null,null,0,0,0]
[null,null,null,null,null,null,null,null,0,null,null,0,0,0]
[null,null,null,null,null,null,null,null,0,null,null,0,0,0]
[null,null,null,null,null,null,null,null,0,null,null,0,0,0]
[null,null,null,null,null,null,null,null,0,null,null,0,0,0]
[null,null,null,null,null,null,null,null,0,null,null,0,0,0]
[null,null,null,null,null,null,null,null,0,null,null,0,0,0]
[null,null,null,null,null,null,null,null,0,null,null,0,0,0]
[null,null,null,null,null,null,null,null,0,null,null,0,0,0]
[null,null,null,null,null,null,null,null,0,null,null,0,0,0]
[null,null,null,null,null,null,null,null,0,null,null,0,0,0]
[null,null,null,null,null,null,null,null,0,null,null,0,0,0]
[null,null,null,null,null,null,null,null,0,null,null,0,0,0]
[null,null,null,null,null,null,null,null,0,null,null,0,0,0]
[null,null,null,null,null,null,null,null,0,null,null,0,0,0]
[null,null,null,null,null,null,null,null,0,null,null,0,0,0]
[null,null,null,null,null,null,null,null,0,null,null,0,0,0]
[null,null,null,null,null,null,null,null,0,null,null,0,0,0]
[null,null,null,null,null,null,null,null,0,null,null,0,0,0]
[null,null,null,null,null,null,null,null,0,null,null,0,0,0]
[null,null,null,null,null,null,null,null,0,null,null,0,0,0]
[null,null,null,null,null,null,null,null,{"$f":"IF(F262=\"مصري \",G262,G262*H262)","v":0},null,null,{"$f":"IF(E262=\"DR\",I262,0)","v":0},{"$f":"IF(E262=\"CR\",I262,0)","v":0},{"$f":"M262-L262","v":0}]
[null,null,null,null,null,null,null,null,0,null,null,0,0,0]
[null,null,null,null,null,null,null,null,0,null,null,0,0,0]
[null,null,null,null,null,null,null,null,0,null,null,0,0,0]
[null,null,null,null,null,null,null,null,0,null,null,0,0,0]
[null,null,null,null,null,null,null,null,0,null,null,0,0,0]
[null,null,null,null,null,null,null,null,0,null,null,0,0,0]
[null,null,null,null,null,null,null,null,0,null,null,0,0,0]
[null,null,null,null,null,null,null,null,0,null,null,0,0,0]
[null,null,null,null,null,null,null,null,0,null,null,0,0,0]
[null,null,null,null,null,null,null,null,0,null,null,0,0,0]
[null,null,null,null,null,null,null,null,0,null,null,0,0,0]
[null,null,null,null,null,null,null,null,0,null,null,0,0,0]
[null,null,null,null,null,null,null,null,0,null,null,0,0,0]
[null,null,null,null,null,null,null,null,0,null,null,0,0,0]
[null,null,null,null,null,null,null,null,0,null,null,0,0,0]
[null,null,null,null,null,null,null,null,0,null,null,0,0,0]
[null,null,null,null,null,null,null,null,0,null,null,0,0,0]
[null,null,null,null,null,null,null,null,0,null,null,0,0,0]
[null,null,null,null,null,null,null,null,0,null,null,0,0,0]
[null,null,null,null,null,null,null,null,0,null,null,0,0,0]
[null,null,null,null,null,null,null,null,0,null,null,0,0,0]
[null,null,null,null,null,null,null,null,0,null,null,0,0,0]
[null,null,null,null,null,null,null,null,0,null,null,0,0,0]
[null,null,null,null,null,null,null,null,0,null,null,0,0,0]
[null,null,null,null,null,null,null,null,0,null,null,0,0,0]
[null,null,null,null,null,null,null,null,0,null,null,0,0,0]
[null,null,null,null,null,null,null,null,0,null,null,0,0,0]
[null,null,null,null,null,null,null,null,0,null,null,0,0,0]
[null,null,null,null,null,null,null,null,0,null,null,0,0,0]
[null,null,null,null,null,null,null,null,0,null,null,0,0,0]
[null,null,null,null,null,null,null,null,0,null,null,0,0,0]
[null,null,null,null,null,null,null,null,0,null,null,0,0,0]
[null,null,null,null,null,null,null,null,0,null,null,0,0,0]
[null,null,null,null,null,null,null,null,0,null,null,0,0,0]
[null,null,null,null,null,null,null,null,0,null,null,0,0,0]
[null,null,null,null,null,null,null,null,0,null,null,0,0,0]
[null,null,null,null,null,null,null,null,0,null,null,0,0,0]
[null,null,null,null,null,null,null,null,0,null,null,0,0,0]
[null,null,null,null,null,null,null,null,0,null,null,0,0,0]
[null,null,null,null,null,null,null,null,0,null,null,0,0,0]
[null,null,null,null,null,null,null,null,0,null,null,0,0,0]
[null,null,null,null,null,null,null,null,0,null,null,0,0,0]
[null,null,null,null,null,null,null,null,0,null,null,0,0,0]
[null,null,null,null,null,null,null,null,0,null,null,0,0,0]
[null,null,null,null,null,null,null,null,0,null,null,0,0,0]
[null,null,null,null,null,null,null,null,0,null,null,0,0,0]
[null,null,null,null,null,null,null,null,0,null,null,0,0,0]
[null,null,null,null,null,null,null,null,0,null,null,0,0,0]
[null,null,null,null,null,null,null,null,0,null,null,0,0,0]
[null,null,null,null,null,null,null,null,0,null,null,0,0,0]
[null,null,null,null,null,null,null,null,0,null,null,0,0,0]
[null,null,null,null,null,null,null,null,0,null,null,0,0,0]
[null,null,null,null,null,null,null,null,0,null,null,0,0,0]
[null,null,null,null,null,null,null,null,0,null,null,0,0,0]
[null,null,null,null,null,null,null,null,0,null,null,0,0,0]
[null,null,null,null,null,null,null,null,0,null,null,0,0,0]
[null,null,null,null,null,null,null,null,0,null,null,0,0,0]
[null,null,null,null,null,null,null,null,0,null,null,0,0,0]
[null,null,null,null,null,null,null,null,0,null,null,0,0,0]
[null,null,null,null,null,null,null,null,0,null,null,0,0,0]
[null,null,null,null,null,null,null,null,0,null,null,0,0,0]
[null,null,null,null,null,null,null,null,0,null,null,0,0,0]
[null,null,null,null,null,null,null,null,0,null,null,0,0,0]
[null,null,null,null,null,null,null,null,{"$f":"IF(F326=\"مصري \",G326,G326*H326)","v":0},null,null,{"$f":"IF(E326=\"DR\",I326,0)","v":0},{"$f":"IF(E326=\"CR\",I326,0)","v":0},{"$f":"M326-L326","v":0}]
[null,null,null,null,null,null,null,null,0,null,null,0,0,0]
[null,null,null,null,null,null,null,null,0,null,null,0,0,0]
[null,null,null,null,null,null,null,null,0,null,null,0,0,0]
[null,null,null,null,null,null,null,null,0,null,null,0,0,0]
[null,null,null,null,null,null,null,null,0,null,null,0,0,0]
[null,null,null,null,null,null,null,null,0,null,null,0,0,0]
[null,null,null,null,null,null,null,null,0,null,null,0,0,0]
[null,null,null,null,null,null,null,null,0,null,null,0,0,0]
[null,null,null,null,null,null,null,null,0,null,null,0,0,0]
[null,null,null,null,null,null,null,null,0,null,null,0,0,0]
[null,null,null,null,null,null,null,null,0,null,null,0,0,0]
[null,null,null,null,null,null,null,null,0,null,null,0,0,0]
[null,null,null,null,null,null,null,null,0,null,null,0,0,0]
[null,null,null,null,null,null,null,null,0,null,null,0,0,0]
[null,null,null,null,null,null,null,null,0,null,null,0,0,0]
[null,null,null,null,null,null,null,null,0,null,null,0,0,0]
[null,null,null,null,null,null,null,null,0,null,null,0,0,0]
[null,null,null,null,null,null,null,null,0,null,null,0,0,0]
[null,null,null,null,null,null,null,null,0,null,null,0,0,0]
[null,null,null,null,null,null,null,null,0,null,null,0,0,0]
[null,null,null,null,null,null,null,null,0,null,null,0,0,0]
[null,null,null,null,null,null,null,null,0,null,null,0,0,0]
[null,null,null,null,null,null,null,null,0,null,null,0,0,0]
[null,null,null,null,null,null,null,null,0,null,null,0,0,0]
[null,null,null,null,null,null,null,null,0,null,null,0,0,0]
[null,null,null,null,null,null,null,null,0,null,null,0,0,0]
[null,null,null,null,null,null,null,null,0,null,null,0,0,0]
[null,null,null,null,null,null,null,null,0,null,null,0,0,0]
[null,null,null,null,null,null,null,null,0,null,null,0,0,0]
[null,null,null,null,null,null,null,null,0,null,null,0,0,0]
[null,null,null,null,null,null,null,null,0,null,null,0,0,0]
[null,null,null,null,null,null,null,null,0,null,null,0,0,0]
[null,null,null,null,null,null,null,null,0,null,null,0,0,0]
[null,null,null,null,null,null,null,null,0,null,null,0,0,0]
[null,null,null,null,null,null,null,null,0,null,null,0,0,0]
[null,null,null,null,null,null,null,null,0,null,null,0,0,0]
[null,null,null,null,null,null,null,null,0,null,null,0,0,0]
[null,null,null,null,null,null,null,null,0,null,null,0,0,0]
[null,null,null,null,null,null,null,null,0,null,null,0,0,0]
[null,null,null,null,null,null,null,null,0,null,null,0,0,0]
[null,null,null,null,null,null,null,null,0,null,null,0,0,0]
[null,null,null,null,null,null,null,null,0,null,null,0,0,0]
[null,null,null,null,null,null,null,null,0,null,null,0,0,0]
[null,null,null,null,null,null,null,null,0,null,null,0,0,0]
[null,null,null,null,null,null,null,null,0,null,null,0,0,0]
[null,null,null,null,null,null,null,null,0,null,null,0,0,0]
[null,null,null,null,null,null,null,null,0,null,null,0,0,0]
[null,null,null,null,null,null,null,null,0,null,null,0,0,0]
[null,null,null,null,null,null,null,null,0,null,null,0,0,0]
[null,null,null,null,null,null,null,null,0,null,null,0,0,0]
[null,null,null,null,null,null,null,null,0,null,null,0,0,0]
[null,null,null,null,null,null,null,null,0,null,null,0,0,0]
[null,null,null,null,null,null,null,null,0,null,null,0,0,0]
[null,null,null,null,null,null,null,null,0,null,null,0,0,0]
[null,null,null,null,null,null,null,null,0,null,null,0,0,0]
[null,null,null,null,null,null,null,null,0,null,null,0,0,0]
[null,null,null,null,null,null,null,null,0,null,null,0,0,0]
[null,null,null,null,null,null,null,null,0,null,null,0,0,0]
[null,null,null,null,null,null,null,null,0,null,null,0,0,0]
[null,null,null,null,null,null,null,null,0,null,null,0,0,0]
[null,null,null,null,null,null,null,null,0,null,null,0,0,0]
[null,null,null,null,null,null,null,null,0,null,null,0,0,0]
[null,null,null,null,null,null,null,null,0,null,null,0,0,0]
[null,null,null,null,null,null,null,null,{"$f":"IF(F390=\"مصري \",G390,G390*H390)","v":0},null,null,{"$f":"IF(E390=\"DR\",I390,0)","v":0},{"$f":"IF(E390=\"CR\",I390,0)","v":0},{"$f":"M390-L390","v":0}]
[null,null,null,null,null,null,null,null,0,null,null,0,0,0]
[null,null,null,null,null,null,null,null,0,null,null,0,0,0]
[null,null,null,null,null,null,null,null,0,null,null,0,0,0]
[null,null,null,null,null,null,null,null,0,null,null,0,0,0]
[null,null,null,null,null,null,null,null,0,null,null,0,0,0]
[null,null,null,null,null,null,null,null,0,null,null,0,0,0]
[null,null,null,null,null,null,null,null,0,null,null,0,0,0]
[null,null,null,null,null,null,null,null,0,null,null,0,0,0]
[null,null,null,null,null,null,null,null,0,null,null,0,0,0]
[null,null,null,null,null,null,null,null,0,null,null,0,0,0]
[null,null,null,null,null,null,null,null,0,null,null,0,0,0]
[null,null,null,null,null,null,null,null,0,null,null,0,0,0]
[null,null,null,null,null,null,null,null,0,null,null,0,0,0]
[null,null,null,null,null,null,null,null,0,null,null,0,0,0]
[null,null,null,null,null,null,null,null,0,null,null,0,0,0]
[null,null,null,null,null,null,null,null,0,null,null,0,0,0]
[null,null,null,null,null,null,null,null,0,null,null,0,0,0]
[null,null,null,null,null,null,null,null,0,null,null,0,0,0]
[null,null,null,null,null,null,null,null,0,null,null,0,0,0]
[null,null,null,null,null,null,null,null,0,null,null,0,0,0]
[null,null,null,null,null,null,null,null,0,null,null,0,0,0]
[null,null,null,null,null,null,null,null,0,null,null,0,0,0]
[null,null,null,null,null,null,null,null,0,null,null,0,0,0]
[null,null,null,null,null,null,null,null,0,null,null,0,0,0]
[null,null,null,null,null,null,null,null,0,null,null,0,0,0]
[null,null,null,null,null,null,null,null,0,null,null,0,0,0]
[null,null,null,null,null,null,null,null,0,null,null,0,0,0]
[null,null,null,null,null,null,null,null,0,null,null,0,0,0]
[null,null,null,null,null,null,null,null,0,null,null,0,0,0]
[null,null,null,null,null,null,null,null,0,null,null,0,0,0]
[null,null,null,null,null,null,null,null,0,null,null,0,0,0]
[null,null,null,null,null,null,null,null,0,null,null,0,0,0]
[null,null,null,null,null,null,null,null,0,null,null,0,0,0]
[null,null,null,null,null,null,null,null,0,null,null,0,0,0]
[null,null,null,null,null,null,null,null,0,null,null,0,0,0]
[null,null,null,null,null,null,null,null,0,null,null,0,0,0]
[null,null,null,null,null,null,null,null,0,null,null,0,0,0]
[null,null,null,null,null,null,null,null,0,null,null,0,0,0]
[null,null,null,null,null,null,null,null,0,null,null,0,0,0]
[null,null,null,null,null,null,null,null,0,null,null,0,0,0]
[null,null,null,null,null,null,null,null,0,null,null,0,0,0]
[null,null,null,null,null,null,null,null,0,null,null,0,0,0]
[null,null,null,null,null,null,null,null,0,null,null,0,0,0]
[null,null,null,null,null,null,null,null,0,null,null,0,0,0]
[null,null,null,null,null,null,null,null,0,null,null,0,0,0]
[null,null,null,null,null,null,null,null,0,null,null,0,0,0]
[null,null,null,null,null,null,null,null,0,null,null,0,0,0]
[null,null,null,null,null,null,null,null,0,null,null,0,0,0]
[null,null,null,null,null,null,null,null,0,null,null,0,0,0]
[null,null,null,null,null,null,null,null,0,null,null,0,0,0]
[null,null,null,null,null,null,null,null,0,null,null,0,0,0]
[null,null,null,null,null,null,null,null,0,null,null,0,0,0]
[null,null,null,null,null,null,null,null,0,null,null,0,0,0]
[null,null,null,null,null,null,null,null,0,null,null,0,0,0]
[null,null,null,null,null,null,null,null,0,null,null,0,0,0]
[null,null,null,null,null,null,null,null,0,null,null,0,0,0]
[null,null,null,null,null,null,null,null,0,null,null,0,0,0]
[null,null,null,null,null,null,null,null,0,null,null,0,0,0]
[null,null,null,null,null,null,null,null,0,null,null,0,0,0]
[null,null,null,null,null,null,null,null,0,null,null,0,0,0]
[null,null,null,null,null,null,null,null,0,null,null,0,0,0]
[null,null,null,null,null,null,null,null,0,null,null,0,0,0]
[null,null,null,null,null,null,null,null,0,null,null,0,0,0]
[null,null,null,null,null,null,null,null,{"$f":"IF(F454=\"مصري \",G454,G454*H454)","v":0},null,null,{"$f":"IF(E454=\"DR\",I454,0)","v":0},{"$f":"IF(E454=\"CR\",I454,0)","v":0},{"$f":"M454-L454","v":0}]
[null,null,null,null,null,null,null,null,0,null,null,0,0,0]
[null,null,null,null,null,null,null,null,0,null,null,0,0,0]
[null,null,null,null,null,null,null,null,0,null,null,0,0,0]
[null,null,null,null,null,null,null,null,0,null,null,0,0,0]
[null,null,null,null,null,null,null,null,0,null,null,0,0,0]
[null,null,null,null,null,null,null,null,0,null,null,0,0,0]
[null,null,null,null,null,null,null,null,0,null,null,0,0,0]
[null,null,null,null,null,null,null,null,0,null,null,0,0,0]
[null,null,null,null,null,null,null,null,0,null,null,0,0,0]
[null,null,null,null,null,null,null,null,0,null,null,0,0,0]
[null,null,null,null,null,null,null,null,0,null,null,0,0,0]
[null,null,null,null,null,null,null,null,0,null,null,0,0,0]
[null,null,null,null,null,null,null,null,0,null,null,0,0,0]
[null,null,null,null,null,null,null,null,0,null,null,0,0,0]
[null,null,null,null,null,null,null,null,0,null,null,0,0,0]
[null,null,null,null,null,null,null,null,0,null,null,0,0,0]
[null,null,null,null,null,null,null,null,0,null,null,0,0,0]
[null,null,null,null,null,null,null,null,0,null,null,0,0,0]
[null,null,null,null,null,null,null,null,0,null,null,0,0,0]
[null,null,null,null,null,null,null,null,0,null,null,0,0,0]
[null,null,null,null,null,null,null,null,0,null,null,0,0,0]
[null,null,null,null,null,null,null,null,0,null,null,0,0,0]
[null,null,null,null,null,null,null,null,0,null,null,0,0,0]
[null,null,null,null,null,null,null,null,0,null,null,0,0,0]
[null,null,null,null,null,null,null,null,0,null,null,0,0,0]
[null,null,null,null,null,null,null,null,0,null,null,0,0,0]
[null,null,null,null,null,null,null,null,0,null,null,0,0,0]
[null,null,null,null,null,null,null,null,0,null,null,0,0,0]
[null,null,null,null,null,null,null,null,0,null,null,0,0,0]
[null,null,null,null,null,null,null,null,0,null,null,0,0,0]
[null,null,null,null,null,null,null,null,0,null,null,0,0,0]
[null,null,null,null,null,null,null,null,0,null,null,0,0,0]
[null,null,null,null,null,null,null,null,0,null,null,0,0,0]
[null,null,null,null,null,null,null,null,0,null,null,0,0,0]
[null,null,null,null,null,null,null,null,0,null,null,0,0,0]
[null,null,null,null,null,null,null,null,0,null,null,0,0,0]
[null,null,null,null,null,null,null,null,0,null,null,0,0,0]
[null,null,null,null,null,null,null,null,0,null,null,0,0,0]
[null,null,null,null,null,null,null,null,0,null,null,0,0,0]
[null,null,null,null,null,null,null,null,0,null,null,0,0,0]
[null,null,null,null,null,null,null,null,0,null,null,0,0,0]
[null,null,null,null,null,null,null,null,0,null,null,0,0,0]
[null,null,null,null,null,null,null,null,0,null,null,0,0,0]
[null,null,null,null,null,null,null,null,0,null,null,0,0,0]
[null,null,null,null,null,null,null,null,0,null,null,0,0,0]
[null,null,null,null,null,null,null,null,0,null,null,0,0,0]
[null,null,null,null,null,null,null,null,0,null,null,0,0,0]
[null,null,null,null,null,null,null,null,0,null,null,0,0,0]
[null,null,null,null,null,null,null,null,0,null,null,0,0,0]
[null,null,null,null,null,null,null,null,0,null,null,0,0,0]
[null,null,null,null,null,null,null,null,0,null,null,0,0,0]
[null,null,null,null,null,null,null,null,0,null,null,0,0,0]
[null,null,null,null,null,null,null,null,0,null,null,0,0,0]
[null,null,null,null,null,null,null,null,0,null,null,0,0,0]
[null,null,null,null,null,null,null,null,0,null,null,0,0,0]
[null,null,null,null,null,null,null,null,0,null,null,0,0,0]
[null,null,null,null,null,null,null,null,0,null,null,0,0,0]
[null,null,null,null,null,null,null,null,0,null,null,0,0,0]
[null,null,null,null,null,null,null,null,0,null,null,0,0,0]
[null,null,null,null,null,null,null,null,0,null,null,0,0,0]
[null,null,null,null,null,null,null,null,0,null,null,0,0,0]
[null,null,null,null,null,null,null,null,0,null,null,0,0,0]
[null,null,null,null,null,null,null,null,0,null,null,0,0,0]
[null,null,null,null,null,null,null,null,{"$f":"IF(F518=\"مصري \",G518,G518*H518)","v":0},null,null,{"$f":"IF(E518=\"DR\",I518,0)","v":0},{"$f":"IF(E518=\"CR\",I518,0)","v":0},{"$f":"M518-L518","v":0}]
[null,null,null,null,null,null,null,null,0,null,null,0,0,0]
[null,null,null,null,null,null,null,null,0,null,null,0,0,0]
[null,null,null,null,null,null,null,null,0,null,null,0,0,0]
[null,null,null,null,null,null,null,null,0,null,null,0,0,0]
[null,null,null,null,null,null,null,null,0,null,null,0,0,0]
[null,null,null,null,null,null,null,null,0,null,null,0,0,0]
[null,null,null,null,null,null,null,null,0,null,null,0,0,0]
[null,null,null,null,null,null,null,null,0,null,null,0,0,0]
[null,null,null,null,null,null,null,null,0,null,null,0,0,0]
[null,null,null,null,null,null,null,null,0,null,null,0,0,0]
[null,null,null,null,null,null,null,null,0,null,null,0,0,0]
[null,null,null,null,null,null,null,null,0,null,null,0,0,0]
[null,null,null,null,null,null,null,null,0,null,null,0,0,0]
[null,null,null,null,null,null,null,null,0,null,null,0,0,0]
[null,null,null,null,null,null,null,null,0,null,null,0,0,0]
[null,null,null,null,null,null,null,null,0,null,null,0,0,0]
[null,null,null,null,null,null,null,null,0,null,null,0,0,0]
[null,null,null,null,null,null,null,null,0,null,null,0,0,0]
[null,null,null,null,null,null,null,null,0,null,null,0,0,0]
[null,null,null,null,null,null,null,null,0,null,null,0,0,0]
[null,null,null,null,null,null,null,null,0,null,null,0,0,0]
[null,null,null,null,null,null,null,null,0,null,null,0,0,0]
[null,null,null,null,null,null,null,null,0,null,null,0,0,0]
[null,null,null,null,null,null,null,null,0,null,null,0,0,0]
[null,null,null,null,null,null,null,null,0,null,null,0,0,0]
[null,null,null,null,null,null,null,null,0,null,null,0,0,0]
[null,null,null,null,null,null,null,null,0,null,null,0,0,0]
[null,null,null,null,null,null,null,null,0,null,null,0,0,0]
[null,null,null,null,null,null,null,null,0,null,null,0,0,0]
[null,null,null,null,null,null,null,null,0,null,null,0,0,0]
[null,null,null,null,null,null,null,null,0,null,null,0,0,0]
[null,null,null,null,null,null,null,null,0,null,null,0,0,0]
[null,null,null,null,null,null,null,null,0,null,null,0,0,0]
[null,null,null,null,null,null,null,null,0,null,null,0,0,0]
[null,null,null,null,null,null,null,null,0,null,null,0,0,0]
[null,null,null,null,null,null,null,null,0,null,null,0,0,0]
[null,null,null,null,null,null,null,null,0,null,null,0,0,0]
[null,null,null,null,null,null,null,null,0,null,null,0,0,0]
[null,null,null,null,null,null,null,null,0,null,null,0,0,0]
[null,null,null,null,null,null,null,null,0,null,null,0,0,0]
[null,null,null,null,null,null,null,null,0,null,null,0,0,0]
[null,null,null,null,null,null,null,null,0,null,null,0,0,0]
[null,null,null,null,null,null,null,null,0,null,null,0,0,0]
[null,null,null,null,null,null,null,null,0,null,null,0,0,0]
[null,null,null,null,null,null,null,null,0,null,null,0,0,0]
[null,null,null,null,null,null,null,null,0,null,null,0,0,0]
[null,null,null,null,null,null,null,null,0,null,null,0,0,0]
[null,null,null,null,null,null,null,null,0,null,null,0,0,0]
[null,null,null,null,null,null,null,null,0,null,null,0,0,0]
[null,null,null,null,null,null,null,null,0,null,null,0,0,0]
[null,null,null,null,null,null,null,null,0,null,null,0,0,0]
[null,null,null,null,null,null,null,null,0,null,null,0,0,0]
[null,null,null,null,null,null,null,null,0,null,null,0,0,0]
[null,null,null,null,null,null,null,null,0,null,null,0,0,0]
[null,null,null,null,null,null,null,null,0,null,null,0,0,0]
[null,null,null,null,null,null,null,null,0,null,null,0,0,0]
[null,null,null,null,null,null,null,null,0,null,null,0,0,0]
[null,null,null,null,null,null,null,null,0,null,null,0,0,0]
[null,null,null,null,null,null,null,null,0,null,null,0,0,0]
[null,null,null,null,null,null,null,null,0,null,null,0,0,0]
[null,null,null,null,null,null,null,null,0,null,null,0,0,0]
[null,null,null,null,null,null,null,null,0,null,null,0,0,0]
[null,null,null,null,null,null,null,null,0,null,null,0,0,0]
[null,null,null,null,null,null,null,null,{"$f":"IF(F582=\"مصري \",G582,G582*H582)","v":0},null,null,{"$f":"IF(E582=\"DR\",I582,0)","v":0},{"$f":"IF(E582=\"CR\",I582,0)","v":0},{"$f":"M582-L582","v":0}]
[null,null,null,null,null,null,null,null,0,null,null,0,0,0]
[null,null,null,null,null,null,null,null,0,null,null,0,0,0]
[null,null,null,null,null,null,null,null,0,null,null,0,0,0]
[null,null,null,null,null,null,null,null,0,null,null,0,0,0]
[null,null,null,null,null,null,null,null,0,null,null,0,0,0]
[null,null,null,null,null,null,null,null,0,null,null,0,0,0]
[null,null,null,null,null,null,null,null,0,null,null,0,0,0]
[null,null,null,null,null,null,null,null,0,null,null,0,0,0]
[null,null,null,null,null,null,null,null,0,null,null,0,0,0]
[null,null,null,null,null,null,null,null,0,null,null,0,0,0]
[null,null,null,null,null,null,null,null,0,null,null,0,0,0]
[null,null,null,null,null,null,null,null,0,null,null,0,0,0]
[null,null,null,null,null,null,null,null,0,null,null,0,0,0]
[null,null,null,null,null,null,null,null,0,null,null,0,0,0]
[null,null,null,null,null,null,null,null,0,null,null,0,0,0]
[null,null,null,null,null,null,null,null,0,null,null,0,0,0]
[null,null,null,null,null,null,null,null,0,null,null,0,0,0]
[null,null,null,null,null,null,null,null,0,null,null,0,0,0]
[null,null,null,null,null,null,null,null,0,null,null,0,0,0]
[null,null,null,null,null,null,null,null,0,null,null,0,0,0]
[null,null,null,null,null,null,null,null,0,null,null,0,0,0]
[null,null,null,null,null,null,null,null,0,null,null,0,0,0]
[null,null,null,null,null,null,null,null,0,null,null,0,0,0]
[null,null,null,null,null,null,null,null,0,null,null,0,0,0]
[null,null,null,null,null,null,null,null,0,null,null,0,0,0]
[null,null,null,null,null,null,null,null,0,null,null,0,0,0]
[null,null,null,null,null,null,null,null,0,null,null,0,0,0]
[null,null,null,null,null,null,null,null,0,null,null,0,0,0]
[null,null,null,null,null,null,null,null,0,null,null,0,0,0]
[null,null,null,null,null,null,null,null,0,null,null,0,0,0]
[null,null,null,null,null,null,null,null,0,null,null,0,0,0]
[null,null,null,null,null,null,null,null,0,null,null,0,0,0]
[null,null,null,null,null,null,null,null,0,null,null,0,0,0]
[null,null,null,null,null,null,null,null,0,null,null,0,0,0]
[null,null,null,null,null,null,null,null,0,null,null,0,0,0]
[null,null,null,null,null,null,null,null,0,null,null,0,0,0]
[null,null,null,null,null,null,null,null,0,null,null,0,0,0]
[null,null,null,null,null,null,null,null,0,null,null,0,0,0]
[null,null,null,null,null,null,null,null,0,null,null,0,0,0]
[null,null,null,null,null,null,null,null,0,null,null,0,0,0]
[null,null,null,null,null,null,null,null,0,null,null,0,0,0]
[null,null,null,null,null,null,null,null,0,null,null,0,0,0]
[null,null,null,null,null,null,null,null,0,null,null,0,0,0]
[null,null,null,null,null,null,null,null,0,null,null,0,0,0]
[null,null,null,null,null,null,null,null,0,null,null,0,0,0]
[null,null,null,null,null,null,null,null,0,null,null,0,0,0]
[null,null,null,null,null,null,null,null,0,null,null,0,0,0]
[null,null,null,null,null,null,null,null,0,null,null,0,0,0]
[null,null,null,null,null,null,null,null,0,null,null,0,0,0]
[null,null,null,null,null,null,null,null,0,null,null,0,0,0]
[null,null,null,null,null,null,null,null,0,null,null,0,0,0]
[null,null,null,null,null,null,null,null,0,null,null,0,0,0]
[null,null,null,null,null,null,null,null,0,null,null,0,0,0]
[null,null,null,null,null,null,null,null,0,null,null,0,0,0]
[null,null,null,null,null,null,null,null,0,null,null,0,0,0]
[null,null,null,null,null,null,null,null,0,null,null,0,0,0]
[null,null,null,null,null,null,null,null,0,null,null,0,0,0]
[null,null,null,null,null,null,null,null,0,null,null,0,0,0]
[null,null,null,null,null,null,null,null,0,null,null,0,0,0]
[null,null,null,null,null,null,null,null,0,null,null,0,0,0]
[null,null,null,null,null,null,null,null,0,null,null,0,0,0]
[null,null,null,null,null,null,null,null,0,null,null,0,0,0]
[null,null,null,null,null,null,null,null,0,null,null,0,0,0]
[null,null,null,null,null,null,null,null,{"$f":"IF(F646=\"مصري \",G646,G646*H646)","v":0},null,null,{"$f":"IF(E646=\"DR\",I646,0)","v":0},{"$f":"IF(E646=\"CR\",I646,0)","v":0},{"$f":"M646-L646","v":0}]
[null,null,null,null,null,null,null,null,0,null,null,0,0,0]
[null,null,null,null,null,null,null,null,0,null,null,0,0,0]
[null,null,null,null,null,null,null,null,0,null,null,0,0,0]
[null,null,null,null,null,null,null,null,0,null,null,0,0,0]
[null,null,null,null,null,null,null,null,0,null,null,0,0,0]
[null,null,null,null,null,null,null,null,0,null,null,0,0,0]
[null,null,null,null,null,null,null,null,0,null,null,0,0,0]
[null,null,null,null,null,null,null,null,0,null,null,0,0,0]
[null,null,null,null,null,null,null,null,0,null,null,0,0,0]
[null,null,null,null,null,null,null,null,0,null,null,0,0,0]
[null,null,null,null,null,null,null,null,0,null,null,0,0,0]
[null,null,null,null,null,null,null,null,0,null,null,0,0,0]
[null,null,null,null,null,null,null,null,0,null,null,0,0,0]
[null,null,null,null,null,null,null,null,0,null,null,0,0,0]
[null,null,null,null,null,null,null,null,0,null,null,0,0,0]
[null,null,null,null,null,null,null,null,0,null,null,0,0,0]
[null,null,null,null,null,null,null,null,0,null,null,0,0,0]
[null,null,null,null,null,null,null,null,0,null,null,0,0,0]
[null,null,null,null,null,null,null,null,0,null,null,0,0,0]
[null,null,null,null,null,null,null,null,0,null,null,0,0,0]
[null,null,null,null,null,null,null,null,0,null,null,0,0,0]
[null,null,null,null,null,null,null,null,0,null,null,0,0,0]
[null,null,null,null,null,null,null,null,0,null,null,0,0,0]
[null,null,null,null,null,null,null,null,0,null,null,0,0,0]
[null,null,null,null,null,null,null,null,0,null,null,0,0,0]
[null,null,null,null,null,null,null,null,0,null,null,0,0,0]
[null,null,null,null,null,null,null,null,0,null,null,0,0,0]
[null,null,null,null,null,null,null,null,0,null,null,0,0,0]
[null,null,null,null,null,null,null,null,0,null,null,0,0,0]
[null,null,null,null,null,null,null,null,0,null,null,0,0,0]
[null,null,null,null,null,null,null,null,0,null,null,0,0,0]
[null,null,null,null,null,null,null,null,0,null,null,0,0,0]
[null,null,null,null,null,null,null,null,0,null,null,0,0,0]
[null,null,null,null,null,null,null,null,0,null,null,0,0,0]
[null,null,null,null,null,null,null,null,0,null,null,0,0,0]
[null,null,null,null,null,null,null,null,0,null,null,0,0,0]
[null,null,null,null,null,null,null,null,0,null,null,0,0,0]
[null,null,null,null,null,null,null,null,0,null,null,0,0,0]
[null,null,null,null,null,null,null,null,0,null,null,0,0,0]
[null,null,null,null,null,null,null,null,0,null,null,0,0,0]
[null,null,null,null,null,null,null,null,0,null,null,0,0,0]
[null,null,null,null,null,null,null,null,0,null,null,0,0,0]
[null,null,null,null,null,null,null,null,0,null,null,0,0,0]
[null,null,null,null,null,null,null,null,0,null,null,0,0,0]
[null,null,null,null,null,null,null,null,0,null,null,0,0,0]
[null,null,null,null,null,null,null,null,0,null,null,0,0,0]
[null,null,null,null,null,null,null,null,0,null,null,0,0,0]
[null,null,null,null,null,null,null,null,0,null,null,0,0,0]
[null,null,null,null,null,null,null,null,0,null,null,0,0,0]
[null,null,null,null,null,null,null,null,0,null,null,0,0,0]
[null,null,null,null,null,null,null,null,0,null,null,0,0,0]
[null,null,null,null,null,null,null,null,0,null,null,0,0,0]
[null,null,null,null,null,null,null,null,0,null,null,0,0,0]
[null,null,null,null,null,null,null,null,0,null,null,0,0,0]
[null,null,null,null,null,null,null,null,0,null,null,0,0,0]
[null,null,null,null,null,null,null,null,0,null,null,0,0,0]
[null,null,null,null,null,null,null,null,0,null,null,0,0,0]
[null,null,null,null,null,null,null,null,0,null,null,0,0,0]
[null,null,null,null,null,null,null,null,0,null,null,0,0,0]
[null,null,null,null,null,null,null,null,0,null,null,0,0,0]
[null,null,null,null,null,null,null,null,0,null,null,0,0,0]
[null,null,null,null,null,null,null,null,0,null,null,0,0,0]
[null,null,null,null,null,null,null,null,0,null,null,0,0,0]
[null,null,null,null,null,null,null,null,{"$f":"IF(F710=\"مصري \",G710,G710*H710)","v":0},null,null,{"$f":"IF(E710=\"DR\",I710,0)","v":0},{"$f":"IF(E710=\"CR\",I710,0)","v":0},{"$f":"M710-L710","v":0}]
[null,null,null,null,null,null,null,null,0,null,null,0,0,0]
[null,null,null,null,null,null,null,null,0,null,null,0,0,0]
[null,null,null,null,null,null,null,null,0,null,null,0,0,0]
[null,null,null,null,null,null,null,null,0,null,null,0,0,0]
[null,null,null,null,null,null,null,null,0,null,null,0,0,0]
[null,null,null,null,null,null,null,null,0,null,null,0,0,0]
[null,null,null,null,null,null,null,null,0,null,null,0,0,0]
[null,null,null,null,null,null,null,null,0,null,null,0,0,0]
[null,null,null,null,null,null,null,null,0,null,null,0,0,0]
[null,null,null,null,null,null,null,null,0,null,null,0,0,0]
[null,null,null,null,null,null,null,null,0,null,null,0,0,0]
[null,null,null,null,null,null,null,null,0,null,null,0,0,0]
[null,null,null,null,null,null,null,null,0,null,null,0,0,0]
[null,null,null,null,null,null,null,null,0,null,null,0,0,0]
[null,null,null,null,null,null,null,null,0,null,null,0,0,0]
[null,null,null,null,null,null,null,null,0,null,null,0,0,0]
[null,null,null,null,null,null,null,null,0,null,null,0,0,0]
[null,null,null,null,null,null,null,null,0,null,null,0,0,0]
[null,null,null,null,null,null,null,null,0,null,null,0,0,0]
[null,null,null,null,null,null,null,null,0,null,null,0,0,0]
[null,null,null,null,null,null,null,null,0,null,null,0,0,0]
[null,null,null,null,null,null,null,null,0,null,null,0,0,0]
[null,null,null,null,null,null,null,null,0,null,null,0,0,0]
[null,null,null,null,null,null,null,null,0,null,null,0,0,0]
[null,null,null,null,null,null,null,null,0,null,null,0,0,0]
[null,null,null,null,null,null,null,null,0,null,null,0,0,0]
[null,null,null,null,null,null,null,null,0,null,null,0,0,0]
[null,null,null,null,null,null,null,null,0,null,null,0,0,0]
[null,null,null,null,null,null,null,null,0,null,null,0,0,0]
[null,null,null,null,null,null,null,null,0,null,null,0,0,0]
[null,null,null,null,null,null,null,null,0,null,null,0,0,0]
[null,null,null,null,null,null,null,null,0,null,null,0,0,0]
[null,null,null,null,null,null,null,null,0,null,null,0,0,0]
[null,null,null,null,null,null,null,null,0,null,null,0,0,0]
[null,null,null,null,null,null,null,null,0,null,null,0,0,0]
[null,null,null,null,null,null,null,null,0,null,null,0,0,0]
[null,null,null,null,null,null,null,null,0,null,null,0,0,0]
[null,null,null,null,null,null,null,null,0,null,null,0,0,0]
[null,null,null,null,null,null,null,null,0,null,null,0,0,0]
[null,null,null,null,null,null,null,null,0,null,null,0,0,0]
[null,null,null,null,null,null,null,null,0,null,null,0,0,0]
[null,null,null,null,null,null,null,null,0,null,null,0,0,0]
[null,null,null,null,null,null,null,null,0,null,null,0,0,0]
[null,null,null,null,null,null,null,null,0,null,null,0,0,0]
[null,null,null,null,null,null,null,null,0,null,null,0,0,0]
[null,null,null,null,null,null,null,null,0,null,null,0,0,0]
[null,null,null,null,null,null,null,null,0,null,null,0,0,0]
[null,null,null,null,null,null,null,null,0,null,null,0,0,0]
[null,null,null,null,null,null,null,null,0,null,null,0,0,0]
[null,null,null,null,null,null,null,null,0,null,null,0,0,0]
[null,null,null,null,null,null,null,null,0,null,null,0,0,0]
[null,null,null,null,null,null,null,null,0,null,null,0,0,0]
[null,null,null,null,null,null,null,null,0,null,null,0,0,0]
[null,null,null,null,null,null,null,null,0,null,null,0,0,0]
[null,null,null,null,null,null,null,null,0,null,null,0,0,0]
[null,null,null,null,null,null,null,null,0,null,null,0,0,0]
[null,null,null,null,null,null,null,null,0,null,null,0,0,0]
[null,null,null,null,null,null,null,null,0,null,null,0,0,0]
[null,null,null,null,null,null,null,null,0,null,null,0,0,0]
[null,null,null,null,null,null,null,null,0,null,null,0,0,0]
[null,null,null,null,null,null,null,null,0,null,null,0,0,0]
[null,null,null,null,null,null,null,null,0,null,null,0,0,0]
[null,null,null,null,null,null,null,null,0,null,null,0,0,0]
[null,null,null,null,null,null,null,null,{"$f":"IF(F774=\"مصري \",G774,G774*H774)","v":0},null,null,{"$f":"IF(E774=\"DR\",I774,0)","v":0},{"$f":"IF(E774=\"CR\",I774,0)","v":0},{"$f":"M774-L774","v":0}]
[null,null,null,null,null,null,null,null,0,null,null,0,0,0]
[null,null,null,null,null,null,null,null,0,null,null,0,0,0]
[null,null,null,null,null,null,null,null,0,null,null,0,0,0]
[null,null,null,null,null,null,null,null,0,null,null,0,0,0]
[null,null,null,null,null,null,null,null,0,null,null,0,0,0]
[null,null,null,null,null,null,null,null,0,null,null,0,0,0]
[null,null,null,null,null,null,null,null,0,null,null,0,0,0]
[null,null,null,null,null,null,null,null,0,null,null,0,0,0]
[null,null,null,null,null,null,null,null,0,null,null,0,0,0]
[null,null,null,null,null,null,null,null,0,null,null,0,0,0]
[null,null,null,null,null,null,null,null,0,null,null,0,0,0]
[null,null,null,null,null,null,null,null,0,null,null,0,0,0]
[null,null,null,null,null,null,null,null,0,null,null,0,0,0]
[null,null,null,null,null,null,null,null,0,null,null,0,0,0]
[null,null,null,null,null,null,null,null,0,null,null,0,0,0]
[null,null,null,null,null,null,null,null,0,null,null,0,0,0]
[null,null,null,null,null,null,null,null,0,null,null,0,0,0]
[null,null,null,null,null,null,null,null,0,null,null,0,0,0]
[null,null,null,null,null,null,null,null,0,null,null,0,0,0]
[null,null,null,null,null,null,null,null,0,null,null,0,0,0]
[null,null,null,null,null,null,null,null,0,null,null,0,0,0]
[null,null,null,null,null,null,null,null,0,null,null,0,0,0]
[null,null,null,null,null,null,null,null,0,null,null,0,0,0]
[null,null,null,null,null,null,null,null,0,null,null,0,0,0]
[null,null,null,null,null,null,null,null,0,null,null,0,0,0]
[null,null,null,null,null,null,null,null,0,null,null,0,0,0]
[null,null,null,null,null,null,null,null,0,null,null,0,0,0]
[null,null,null,null,null,null,null,null,0,null,null,0,0,0]
[null,null,null,null,null,null,null,null,0,null,null,0,0,0]
[null,null,null,null,null,null,null,null,0,null,null,0,0,0]
[null,null,null,null,null,null,null,null,0,null,null,0,0,0]
[null,null,null,null,null,null,null,null,0,null,null,0,0,0]
[null,null,null,null,null,null,null,null,0,null,null,0,0,0]
[null,null,null,null,null,null,null,null,0,null,null,0,0,0]
[null,null,null,null,null,null,null,null,0,null,null,0,0,0]
[null,null,null,null,null,null,null,null,0,null,null,0,0,0]
[null,null,null,null,null,null,null,null,0,null,null,0,0,0]
[null,null,null,null,null,null,null,null,0,null,null,0,0,0]
[null,null,null,null,null,null,null,null,0,null,null,0,0,0]
[null,null,null,null,null,null,null,null,0,null,null,0,0,0]
[null,null,null,null,null,null,null,null,0,null,null,0,0,0]
[null,null,null,null,null,null,null,null,0,null,null,0,0,0]
[null,null,null,null,null,null,null,null,0,null,null,0,0,0]
[null,null,null,null,null,null,null,null,0,null,null,0,0,0]
[null,null,null,null,null,null,null,null,0,null,null,0,0,0]
[null,null,null,null,null,null,null,null,0,null,null,0,0,0]
[null,null,null,null,null,null,null,null,0,null,null,0,0,0]
[null,null,null,null,null,null,null,null,0,null,null,0,0,0]
[null,null,null,null,null,null,null,null,0,null,null,0,0,0]
[null,null,null,null,null,null,null,null,0,null,null,0,0,0]
[null,null,null,null,null,null,null,null,0,null,null,0,0,0]
[null,null,null,null,null,null,null,null,0,null,null,0,0,0]
[null,null,null,null,null,null,null,null,0,null,null,0,0,0]
[null,null,null,null,null,null,null,null,0,null,null,0,0,0]
[null,null,null,null,null,null,null,null,0,null,null,0,0,0]
[null,null,null,null,null,null,null,null,0,null,null,0,0,0]
[null,null,null,null,null,null,null,null,0,null,null,0,0,0]
[null,null,null,null,null,null,null,null,0,null,null,0,0,0]
[null,null,null,null,null,null,null,null,0,null,null,0,0,0]
[null,null,null,null,null,null,null,null,0,null,null,0,0,0]
[null,null,null,null,null,null,null,null,0,null,null,0,0,0]
[null,null,null,null,null,null,null,null,0,null,null,0,0,0]
[null,null,null,null,null,null,null,null,0,null,null,0,0,0]
[null,null,null,null,null,null,null,null,{"$f":"IF(F838=\"مصري \",G838,G838*H838)","v":0},null,null,{"$f":"IF(E838=\"DR\",I838,0)","v":0},{"$f":"IF(E838=\"CR\",I838,0)","v":0},{"$f":"M838-L838","v":0}]
[null,null,null,null,null,null,null,null,0,null,null,0,0,0]
[null,null,null,null,null,null,null,null,0,null,null,0,0,0]
[null,null,null,null,null,null,null,null,0,null,null,0,0,0]
[null,null,null,null,null,null,null,null,0,null,null,0,0,0]
[null,null,null,null,null,null,null,null,0,null,null,0,0,0]
[null,null,null,null,null,null,null,null,0,null,null,0,0,0]
[null,null,null,null,null,null,null,null,0,null,null,0,0,0]
[null,null,null,null,null,null,null,null,0,null,null,0,0,0]
[null,null,null,null,null,null,null,null,0,null,null,0,0,0]
[null,null,null,null,null,null,null,null,0,null,null,0,0,0]
[null,null,null,null,null,null,null,null,0,null,null,0,0,0]
[null,null,null,null,null,null,null,null,0,null,null,0,0,0]
[null,null,null,null,null,null,null,null,0,null,null,0,0,0]
[null,null,null,null,null,null,null,null,0,null,null,0,0,0]
[null,null,null,null,null,null,null,null,0,null,null,0,0,0]
[null,null,null,null,null,null,null,null,0,null,null,0,0,0]
[null,null,null,null,null,null,null,null,0,null,null,0,0,0]
[null,null,null,null,null,null,null,null,0,null,null,0,0,0]
[null,null,null,null,null,null,null,null,0,null,null,0,0,0]
[null,null,null,null,null,null,null,null,0,null,null,0,0,0]
[null,null,null,null,null,null,null,null,0,null,null,0,0,0]
[null,null,null,null,null,null,null,null,0,null,null,0,0,0]
[null,null,null,null,null,null,null,null,0,null,null,0,0,0]
[null,null,null,null,null,null,null,null,0,null,null,0,0,0]
[null,null,null,null,null,null,null,null,0,null,null,0,0,0]
[null,null,null,null,null,null,null,null,0,null,null,0,0,0]
[null,null,null,null,null,null,null,null,0,null,null,0,0,0]
[null,null,null,null,null,null,null,null,0,null,null,0,0,0]
[null,null,null,null,null,null,null,null,0,null,null,0,0,0]
[null,null,null,null,null,null,null,null,0,null,null,0,0,0]
[null,null,null,null,null,null,null,null,0,null,null,0,0,0]
[null,null,null,null,null,null,null,null,0,null,null,0,0,0]
[null,null,null,null,null,null,null,null,0,null,null,0,0,0]
[null,null,null,null,null,null,null,null,0,null,null,0,0,0]
[null,null,null,null,null,null,null,null,0,null,null,0,0,0]
[null,null,null,null,null,null,null,null,0,null,null,0,0,0]
[null,null,null,null,null,null,null,null,0,null,null,0,0,0]
[null,null,null,null,null,null,null,null,0,null,null,0,0,0]
[null,null,null,null,null,null,null,null,0,null,null,0,0,0]
[null,null,null,null,null,null,null,null,0,null,null,0,0,0]
[null,null,null,null,null,null,null,null,0,null,null,0,0,0]
[null,null,null,null,null,null,null,null,0,null,null,0,0,0]
[null,null,null,null,null,null,null,null,0,null,null,0,0,0]
[null,null,null,null,null,null,null,null,0,null,null,0,0,0]
[null,null,null,null,null,null,null,null,0,null,null,0,0,0]
[null,null,null,null,null,null,null,null,0,null,null,0,0,0]
[null,null,null,null,null,null,null,null,0,null,null,0,0,0]
[null,null,null,null,null,null,null,null,0,null,null,0,0,0]
[null,null,null,null,null,null,null,null,0,null,null,0,0,0]
[null,null,null,null,null,null,null,null,0,null,null,0,0,0]
[null,null,null,null,null,null,null,null,0,null,null,0,0,0]
[null,null,null,null,null,null,null,null,0,null,null,0,0,0]
[null,null,null,null,null,null,null,null,0,null,null,0,0,0]
[null,null,null,null,null,null,null,null,0,null,null,0,0,0]
[null,null,null,null,null,null,null,null,0,null,null,0,0,0]
[null,null,null,null,null,null,null,null,0,null,null,0,0,0]
[null,null,null,null,null,null,null,null,0,null,null,0,0,0]
[null,null,null,null,null,null,null,null,0,null,null,0,0,0]
[null,null,null,null,null,null,null,null,0,null,null,0,0,0]
[null,null,null,null,null,null,null,null,0,null,null,0,0,0]
[null,null,null,null,null,null,null,null,0,null,null,0,0,0]
[null,null,null,null,null,null,null,null,0,null,null,0,0,0]
[null,null,null,null,null,null,null,null,0,null,null,0,0,0]
[null,null,null,null,null,null,null,null,{"$f":"IF(F902=\"مصري \",G902,G902*H902)","v":0},null,null,{"$f":"IF(E902=\"DR\",I902,0)","v":0},{"$f":"IF(E902=\"CR\",I902,0)","v":0},{"$f":"M902-L902","v":0}]
[null,null,null,null,null,null,null,null,0,null,null,0,0,0]
[null,null,null,null,null,null,null,null,0,null,null,0,0,0]
[null,null,null,null,null,null,null,null,0,null,null,0,0,0]
[null,null,null,null,null,null,null,null,0,null,null,0,0,0]
[null,null,null,null,null,null,null,null,0,null,null,0,0,0]
[null,null,null,null,null,null,null,null,0,null,null,0,0,0]
[null,null,null,null,null,null,null,null,0,null,null,0,0,0]
[null,null,null,null,null,null,null,null,0,null,null,0,0,0]
[null,null,null,null,null,null,null,null,0,null,null,0,0,0]
[null,null,null,null,null,null,null,null,0,null,null,0,0,0]
[null,null,null,null,null,null,null,null,0,null,null,0,0,0]
[null,null,null,null,null,null,null,null,0,null,null,0,0,0]
[null,null,null,null,null,null,null,null,0,null,null,0,0,0]
[null,null,null,null,null,null,null,null,0,null,null,0,0,0]
[null,null,null,null,null,null,null,null,0,null,null,0,0,0]
[null,null,null,null,null,null,null,null,0,null,null,0,0,0]
[null,null,null,null,null,null,null,null,0,null,null,0,0,0]
[null,null,null,null,null,null,null,null,0,null,null,0,0,0]
[null,null,null,null,null,null,null,null,0,null,null,0,0,0]
[null,null,null,null,null,null,null,null,0,null,null,0,0,0]
[null,null,null,null,null,null,null,null,0,null,null,0,0,0]
[null,null,null,null,null,null,null,null,0,null,null,0,0,0]
[null,null,null,null,null,null,null,null,0,null,null,0,0,0]
[null,null,null,null,null,null,null,null,0,null,null,0,0,0]
[null,null,null,null,null,null,null,null,0,null,null,0,0,0]
[null,null,null,null,null,null,null,null,0,null,null,0,0,0]
[null,null,null,null,null,null,null,null,0,null,null,0,0,0]
[null,null,null,null,null,null,null,null,0,null,null,0,0,0]
[null,null,null,null,null,null,null,null,0,null,null,0,0,0]
[null,null,null,null,null,null,null,null,0,null,null,0,0,0]
[null,null,null,null,null,null,null,null,0,null,null,0,0,0]
[null,null,null,null,null,null,null,null,0,null,null,0,0,0]
[null,null,null,null,null,null,null,null,0,null,null,0,0,0]
[null,null,null,null,null,null,null,null,0,null,null,0,0,0]
[null,null,null,null,null,null,null,null,0,null,null,0,0,0]
[null,null,null,null,null,null,null,null,0,null,null,0,0,0]
[null,null,null,null,null,null,null,null,0,null,null,0,0,0]
[null,null,null,null,null,null,null,null,0,null,null,0,0,0]
[null,null,null,null,null,null,null,null,0,null,null,0,0,0]
[null,null,null,null,null,null,null,null,0,null,null,0,0,0]
[null,null,null,null,null,null,null,null,0,null,null,0,0,0]
[null,null,null,null,null,null,null,null,0,null,null,0,0,0]
[null,null,null,null,null,null,null,null,0,null,null,0,0,0]
[null,null,null,null,null,null,null,null,0,null,null,0,0,0]
[null,null,null,null,null,null,null,null,0,null,null,0,0,0]
[null,null,null,null,null,null,null,null,0,null,null,0,0,0]
[null,null,null,null,null,null,null,null,0,null,null,0,0,0]
[null,null,null,null,null,null,null,null,0,null,null,0,0,0]
[null,null,null,null,null,null,null,null,0,null,null,0,0,0]
[null,null,null,null,null,null,null,null,0,null,null,0,0,0]
[null,null,null,null,null,null,null,null,0,null,null,0,0,0]
[null,null,null,null,null,null,null,null,0,null,null,0,0,0]
[null,null,null,null,null,null,null,null,0,null,null,0,0,0]
[null,null,null,null,null,null,null,null,0,null,null,0,0,0]
[null,null,null,null,null,null,null,null,0,null,null,0,0,0]
[null,null,null,null,null,null,null,null,0,null,null,0,0,0]
[null,null,null,null,null,null,null,null,0,null,null,0,0,0]
[null,null,null,null,null,null,null,null,0,null,null,0,0,0]
[null,null,null,null,null,null,null,null,0,null,null,0,0,0]
[null,null,null,null,null,null,null,null,0,null,null,0,0,0]
[null,null,null,null,null,null,null,null,0,null,null,0,0,0]
[null,null,null,null,null,null,null,null,0,null,null,0,0,0]
[null,null,null,null,null,null,null,null,0,null,null,0,0,0]
[null,null,null,null,null,null,null,null,{"$f":"IF(F966=\"مصري \",G966,G966*H966)","v":0},null,null,{"$f":"IF(E966=\"DR\",I966,0)","v":0},{"$f":"IF(E966=\"CR\",I966,0)","v":0},{"$f":"M966-L966","v":0}]
[null,null,null,null,null,null,null,null,0,null,null,0,0,0]
[null,null,null,null,null,null,null,null,0,null,null,0,0,0]
[null,null,null,null,null,null,null,null,0,null,null,0,0,0]
[null,null,null,null,null,null,null,null,0,null,null,0,0,0]
[null,null,null,null,null,null,null,null,0,null,null,0,0,0]
[null,null,null,null,null,null,null,null,0,null,null,0,0,0]
[null,null,null,null,null,null,null,null,0,null,null,0,0,0]
[null,null,null,null,null,null,null,null,0,null,null,0,0,0]
[null,null,null,null,null,null,null,null,0,null,null,0,0,0]
[null,null,null,null,null,null,null,null,0,null,null,0,0,0]
[null,null,null,null,null,null,null,null,0,null,null,0,0,0]
[null,null,null,null,null,null,null,null,0,null,null,0,0,0]
[null,null,null,null,null,null,null,null,0,null,null,0,0,0]
[null,null,null,null,null,null,null,null,0,null,null,0,0,0]
[null,null,null,null,null,null,null,null,0,null,null,0,0,0]
[null,null,null,null,null,null,null,null,0,null,null,0,0,0]
[null,null,null,null,null,null,null,null,0,null,null,0,0,0]
[null,null,null,null,null,null,null,null,0,null,null,0,0,0]
[null,null,null,null,null,null,null,null,0,null,null,0,0,0]
[null,null,null,null,null,null,null,null,0,null,null,0,0,0]
[null,null,null,null,null,null,null,null,0,null,null,0,0,0]
[null,null,null,null,null,null,null,null,0,null,null,0,0,0]
[null,null,null,null,null,null,null,null,0,null,null,0,0,0]
[null,null,null,null,null,null,null,null,0,null,null,0,0,0]
[null,null,null,null,null,null,null,null,0,null,null,0,0,0]
[null,null,null,null,null,null,null,null,0,null,null,0,0,0]
[null,null,null,null,null,null,null,null,0,null,null,0,0,0]
[null,null,null,null,null,null,null,null,0,null,null,0,0,0]
[null,null,null,null,null,null,null,null,0,null,null,0,0,0]
[null,null,null,null,null,null,null,null,0,null,null,0,0,0]
[null,null,null,null,null,null,null,null,0,null,null,0,0,0]
[null,null,null,null,null,null,null,null,0,null,null,0,0,0]
[null,null,null,null,null,null,null,null,0,null,null,0,0,0]
[null,null,null,null,null,null,null,null,0,null,null,0,0,0]
[null,null,null,null,null,null,null,null,0,null,null,0,0,0]
[null,null,null,null,null,null,null,null,0,null,null,0,0,0]
[null,null,null,null,null,null,null,null,null,null,null,{"$f":"SUM(L5:L1002)","v":0},{"$f":"SUM(M5:M1002)","v":0},0]

{"sheet":"بنك عوده","index":4,"n_rows":1003,"n_cols":33,"rows_kept":1003,"cut":false,"hidden":false,"merged":[[1,9,2,12],[1,0,2,1],[1,2,2,2],[1,5,2,6],[1,7,2,7],[1,8,2,8],[1,3,2,4]]}
[]
["تاريخ اليوم",null,{"$f":"TODAY()","v":"2020-07-19"},"بنك عوده",null,"الرصيد حتى",null,{"$f":"VLOOKUP(1000000000,B5:B1002,1)","v":{"$error":"#N/A"}},{"$f":"N1003","v":0},{"$f":"CurrText(I2)","v":"صفر جنية"}]
[]
["م","التاريخ ","طريقة التحصيل ","طريقة السحب","نوع الحركة ","نوع الحساب ","المبلغ","سعر الصرف","القيمة بالجنية المصري","رقم الوحده ","البيان ","مدين ","دائن ","الرصيد",null,null,null,null,null,null,null,null,null,null,null,null,null,null,"نوع الحساب","نوع الحركة ",null,"طريقة التحصيل","طريقة السحب"]
[null,null,null,null,null,null,null,null,{"$f":"IF(F5=\"مصري \",G5,G5*H5)","v":0},null,null,{"$f":"IF(E5=\"DR\",I5,0)","v":0},{"$f":"IF(E5=\"CR\",I5,0)","v":0},{"$f":"M5-L5","v":0},null,null,null,null,null,null,null,null,null,null,null,null,null,null,"عوده 1","CR",null,"تحويل"]
[null,null,null,null,null,null,null,null,{"$f":"IF(F6=\"مصري \",G6,G6*H6)","v":0},null,null,{"$f":"IF(E6=\"DR\",I6,0)","v":0},{"$f":"IF(E6=\"CR\",I6,0)","v":0},{"$f":"M6-L6","v":0},null,null,null,null,null,null,null,null,null,null,null,null,null,null,"عوده 2","DR",null,"تحويل داخلي"]
[null,null,null,null,null,null,null,null,0,null,null,0,0,0,null,null,null,null,null,null,null,null,null,null,null,null,null,null,"عوده 3",null,null,"تحويل للحساب"]
[null,null,null,null,null,null,null,null,0,null,null,0,0,0,null,null,null,null,null,null,null,null,null,null,null,null,null,null,"عوده 4",null,null,"شيك "]
[null,null,null,null,null,null,null,null,0,null,null,0,0,0,null,null,null,null,null,null,null,null,null,null,null,null,null,null,null,null,null,"فيزا"]
[null,null,null,null,null,null,null,null,0,null,null,0,0,0,null,null,null,null,null,null,null,null,null,null,null,null,null,null,null,null,null,"ايداع نقدي"]
[null,null,null,null,null,null,null,null,0,null,null,0,0,0]
[null,null,null,null,null,null,null,null,0,null,null,0,0,0]
[null,null,null,null,null,null,null,null,0,null,null,0,0,0]
[null,null,null,null,null,null,null,null,0,null,null,0,0,0]
[null,null,null,null,null,null,null,null,0,null,null,0,0,0]
[null,null,null,null,null,null,null,null,0,null,null,0,0,0]
[null,null,null,null,null,null,null,null,0,null,null,0,0,0]
[null,null,null,null,null,null,null,null,0,null,null,0,0,0]
[null,null,null,null,null,null,null,null,0,null,null,0,0,0]
[null,null,null,null,null,null,null,null,0,null,null,0,0,0]
[null,null,null,null,null,null,null,null,0,null,null,0,0,0]
[null,null,null,null,null,null,null,null,0,null,null,0,0,0]
[null,null,null,null,null,null,null,null,0,null,null,0,0,0]
[null,null,null,null,null,null,null,null,0,null,null,0,0,0]
[null,null,null,null,null,null,null,null,0,null,null,0,0,0]
[null,null,null,null,null,null,null,null,0,null,null,0,0,0]
[null,null,null,null,null,null,null,null,0,null,null,0,0,0]
[null,null,null,null,null,null,null,null,0,null,null,0,0,0]
[null,null,null,null,null,null,null,null,0,null,null,0,0,0]
[null,null,null,null,null,null,null,null,0,null,null,0,0,0]
[null,null,null,null,null,null,null,null,0,null,null,0,0,0]
[null,null,null,null,null,null,null,null,0,null,null,0,0,0]
[null,null,null,null,null,null,null,null,0,null,null,0,0,0]
[null,null,null,null,null,null,null,null,0,null,null,0,0,0]
[null,null,null,null,null,null,null,null,0,null,null,0,0,0]
[null,null,null,null,null,null,null,null,0,null,null,0,0,0]
[null,null,null,null,null,null,null,null,0,null,null,0,0,0]
[null,null,null,null,null,null,null,null,0,null,null,0,0,0]
[null,null,null,null,null,null,null,null,0,null,null,0,0,0]
[null,null,null,null,null,null,null,null,0,null,null,0,0,0]
[null,null,null,null,null,null,null,null,0,null,null,0,0,0]
[null,null,null,null,null,null,null,null,0,null,null,0,0,0]
[null,null,null,null,null,null,null,null,0,null,null,0,0,0]
[null,null,null,null,null,null,null,null,0,null,null,0,0,0]
[null,null,null,null,null,null,null,null,0,null,null,0,0,0]
[null,null,null,null,null,null,null,null,0,null,null,0,0,0]
[null,null,null,null,null,null,null,null,0,null,null,0,0,0]
[null,null,null,null,null,null,null,null,0,null,null,0,0,0]
[null,null,null,null,null,null,null,null,0,null,null,0,0,0]
[null,null,null,null,null,null,null,null,0,null,null,0,0,0]
[null,null,null,null,null,null,null,null,0,null,null,0,0,0]
[null,null,null,null,null,null,null,null,0,null,null,0,0,0]
[null,null,null,null,null,null,null,null,0,null,null,0,0,0]
[null,null,null,null,null,null,null,null,0,null,null,0,0,0]
[null,null,null,null,null,null,null,null,0,null,null,0,0,0]
[null,null,null,null,null,null,null,null,0,null,null,0,0,0]
[null,null,null,null,null,null,null,null,0,null,null,0,0,0]
[null,null,null,null,null,null,null,null,0,null,null,0,0,0]
[null,null,null,null,null,null,null,null,0,null,null,0,0,0]
[null,null,null,null,null,null,null,null,0,null,null,0,0,0]
[null,null,null,null,null,null,null,null,0,null,null,0,0,0]
[null,null,null,null,null,null,null,null,0,null,null,0,0,0]
[null,null,null,null,null,null,null,null,0,null,null,0,0,0]
[null,null,null,null,null,null,null,null,0,null,null,0,0,0]
[null,null,null,null,null,null,null,null,0,null,null,0,0,0]
[null,null,null,null,null,null,null,null,0,null,null,0,0,0]
[null,null,null,null,null,null,null,null,0,null,null,0,0,0]
[null,null,null,null,null,null,null,null,0,null,null,0,0,0]
[null,null,null,null,null,null,null,null,0,null,null,0,0,0]
[null,null,null,null,null,null,null,null,{"$f":"IF(F70=\"مصري \",G70,G70*H70)","v":0},null,null,{"$f":"IF(E70=\"DR\",I70,0)","v":0},{"$f":"IF(E70=\"CR\",I70,0)","v":0},{"$f":"M70-L70","v":0}]
[null,null,null,null,null,null,null,null,0,null,null,0,0,0]
[null,null,null,null,null,null,null,null,0,null,null,0,0,0]
[null,null,null,null,null,null,null,null,0,null,null,0,0,0]
[null,null,null,null,null,null,null,null,0,null,null,0,0,0]
[null,null,null,null,null,null,null,null,0,null,null,0,0,0]
[null,null,null,null,null,null,null,null,0,null,null,0,0,0]
[null,null,null,null,null,null,null,null,0,null,null,0,0,0]
[null,null,null,null,null,null,null,null,0,null,null,0,0,0]
[null,null,null,null,null,null,null,null,0,null,null,0,0,0]
[null,null,null,null,null,null,null,null,0,null,null,0,0,0]
[null,null,null,null,null,null,null,null,0,null,null,0,0,0]
[null,null,null,null,null,null,null,null,0,null,null,0,0,0]
[null,null,null,null,null,null,null,null,0,null,null,0,0,0]
[null,null,null,null,null,null,null,null,0,null,null,0,0,0]
[null,null,null,null,null,null,null,null,0,null,null,0,0,0]
[null,null,null,null,null,null,null,null,0,null,null,0,0,0]
[null,null,null,null,null,null,null,null,0,null,null,0,0,0]
[null,null,null,null,null,null,null,null,0,null,null,0,0,0]
[null,null,null,null,null,null,null,null,0,null,null,0,0,0]
[null,null,null,null,null,null,null,null,0,null,null,0,0,0]
[null,null,null,null,null,null,null,null,0,null,null,0,0,0]
[null,null,null,null,null,null,null,null,0,null,null,0,0,0]
[null,null,null,null,null,null,null,null,0,null,null,0,0,0]
[null,null,null,null,null,null,null,null,0,null,null,0,0,0]
[null,null,null,null,null,null,null,null,0,null,null,0,0,0]
[null,null,null,null,null,null,null,null,0,null,null,0,0,0]
[null,null,null,null,null,null,null,null,0,null,null,0,0,0]
[null,null,null,null,null,null,null,null,0,null,null,0,0,0]
[null,null,null,null,null,null,null,null,0,null,null,0,0,0]
[null,null,null,null,null,null,null,null,0,null,null,0,0,0]
[null,null,null,null,null,null,null,null,0,null,null,0,0,0]
[null,null,null,null,null,null,null,null,0,null,null,0,0,0]
[null,null,null,null,null,null,null,null,0,null,null,0,0,0]
[null,null,null,null,null,null,null,null,0,null,null,0,0,0]
[null,null,null,null,null,null,null,null,0,null,null,0,0,0]
[null,null,null,null,null,null,null,null,0,null,null,0,0,0]
[null,null,null,null,null,null,null,null,0,null,null,0,0,0]
[null,null,null,null,null,null,null,null,0,null,null,0,0,0]
[null,null,null,null,null,null,null,null,0,null,null,0,0,0]
[null,null,null,null,null,null,null,null,0,null,null,0,0,0]
[null,null,null,null,null,null,null,null,0,null,null,0,0,0]
[null,null,null,null,null,null,null,null,0,null,null,0,0,0]
[null,null,null,null,null,null,null,null,0,null,null,0,0,0]
[null,null,null,null,null,null,null,null,0,null,null,0,0,0]
[null,null,null,null,null,null,null,null,0,null,null,0,0,0]
[null,null,null,null,null,null,null,null,0,null,null,0,0,0]
[null,null,null,null,null,null,null,null,0,null,null,0,0,0]
[null,null,null,null,null,null,null,null,0,null,null,0,0,0]
[null,null,null,null,null,null,null,null,0,null,null,0,0,0]
[null,null,null,null,null,null,null,null,0,null,null,0,0,0]
[null,null,null,null,null,null,null,null,0,null,null,0,0,0]
[null,null,null,null,null,null,null,null,0,null,null,0,0,0]
[null,null,null,null,null,null,null,null,0,null,null,0,0,0]
[null,null,null,null,null,null,null,null,0,null,null,0,0,0]
[null,null,null,null,null,null,null,null,0,null,null,0,0,0]
[null,null,null,null,null,null,null,null,0,null,null,0,0,0]
[null,null,null,null,null,null,null,null,0,null,null,0,0,0]
[null,null,null,null,null,null,null,null,0,null,null,0,0,0]
[null,null,null,null,null,null,null,null,0,null,null,0,0,0]
[null,null,null,null,null,null,null,null,0,null,null,0,0,0]
[null,null,null,null,null,null,null,null,0,null,null,0,0,0]
[null,null,null,null,null,null,null,null,0,null,null,0,0,0]
[null,null,null,null,null,null,null,null,0,null,null,0,0,0]
[null,null,null,null,null,null,null,null,{"$f":"IF(F134=\"مصري \",G134,G134*H134)","v":0},null,null,{"$f":"IF(E134=\"DR\",I134,0)","v":0},{"$f":"IF(E134=\"CR\",I134,0)","v":0},{"$f":"M134-L134","v":0}]
[null,null,null,null,null,null,null,null,0,null,null,0,0,0]
[null,null,null,null,null,null,null,null,0,null,null,0,0,0]
[null,null,null,null,null,null,null,null,0,null,null,0,0,0]
[null,null,null,null,null,null,null,null,0,null,null,0,0,0]
[null,null,null,null,null,null,null,null,0,null,null,0,0,0]
[null,null,null,null,null,null,null,null,0,null,null,0,0,0]
[null,null,null,null,null,null,null,null,0,null,null,0,0,0]
[null,null,null,null,null,null,null,null,0,null,null,0,0,0]
[null,null,null,null,null,null,null,null,0,null,null,0,0,0]
[null,null,null,null,null,null,null,null,0,null,null,0,0,0]
[null,null,null,null,null,null,null,null,0,null,null,0,0,0]
[null,null,null,null,null,null,null,null,0,null,null,0,0,0]
[null,null,null,null,null,null,null,null,0,null,null,0,0,0]
[null,null,null,null,null,null,null,null,0,null,null,0,0,0]
[null,null,null,null,null,null,null,null,0,null,null,0,0,0]
[null,null,null,null,null,null,null,null,0,null,null,0,0,0]
[null,null,null,null,null,null,null,null,0,null,null,0,0,0]
[null,null,null,null,null,null,null,null,0,null,null,0,0,0]
[null,null,null,null,null,null,null,null,0,null,null,0,0,0]
[null,null,null,null,null,null,null,null,0,null,null,0,0,0]
[null,null,null,null,null,null,null,null,0,null,null,0,0,0]
[null,null,null,null,null,null,null,null,0,null,null,0,0,0]
[null,null,null,null,null,null,null,null,0,null,null,0,0,0]
[null,null,null,null,null,null,null,null,0,null,null,0,0,0]
[null,null,null,null,null,null,null,null,0,null,null,0,0,0]
[null,null,null,null,null,null,null,null,0,null,null,0,0,0]
[null,null,null,null,null,null,null,null,0,null,null,0,0,0]
[null,null,null,null,null,null,null,null,0,null,null,0,0,0]
[null,null,null,null,null,null,null,null,0,null,null,0,0,0]
[null,null,null,null,null,null,null,null,0,null,null,0,0,0]
[null,null,null,null,null,null,null,null,0,null,null,0,0,0]
[null,null,null,null,null,null,null,null,0,null,null,0,0,0]
[null,null,null,null,null,null,null,null,0,null,null,0,0,0]
[null,null,null,null,null,null,null,null,0,null,null,0,0,0]
[null,null,null,null,null,null,null,null,0,null,null,0,0,0]
[null,null,null,null,null,null,null,null,0,null,null,0,0,0]
[null,null,null,null,null,null,null,null,0,null,null,0,0,0]
[null,null,null,null,null,null,null,null,0,null,null,0,0,0]
[null,null,null,null,null,null,null,null,0,null,null,0,0,0]
[null,null,null,null,null,null,null,null,0,null,null,0,0,0]
[null,null,null,null,null,null,null,null,0,null,null,0,0,0]
[null,null,null,null,null,null,null,null,0,null,null,0,0,0]
[null,null,null,null,null,null,null,null,0,null,null,0,0,0]
[null,null,null,null,null,null,null,null,0,null,null,0,0,0]
[null,null,null,null,null,null,null,null,0,null,null,0,0,0]
[null,null,null,null,null,null,null,null,0,null,null,0,0,0]
[null,null,null,null,null,null,null,null,0,null,null,0,0,0]
[null,null,null,null,null,null,null,null,0,null,null,0,0,0]
[null,null,null,null,null,null,null,null,0,null,null,0,0,0]
[null,null,null,null,null,null,null,null,0,null,null,0,0,0]
[null,null,null,null,null,null,null,null,0,null,null,0,0,0]
[null,null,null,null,null,null,null,null,0,null,null,0,0,0]
[null,null,null,null,null,null,null,null,0,null,null,0,0,0]
[null,null,null,null,null,null,null,null,0,null,null,0,0,0]
[null,null,null,null,null,null,null,null,0,null,null,0,0,0]
[null,null,null,null,null,null,null,null,0,null,null,0,0,0]
[null,null,null,null,null,null,null,null,0,null,null,0,0,0]
[null,null,null,null,null,null,null,null,0,null,null,0,0,0]
[null,null,null,null,null,null,null,null,0,null,null,0,0,0]
[null,null,null,null,null,null,null,null,0,null,null,0,0,0]
[null,null,null,null,null,null,null,null,0,null,null,0,0,0]
[null,null,null,null,null,null,null,null,0,null,null,0,0,0]
[null,null,null,null,null,null,null,null,0,null,null,0,0,0]
[null,null,null,null,null,null,null,null,{"$f":"IF(F198=\"مصري \",G198,G198*H198)","v":0},null,null,{"$f":"IF(E198=\"DR\",I198,0)","v":0},{"$f":"IF(E198=\"CR\",I198,0)","v":0},{"$f":"M198-L198","v":0}]
[null,null,null,null,null,null,null,null,0,null,null,0,0,0]
[null,null,null,null,null,null,null,null,0,null,null,0,0,0]
[null,null,null,null,null,null,null,null,0,null,null,0,0,0]
[null,null,null,null,null,null,null,null,0,null,null,0,0,0]
[null,null,null,null,null,null,null,null,0,null,null,0,0,0]
[null,null,null,null,null,null,null,null,0,null,null,0,0,0]
[null,null,null,null,null,null,null,null,0,null,null,0,0,0]
[null,null,null,null,null,null,null,null,0,null,null,0,0,0]
[null,null,null,null,null,null,null,null,0,null,null,0,0,0]
[null,null,null,null,null,null,null,null,0,null,null,0,0,0]
[null,null,null,null,null,null,null,null,0,null,null,0,0,0]
[null,null,null,null,null,null,null,null,0,null,null,0,0,0]
[null,null,null,null,null,null,null,null,0,null,null,0,0,0]
[null,null,null,null,null,null,null,null,0,null,null,0,0,0]
[null,null,null,null,null,null,null,null,0,null,null,0,0,0]
[null,null,null,null,null,null,null,null,0,null,null,0,0,0]
[null,null,null,null,null,null,null,null,0,null,null,0,0,0]
[null,null,null,null,null,null,null,null,0,null,null,0,0,0]
[null,null,null,null,null,null,null,null,0,null,null,0,0,0]
[null,null,null,null,null,null,null,null,0,null,null,0,0,0]
[null,null,null,null,null,null,null,null,0,null,null,0,0,0]
[null,null,null,null,null,null,null,null,0,null,null,0,0,0]
[null,null,null,null,null,null,null,null,0,null,null,0,0,0]
[null,null,null,null,null,null,null,null,0,null,null,0,0,0]
[null,null,null,null,null,null,null,null,0,null,null,0,0,0]
[null,null,null,null,null,null,null,null,0,null,null,0,0,0]
[null,null,null,null,null,null,null,null,0,null,null,0,0,0]
[null,null,null,null,null,null,null,null,0,null,null,0,0,0]
[null,null,null,null,null,null,null,null,0,null,null,0,0,0]
[null,null,null,null,null,null,null,null,0,null,null,0,0,0]
[null,null,null,null,null,null,null,null,0,null,null,0,0,0]
[null,null,null,null,null,null,null,null,0,null,null,0,0,0]
[null,null,null,null,null,null,null,null,0,null,null,0,0,0]
[null,null,null,null,null,null,null,null,0,null,null,0,0,0]
[null,null,null,null,null,null,null,null,0,null,null,0,0,0]
[null,null,null,null,null,null,null,null,0,null,null,0,0,0]
[null,null,null,null,null,null,null,null,0,null,null,0,0,0]
[null,null,null,null,null,null,null,null,0,null,null,0,0,0]
[null,null,null,null,null,null,null,null,0,null,null,0,0,0]
[null,null,null,null,null,null,null,null,0,null,null,0,0,0]
[null,null,null,null,null,null,null,null,0,null,null,0,0,0]
[null,null,null,null,null,null,null,null,0,null,null,0,0,0]
[null,null,null,null,null,null,null,null,0,null,null,0,0,0]
[null,null,null,null,null,null,null,null,0,null,null,0,0,0]
[null,null,null,null,null,null,null,null,0,null,null,0,0,0]
[null,null,null,null,null,null,null,null,0,null,null,0,0,0]
[null,null,null,null,null,null,null,null,0,null,null,0,0,0]
[null,null,null,null,null,null,null,null,0,null,null,0,0,0]
[null,null,null,null,null,null,null,null,0,null,null,0,0,0]
[null,null,null,null,null,null,null,null,0,null,null,0,0,0]
[null,null,null,null,null,null,null,null,0,null,null,0,0,0]
[null,null,null,null,null,null,null,null,0,null,null,0,0,0]
[null,null,null,null,null,null,null,null,0,null,null,0,0,0]
[null,null,null,null,null,null,null,null,0,null,null,0,0,0]
[null,null,null,null,null,null,null,null,0,null,null,0,0,0]
[null,null,null,null,null,null,null,null,0,null,null,0,0,0]
[null,null,null,null,null,null,null,null,0,null,null,0,0,0]
[null,null,null,null,null,null,null,null,0,null,null,0,0,0]
[null,null,null,null,null,null,null,null,0,null,null,0,0,0]
[null,null,null,null,null,null,null,null,0,null,null,0,0,0]
[null,null,null,null,null,null,null,null,0,null,null,0,0,0]
[null,null,null,null,null,null,null,null,0,null,null,0,0,0]
[null,null,null,null,null,null,null,null,0,null,null,0,0,0]
[null,null,null,null,null,null,null,null,{"$f":"IF(F262=\"مصري \",G262,G262*H262)","v":0},null,null,{"$f":"IF(E262=\"DR\",I262,0)","v":0},{"$f":"IF(E262=\"CR\",I262,0)","v":0},{"$f":"M262-L262","v":0}]
[null,null,null,null,null,null,null,null,0,null,null,0,0,0]
[null,null,null,null,null,null,null,null,0,null,null,0,0,0]
[null,null,null,null,null,null,null,null,0,null,null,0,0,0]
[null,null,null,null,null,null,null,null,0,null,null,0,0,0]
[null,null,null,null,null,null,null,null,0,null,null,0,0,0]
[null,null,null,null,null,null,null,null,0,null,null,0,0,0]
[null,null,null,null,null,null,null,null,0,null,null,0,0,0]
[null,null,null,null,null,null,null,null,0,null,null,0,0,0]
[null,null,null,null,null,null,null,null,0,null,null,0,0,0]
[null,null,null,null,null,null,null,null,0,null,null,0,0,0]
[null,null,null,null,null,null,null,null,0,null,null,0,0,0]
[null,null,null,null,null,null,null,null,0,null,null,0,0,0]
[null,null,null,null,null,null,null,null,0,null,null,0,0,0]
[null,null,null,null,null,null,null,null,0,null,null,0,0,0]
[null,null,null,null,null,null,null,null,0,null,null,0,0,0]
[null,null,null,null,null,null,null,null,0,null,null,0,0,0]
[null,null,null,null,null,null,null,null,0,null,null,0,0,0]
[null,null,null,null,null,null,null,null,0,null,null,0,0,0]
[null,null,null,null,null,null,null,null,0,null,null,0,0,0]
[null,null,null,null,null,null,null,null,0,null,null,0,0,0]
[null,null,null,null,null,null,null,null,0,null,null,0,0,0]
[null,null,null,null,null,null,null,null,0,null,null,0,0,0]
[null,null,null,null,null,null,null,null,0,null,null,0,0,0]
[null,null,null,null,null,null,null,null,0,null,null,0,0,0]
[null,null,null,null,null,null,null,null,0,null,null,0,0,0]
[null,null,null,null,null,null,null,null,0,null,null,0,0,0]
[null,null,null,null,null,null,null,null,0,null,null,0,0,0]
[null,null,null,null,null,null,null,null,0,null,null,0,0,0]
[null,null,null,null,null,null,null,null,0,null,null,0,0,0]
[null,null,null,null,null,null,null,null,0,null,null,0,0,0]
[null,null,null,null,null,null,null,null,0,null,null,0,0,0]
[null,null,null,null,null,null,null,null,0,null,null,0,0,0]
[null,null,null,null,null,null,null,null,0,null,null,0,0,0]
[null,null,null,null,null,null,null,null,0,null,null,0,0,0]
[null,null,null,null,null,null,null,null,0,null,null,0,0,0]
[null,null,null,null,null,null,null,null,0,null,null,0,0,0]
[null,null,null,null,null,null,null,null,0,null,null,0,0,0]
[null,null,null,null,null,null,null,null,0,null,null,0,0,0]
[null,null,null,null,null,null,null,null,0,null,null,0,0,0]
[null,null,null,null,null,null,null,null,0,null,null,0,0,0]
[null,null,null,null,null,null,null,null,0,null,null,0,0,0]
[null,null,null,null,null,null,null,null,0,null,null,0,0,0]
[null,null,null,null,null,null,null,null,0,null,null,0,0,0]
[null,null,null,null,null,null,null,null,0,null,null,0,0,0]
[null,null,null,null,null,null,null,null,0,null,null,0,0,0]
[null,null,null,null,null,null,null,null,0,null,null,0,0,0]
[null,null,null,null,null,null,null,null,0,null,null,0,0,0]
[null,null,null,null,null,null,null,null,0,null,null,0,0,0]
[null,null,null,null,null,null,null,null,0,null,null,0,0,0]
[null,null,null,null,null,null,null,null,0,null,null,0,0,0]
[null,null,null,null,null,null,null,null,0,null,null,0,0,0]
[null,null,null,null,null,null,null,null,0,null,null,0,0,0]
[null,null,null,null,null,null,null,null,0,null,null,0,0,0]
[null,null,null,null,null,null,null,null,0,null,null,0,0,0]
[null,null,null,null,null,null,null,null,0,null,null,0,0,0]
[null,null,null,null,null,null,null,null,0,null,null,0,0,0]
[null,null,null,null,null,null,null,null,0,null,null,0,0,0]
[null,null,null,null,null,null,null,null,0,null,null,0,0,0]
[null,null,null,null,null,null,null,null,0,null,null,0,0,0]
[null,null,null,null,null,null,null,null,0,null,null,0,0,0]
[null,null,null,null,null,null,null,null,0,null,null,0,0,0]
[null,null,null,null,null,null,null,null,0,null,null,0,0,0]
[null,null,null,null,null,null,null,null,0,null,null,0,0,0]
[null,null,null,null,null,null,null,null,{"$f":"IF(F326=\"مصري \",G326,G326*H326)","v":0},null,null,{"$f":"IF(E326=\"DR\",I326,0)","v":0},{"$f":"IF(E326=\"CR\",I326,0)","v":0},{"$f":"M326-L326","v":0}]
[null,null,null,null,null,null,null,null,0,null,null,0,0,0]
[null,null,null,null,null,null,null,null,0,null,null,0,0,0]
[null,null,null,null,null,null,null,null,0,null,null,0,0,0]
[null,null,null,null,null,null,null,null,0,null,null,0,0,0]
[null,null,null,null,null,null,null,null,0,null,null,0,0,0]
[null,null,null,null,null,null,null,null,0,null,null,0,0,0]
[null,null,null,null,null,null,null,null,0,null,null,0,0,0]
[null,null,null,null,null,null,null,null,0,null,null,0,0,0]
[null,null,null,null,null,null,null,null,0,null,null,0,0,0]
[null,null,null,null,null,null,null,null,0,null,null,0,0,0]
[null,null,null,null,null,null,null,null,0,null,null,0,0,0]
[null,null,null,null,null,null,null,null,0,null,null,0,0,0]
[null,null,null,null,null,null,null,null,0,null,null,0,0,0]
[null,null,null,null,null,null,null,null,0,null,null,0,0,0]
[null,null,null,null,null,null,null,null,0,null,null,0,0,0]
[null,null,null,null,null,null,null,null,0,null,null,0,0,0]
[null,null,null,null,null,null,null,null,0,null,null,0,0,0]
[null,null,null,null,null,null,null,null,0,null,null,0,0,0]
[null,null,null,null,null,null,null,null,0,null,null,0,0,0]
[null,null,null,null,null,null,null,null,0,null,null,0,0,0]
[null,null,null,null,null,null,null,null,0,null,null,0,0,0]
[null,null,null,null,null,null,null,null,0,null,null,0,0,0]
[null,null,null,null,null,null,null,null,0,null,null,0,0,0]
[null,null,null,null,null,null,null,null,0,null,null,0,0,0]
[null,null,null,null,null,null,null,null,0,null,null,0,0,0]
[null,null,null,null,null,null,null,null,0,null,null,0,0,0]
[null,null,null,null,null,null,null,null,0,null,null,0,0,0]
[null,null,null,null,null,null,null,null,0,null,null,0,0,0]
[null,null,null,null,null,null,null,null,0,null,null,0,0,0]
[null,null,null,null,null,null,null,null,0,null,null,0,0,0]
[null,null,null,null,null,null,null,null,0,null,null,0,0,0]
[null,null,null,null,null,null,null,null,0,null,null,0,0,0]
[null,null,null,null,null,null,null,null,0,null,null,0,0,0]
[null,null,null,null,null,null,null,null,0,null,null,0,0,0]
[null,null,null,null,null,null,null,null,0,null,null,0,0,0]
[null,null,null,null,null,null,null,null,0,null,null,0,0,0]
[null,null,null,null,null,null,null,null,0,null,null,0,0,0]
[null,null,null,null,null,null,null,null,0,null,null,0,0,0]
[null,null,null,null,null,null,null,null,0,null,null,0,0,0]
[null,null,null,null,null,null,null,null,0,null,null,0,0,0]
[null,null,null,null,null,null,null,null,0,null,null,0,0,0]
[null,null,null,null,null,null,null,null,0,null,null,0,0,0]
[null,null,null,null,null,null,null,null,0,null,null,0,0,0]
[null,null,null,null,null,null,null,null,0,null,null,0,0,0]
[null,null,null,null,null,null,null,null,0,null,null,0,0,0]
[null,null,null,null,null,null,null,null,0,null,null,0,0,0]
[null,null,null,null,null,null,null,null,0,null,null,0,0,0]
[null,null,null,null,null,null,null,null,0,null,null,0,0,0]
[null,null,null,null,null,null,null,null,0,null,null,0,0,0]
[null,null,null,null,null,null,null,null,0,null,null,0,0,0]
[null,null,null,null,null,null,null,null,0,null,null,0,0,0]
[null,null,null,null,null,null,null,null,0,null,null,0,0,0]
[null,null,null,null,null,null,null,null,0,null,null,0,0,0]
[null,null,null,null,null,null,null,null,0,null,null,0,0,0]
[null,null,null,null,null,null,null,null,0,null,null,0,0,0]
[null,null,null,null,null,null,null,null,0,null,null,0,0,0]
[null,null,null,null,null,null,null,null,0,null,null,0,0,0]
[null,null,null,null,null,null,null,null,0,null,null,0,0,0]
[null,null,null,null,null,null,null,null,0,null,null,0,0,0]
[null,null,null,null,null,null,null,null,0,null,null,0,0,0]
[null,null,null,null,null,null,null,null,0,null,null,0,0,0]
[null,null,null,null,null,null,null,null,0,null,null,0,0,0]
[null,null,null,null,null,null,null,null,0,null,null,0,0,0]
[null,null,null,null,null,null,null,null,{"$f":"IF(F390=\"مصري \",G390,G390*H390)","v":0},null,null,{"$f":"IF(E390=\"DR\",I390,0)","v":0},{"$f":"IF(E390=\"CR\",I390,0)","v":0},{"$f":"M390-L390","v":0}]
[null,null,null,null,null,null,null,null,0,null,null,0,0,0]
[null,null,null,null,null,null,null,null,0,null,null,0,0,0]
[null,null,null,null,null,null,null,null,0,null,null,0,0,0]
[null,null,null,null,null,null,null,null,0,null,null,0,0,0]
[null,null,null,null,null,null,null,null,0,null,null,0,0,0]
[null,null,null,null,null,null,null,null,0,null,null,0,0,0]
[null,null,null,null,null,null,null,null,0,null,null,0,0,0]
[null,null,null,null,null,null,null,null,0,null,null,0,0,0]
[null,null,null,null,null,null,null,null,0,null,null,0,0,0]
[null,null,null,null,null,null,null,null,0,null,null,0,0,0]
[null,null,null,null,null,null,null,null,0,null,null,0,0,0]
[null,null,null,null,null,null,null,null,0,null,null,0,0,0]
[null,null,null,null,null,null,null,null,0,null,null,0,0,0]
[null,null,null,null,null,null,null,null,0,null,null,0,0,0]
[null,null,null,null,null,null,null,null,0,null,null,0,0,0]
[null,null,null,null,null,null,null,null,0,null,null,0,0,0]
[null,null,null,null,null,null,null,null,0,null,null,0,0,0]
[null,null,null,null,null,null,null,null,0,null,null,0,0,0]
[null,null,null,null,null,null,null,null,0,null,null,0,0,0]
[null,null,null,null,null,null,null,null,0,null,null,0,0,0]
[null,null,null,null,null,null,null,null,0,null,null,0,0,0]
[null,null,null,null,null,null,null,null,0,null,null,0,0,0]
[null,null,null,null,null,null,null,null,0,null,null,0,0,0]
[null,null,null,null,null,null,null,null,0,null,null,0,0,0]
[null,null,null,null,null,null,null,null,0,null,null,0,0,0]
[null,null,null,null,null,null,null,null,0,null,null,0,0,0]
[null,null,null,null,null,null,null,null,0,null,null,0,0,0]
[null,null,null,null,null,null,null,null,0,null,null,0,0,0]
[null,null,null,null,null,null,null,null,0,null,null,0,0,0]
[null,null,null,null,null,null,null,null,0,null,null,0,0,0]
[null,null,null,null,null,null,null,null,0,null,null,0,0,0]
[null,null,null,null,null,null,null,null,0,null,null,0,0,0]
[null,null,null,null,null,null,null,null,0,null,null,0,0,0]
[null,null,null,null,null,null,null,null,0,null,null,0,0,0]
[null,null,null,null,null,null,null,null,0,null,null,0,0,0]
[null,null,null,null,null,null,null,null,0,null,null,0,0,0]
[null,null,null,null,null,null,null,null,0,null,null,0,0,0]
[null,null,null,null,null,null,null,null,0,null,null,0,0,0]
[null,null,null,null,null,null,null,null,0,null,null,0,0,0]
[null,null,null,null,null,null,null,null,0,null,null,0,0,0]
[null,null,null,null,null,null,null,null,0,null,null,0,0,0]
[null,null,null,null,null,null,null,null,0,null,null,0,0,0]
[null,null,null,null,null,null,null,null,0,null,null,0,0,0]
[null,null,null,null,null,null,null,null,0,null,null,0,0,0]
[null,null,null,null,null,null,null,null,0,null,null,0,0,0]
[null,null,null,null,null,null,null,null,0,null,null,0,0,0]
[null,null,null,null,null,null,null,null,0,null,null,0,0,0]
[null,null,null,null,null,null,null,null,0,null,null,0,0,0]
[null,null,null,null,null,null,null,null,0,null,null,0,0,0]
[null,null,null,null,null,null,null,null,0,null,null,0,0,0]
[null,null,null,null,null,null,null,null,0,null,null,0,0,0]
[null,null,null,null,null,null,null,null,0,null,null,0,0,0]
[null,null,null,null,null,null,null,null,0,null,null,0,0,0]
[null,null,null,null,null,null,null,null,0,null,null,0,0,0]
[null,null,null,null,null,null,null,null,0,null,null,0,0,0]
[null,null,null,null,null,null,null,null,0,null,null,0,0,0]
[null,null,null,null,null,null,null,null,0,null,null,0,0,0]
[null,null,null,null,null,null,null,null,0,null,null,0,0,0]
[null,null,null,null,null,null,null,null,0,null,null,0,0,0]
[null,null,null,null,null,null,null,null,0,null,null,0,0,0]
[null,null,null,null,null,null,null,null,0,null,null,0,0,0]
[null,null,null,null,null,null,null,null,0,null,null,0,0,0]
[null,null,null,null,null,null,null,null,0,null,null,0,0,0]
[null,null,null,null,null,null,null,null,{"$f":"IF(F454=\"مصري \",G454,G454*H454)","v":0},null,null,{"$f":"IF(E454=\"DR\",I454,0)","v":0},{"$f":"IF(E454=\"CR\",I454,0)","v":0},{"$f":"M454-L454","v":0}]
[null,null,null,null,null,null,null,null,0,null,null,0,0,0]
[null,null,null,null,null,null,null,null,0,null,null,0,0,0]
[null,null,null,null,null,null,null,null,0,null,null,0,0,0]
[null,null,null,null,null,null,null,null,0,null,null,0,0,0]
[null,null,null,null,null,null,null,null,0,null,null,0,0,0]
[null,null,null,null,null,null,null,null,0,null,null,0,0,0]
[null,null,null,null,null,null,null,null,0,null,null,0,0,0]
[null,null,null,null,null,null,null,null,0,null,null,0,0,0]
[null,null,null,null,null,null,null,null,0,null,null,0,0,0]
[null,null,null,null,null,null,null,null,0,null,null,0,0,0]
[null,null,null,null,null,null,null,null,0,null,null,0,0,0]
[null,null,null,null,null,null,null,null,0,null,null,0,0,0]
[null,null,null,null,null,null,null,null,0,null,null,0,0,0]
[null,null,null,null,null,null,null,null,0,null,null,0,0,0]
[null,null,null,null,null,null,null,null,0,null,null,0,0,0]
[null,null,null,null,null,null,null,null,0,null,null,0,0,0]
[null,null,null,null,null,null,null,null,0,null,null,0,0,0]
[null,null,null,null,null,null,null,null,0,null,null,0,0,0]
[null,null,null,null,null,null,null,null,0,null,null,0,0,0]
[null,null,null,null,null,null,null,null,0,null,null,0,0,0]
[null,null,null,null,null,null,null,null,0,null,null,0,0,0]
[null,null,null,null,null,null,null,null,0,null,null,0,0,0]
[null,null,null,null,null,null,null,null,0,null,null,0,0,0]
[null,null,null,null,null,null,null,null,0,null,null,0,0,0]
[null,null,null,null,null,null,null,null,0,null,null,0,0,0]
[null,null,null,null,null,null,null,null,0,null,null,0,0,0]
[null,null,null,null,null,null,null,null,0,null,null,0,0,0]
[null,null,null,null,null,null,null,null,0,null,null,0,0,0]
[null,null,null,null,null,null,null,null,0,null,null,0,0,0]
[null,null,null,null,null,null,null,null,0,null,null,0,0,0]
[null,null,null,null,null,null,null,null,0,null,null,0,0,0]
[null,null,null,null,null,null,null,null,0,null,null,0,0,0]
[null,null,null,null,null,null,null,null,0,null,null,0,0,0]
[null,null,null,null,null,null,null,null,0,null,null,0,0,0]
[null,null,null,null,null,null,null,null,0,null,null,0,0,0]
[null,null,null,null,null,null,null,null,0,null,null,0,0,0]
[null,null,null,null,null,null,null,null,0,null,null,0,0,0]
[null,null,null,null,null,null,null,null,0,null,null,0,0,0]
[null,null,null,null,null,null,null,null,0,null,null,0,0,0]
[null,null,null,null,null,null,null,null,0,null,null,0,0,0]
[null,null,null,null,null,null,null,null,0,null,null,0,0,0]
[null,null,null,null,null,null,null,null,0,null,null,0,0,0]
[null,null,null,null,null,null,null,null,0,null,null,0,0,0]
[null,null,null,null,null,null,null,null,0,null,null,0,0,0]
[null,null,null,null,null,null,null,null,0,null,null,0,0,0]
[null,null,null,null,null,null,null,null,0,null,null,0,0,0]
[null,null,null,null,null,null,null,null,0,null,null,0,0,0]
[null,null,null,null,null,null,null,null,0,null,null,0,0,0]
[null,null,null,null,null,null,null,null,0,null,null,0,0,0]
[null,null,null,null,null,null,null,null,0,null,null,0,0,0]
[null,null,null,null,null,null,null,null,0,null,null,0,0,0]
[null,null,null,null,null,null,null,null,0,null,null,0,0,0]
[null,null,null,null,null,null,null,null,0,null,null,0,0,0]
[null,null,null,null,null,null,null,null,0,null,null,0,0,0]
[null,null,null,null,null,null,null,null,0,null,null,0,0,0]
[null,null,null,null,null,null,null,null,0,null,null,0,0,0]
[null,null,null,null,null,null,null,null,0,null,null,0,0,0]
[null,null,null,null,null,null,null,null,0,null,null,0,0,0]
[null,null,null,null,null,null,null,null,0,null,null,0,0,0]
[null,null,null,null,null,null,null,null,0,null,null,0,0,0]
[null,null,null,null,null,null,null,null,0,null,null,0,0,0]
[null,null,null,null,null,null,null,null,0,null,null,0,0,0]
[null,null,null,null,null,null,null,null,0,null,null,0,0,0]
[null,null,null,null,null,null,null,null,{"$f":"IF(F518=\"مصري \",G518,G518*H518)","v":0},null,null,{"$f":"IF(E518=\"DR\",I518,0)","v":0},{"$f":"IF(E518=\"CR\",I518,0)","v":0},{"$f":"M518-L518","v":0}]
[null,null,null,null,null,null,null,null,0,null,null,0,0,0]
[null,null,null,null,null,null,null,null,0,null,null,0,0,0]
[null,null,null,null,null,null,null,null,0,null,null,0,0,0]
[null,null,null,null,null,null,null,null,0,null,null,0,0,0]
[null,null,null,null,null,null,null,null,0,null,null,0,0,0]
[null,null,null,null,null,null,null,null,0,null,null,0,0,0]
[null,null,null,null,null,null,null,null,0,null,null,0,0,0]
[null,null,null,null,null,null,null,null,0,null,null,0,0,0]
[null,null,null,null,null,null,null,null,0,null,null,0,0,0]
[null,null,null,null,null,null,null,null,0,null,null,0,0,0]
[null,null,null,null,null,null,null,null,0,null,null,0,0,0]
[null,null,null,null,null,null,null,null,0,null,null,0,0,0]
[null,null,null,null,null,null,null,null,0,null,null,0,0,0]
[null,null,null,null,null,null,null,null,0,null,null,0,0,0]
[null,null,null,null,null,null,null,null,0,null,null,0,0,0]
[null,null,null,null,null,null,null,null,0,null,null,0,0,0]
[null,null,null,null,null,null,null,null,0,null,null,0,0,0]
[null,null,null,null,null,null,null,null,0,null,null,0,0,0]
[null,null,null,null,null,null,null,null,0,null,null,0,0,0]
[null,null,null,null,null,null,null,null,0,null,null,0,0,0]
[null,null,null,null,null,null,null,null,0,null,null,0,0,0]
[null,null,null,null,null,null,null,null,0,null,null,0,0,0]
[null,null,null,null,null,null,null,null,0,null,null,0,0,0]
[null,null,null,null,null,null,null,null,0,null,null,0,0,0]
[null,null,null,null,null,null,null,null,0,null,null,0,0,0]
[null,null,null,null,null,null,null,null,0,null,null,0,0,0]
[null,null,null,null,null,null,null,null,0,null,null,0,0,0]
[null,null,null,null,null,null,null,null,0,null,null,0,0,0]
[null,null,null,null,null,null,null,null,0,null,null,0,0,0]
[null,null,null,null,null,null,null,null,0,null,null,0,0,0]
[null,null,null,null,null,null,null,null,0,null,null,0,0,0]
[null,null,null,null,null,null,null,null,0,null,null,0,0,0]
[null,null,null,null,null,null,null,null,0,null,null,0,0,0]
[null,null,null,null,null,null,null,null,0,null,null,0,0,0]
[null,null,null,null,null,null,null,null,0,null,null,0,0,0]
[null,null,null,null,null,null,null,null,0,null,null,0,0,0]
[null,null,null,null,null,null,null,null,0,null,null,0,0,0]
[null,null,null,null,null,null,null,null,0,null,null,0,0,0]
[null,null,null,null,null,null,null,null,0,null,null,0,0,0]
[null,null,null,null,null,null,null,null,0,null,null,0,0,0]
[null,null,null,null,null,null,null,null,0,null,null,0,0,0]
[null,null,null,null,null,null,null,null,0,null,null,0,0,0]
[null,null,null,null,null,null,null,null,0,null,null,0,0,0]
[null,null,null,null,null,null,null,null,0,null,null,0,0,0]
[null,null,null,null,null,null,null,null,0,null,null,0,0,0]
[null,null,null,null,null,null,null,null,0,null,null,0,0,0]
[null,null,null,null,null,null,null,null,0,null,null,0,0,0]
[null,null,null,null,null,null,null,null,0,null,null,0,0,0]
[null,null,null,null,null,null,null,null,0,null,null,0,0,0]
[null,null,null,null,null,null,null,null,0,null,null,0,0,0]
[null,null,null,null,null,null,null,null,0,null,null,0,0,0]
[null,null,null,null,null,null,null,null,0,null,null,0,0,0]
[null,null,null,null,null,null,null,null,0,null,null,0,0,0]
[null,null,null,null,null,null,null,null,0,null,null,0,0,0]
[null,null,null,null,null,null,null,null,0,null,null,0,0,0]
[null,null,null,null,null,null,null,null,0,null,null,0,0,0]
[null,null,null,null,null,null,null,null,0,null,null,0,0,0]
[null,null,null,null,null,null,null,null,0,null,null,0,0,0]
[null,null,null,null,null,null,null,null,0,null,null,0,0,0]
[null,null,null,null,null,null,null,null,0,null,null,0,0,0]
[null,null,null,null,null,null,null,null,0,null,null,0,0,0]
[null,null,null,null,null,null,null,null,0,null,null,0,0,0]
[null,null,null,null,null,null,null,null,0,null,null,0,0,0]
[null,null,null,null,null,null,null,null,{"$f":"IF(F582=\"مصري \",G582,G582*H582)","v":0},null,null,{"$f":"IF(E582=\"DR\",I582,0)","v":0},{"$f":"IF(E582=\"CR\",I582,0)","v":0},{"$f":"M582-L582","v":0}]
[null,null,null,null,null,null,null,null,0,null,null,0,0,0]
[null,null,null,null,null,null,null,null,0,null,null,0,0,0]
[null,null,null,null,null,null,null,null,0,null,null,0,0,0]
[null,null,null,null,null,null,null,null,0,null,null,0,0,0]
[null,null,null,null,null,null,null,null,0,null,null,0,0,0]
[null,null,null,null,null,null,null,null,0,null,null,0,0,0]
[null,null,null,null,null,null,null,null,0,null,null,0,0,0]
[null,null,null,null,null,null,null,null,0,null,null,0,0,0]
[null,null,null,null,null,null,null,null,0,null,null,0,0,0]
[null,null,null,null,null,null,null,null,0,null,null,0,0,0]
[null,null,null,null,null,null,null,null,0,null,null,0,0,0]
[null,null,null,null,null,null,null,null,0,null,null,0,0,0]
[null,null,null,null,null,null,null,null,0,null,null,0,0,0]
[null,null,null,null,null,null,null,null,0,null,null,0,0,0]
[null,null,null,null,null,null,null,null,0,null,null,0,0,0]
[null,null,null,null,null,null,null,null,0,null,null,0,0,0]
[null,null,null,null,null,null,null,null,0,null,null,0,0,0]
[null,null,null,null,null,null,null,null,0,null,null,0,0,0]
[null,null,null,null,null,null,null,null,0,null,null,0,0,0]
[null,null,null,null,null,null,null,null,0,null,null,0,0,0]
[null,null,null,null,null,null,null,null,0,null,null,0,0,0]
[null,null,null,null,null,null,null,null,0,null,null,0,0,0]
[null,null,null,null,null,null,null,null,0,null,null,0,0,0]
[null,null,null,null,null,null,null,null,0,null,null,0,0,0]
[null,null,null,null,null,null,null,null,0,null,null,0,0,0]
[null,null,null,null,null,null,null,null,0,null,null,0,0,0]
[null,null,null,null,null,null,null,null,0,null,null,0,0,0]
[null,null,null,null,null,null,null,null,0,null,null,0,0,0]
[null,null,null,null,null,null,null,null,0,null,null,0,0,0]
[null,null,null,null,null,null,null,null,0,null,null,0,0,0]
[null,null,null,null,null,null,null,null,0,null,null,0,0,0]
[null,null,null,null,null,null,null,null,0,null,null,0,0,0]
[null,null,null,null,null,null,null,null,0,null,null,0,0,0]
[null,null,null,null,null,null,null,null,0,null,null,0,0,0]
[null,null,null,null,null,null,null,null,0,null,null,0,0,0]
[null,null,null,null,null,null,null,null,0,null,null,0,0,0]
[null,null,null,null,null,null,null,null,0,null,null,0,0,0]
[null,null,null,null,null,null,null,null,0,null,null,0,0,0]
[null,null,null,null,null,null,null,null,0,null,null,0,0,0]
[null,null,null,null,null,null,null,null,0,null,null,0,0,0]
[null,null,null,null,null,null,null,null,0,null,null,0,0,0]
[null,null,null,null,null,null,null,null,0,null,null,0,0,0]
[null,null,null,null,null,null,null,null,0,null,null,0,0,0]
[null,null,null,null,null,null,null,null,0,null,null,0,0,0]
[null,null,null,null,null,null,null,null,0,null,null,0,0,0]
[null,null,null,null,null,null,null,null,0,null,null,0,0,0]
[null,null,null,null,null,null,null,null,0,null,null,0,0,0]
[null,null,null,null,null,null,null,null,0,null,null,0,0,0]
[null,null,null,null,null,null,null,null,0,null,null,0,0,0]
[null,null,null,null,null,null,null,null,0,null,null,0,0,0]
[null,null,null,null,null,null,null,null,0,null,null,0,0,0]
[null,null,null,null,null,null,null,null,0,null,null,0,0,0]
[null,null,null,null,null,null,null,null,0,null,null,0,0,0]
[null,null,null,null,null,null,null,null,0,null,null,0,0,0]
[null,null,null,null,null,null,null,null,0,null,null,0,0,0]
[null,null,null,null,null,null,null,null,0,null,null,0,0,0]
[null,null,null,null,null,null,null,null,0,null,null,0,0,0]
[null,null,null,null,null,null,null,null,0,null,null,0,0,0]
[null,null,null,null,null,null,null,null,0,null,null,0,0,0]
[null,null,null,null,null,null,null,null,0,null,null,0,0,0]
[null,null,null,null,null,null,null,null,0,null,null,0,0,0]
[null,null,null,null,null,null,null,null,0,null,null,0,0,0]
[null,null,null,null,null,null,null,null,0,null,null,0,0,0]
[null,null,null,null,null,null,null,null,{"$f":"IF(F646=\"مصري \",G646,G646*H646)","v":0},null,null,{"$f":"IF(E646=\"DR\",I646,0)","v":0},{"$f":"IF(E646=\"CR\",I646,0)","v":0},{"$f":"M646-L646","v":0}]
[null,null,null,null,null,null,null,null,0,null,null,0,0,0]
[null,null,null,null,null,null,null,null,0,null,null,0,0,0]
[null,null,null,null,null,null,null,null,0,null,null,0,0,0]
[null,null,null,null,null,null,null,null,0,null,null,0,0,0]
[null,null,null,null,null,null,null,null,0,null,null,0,0,0]
[null,null,null,null,null,null,null,null,0,null,null,0,0,0]
[null,null,null,null,null,null,null,null,0,null,null,0,0,0]
[null,null,null,null,null,null,null,null,0,null,null,0,0,0]
[null,null,null,null,null,null,null,null,0,null,null,0,0,0]
[null,null,null,null,null,null,null,null,0,null,null,0,0,0]
[null,null,null,null,null,null,null,null,0,null,null,0,0,0]
[null,null,null,null,null,null,null,null,0,null,null,0,0,0]
[null,null,null,null,null,null,null,null,0,null,null,0,0,0]
[null,null,null,null,null,null,null,null,0,null,null,0,0,0]
[null,null,null,null,null,null,null,null,0,null,null,0,0,0]
[null,null,null,null,null,null,null,null,0,null,null,0,0,0]
[null,null,null,null,null,null,null,null,0,null,null,0,0,0]
[null,null,null,null,null,null,null,null,0,null,null,0,0,0]
[null,null,null,null,null,null,null,null,0,null,null,0,0,0]
[null,null,null,null,null,null,null,null,0,null,null,0,0,0]
[null,null,null,null,null,null,null,null,0,null,null,0,0,0]
[null,null,null,null,null,null,null,null,0,null,null,0,0,0]
[null,null,null,null,null,null,null,null,0,null,null,0,0,0]
[null,null,null,null,null,null,null,null,0,null,null,0,0,0]
[null,null,null,null,null,null,null,null,0,null,null,0,0,0]
[null,null,null,null,null,null,null,null,0,null,null,0,0,0]
[null,null,null,null,null,null,null,null,0,null,null,0,0,0]
[null,null,null,null,null,null,null,null,0,null,null,0,0,0]
[null,null,null,null,null,null,null,null,0,null,null,0,0,0]
[null,null,null,null,null,null,null,null,0,null,null,0,0,0]
[null,null,null,null,null,null,null,null,0,null,null,0,0,0]
[null,null,null,null,null,null,null,null,0,null,null,0,0,0]
[null,null,null,null,null,null,null,null,0,null,null,0,0,0]
[null,null,null,null,null,null,null,null,0,null,null,0,0,0]
[null,null,null,null,null,null,null,null,0,null,null,0,0,0]
[null,null,null,null,null,null,null,null,0,null,null,0,0,0]
[null,null,null,null,null,null,null,null,0,null,null,0,0,0]
[null,null,null,null,null,null,null,null,0,null,null,0,0,0]
[null,null,null,null,null,null,null,null,0,null,null,0,0,0]
[null,null,null,null,null,null,null,null,0,null,null,0,0,0]
[null,null,null,null,null,null,null,null,0,null,null,0,0,0]
[null,null,null,null,null,null,null,null,0,null,null,0,0,0]
[null,null,null,null,null,null,null,null,0,null,null,0,0,0]
[null,null,null,null,null,null,null,null,0,null,null,0,0,0]
[null,null,null,null,null,null,null,null,0,null,null,0,0,0]
[null,null,null,null,null,null,null,null,0,null,null,0,0,0]
[null,null,null,null,null,null,null,null,0,null,null,0,0,0]
[null,null,null,null,null,null,null,null,0,null,null,0,0,0]
[null,null,null,null,null,null,null,null,0,null,null,0,0,0]
[null,null,null,null,null,null,null,null,0,null,null,0,0,0]
[null,null,null,null,null,null,null,null,0,null,null,0,0,0]
[null,null,null,null,null,null,null,null,0,null,null,0,0,0]
[null,null,null,null,null,null,null,null,0,null,null,0,0,0]
[null,null,null,null,null,null,null,null,0,null,null,0,0,0]
[null,null,null,null,null,null,null,null,0,null,null,0,0,0]
[null,null,null,null,null,null,null,null,0,null,null,0,0,0]
[null,null,null,null,null,null,null,null,0,null,null,0,0,0]
[null,null,null,null,null,null,null,null,0,null,null,0,0,0]
[null,null,null,null,null,null,null,null,0,null,null,0,0,0]
[null,null,null,null,null,null,null,null,0,null,null,0,0,0]
[null,null,null,null,null,null,null,null,0,null,null,0,0,0]
[null,null,null,null,null,null,null,null,0,null,null,0,0,0]
[null,null,null,null,null,null,null,null,0,null,null,0,0,0]
[null,null,null,null,null,null,null,null,{"$f":"IF(F710=\"مصري \",G710,G710*H710)","v":0},null,null,{"$f":"IF(E710=\"DR\",I710,0)","v":0},{"$f":"IF(E710=\"CR\",I710,0)","v":0},{"$f":"M710-L710","v":0}]
[null,null,null,null,null,null,null,null,0,null,null,0,0,0]
[null,null,null,null,null,null,null,null,0,null,null,0,0,0]
[null,null,null,null,null,null,null,null,0,null,null,0,0,0]
[null,null,null,null,null,null,null,null,0,null,null,0,0,0]
[null,null,null,null,null,null,null,null,0,null,null,0,0,0]
[null,null,null,null,null,null,null,null,0,null,null,0,0,0]
[null,null,null,null,null,null,null,null,0,null,null,0,0,0]
[null,null,null,null,null,null,null,null,0,null,null,0,0,0]
[null,null,null,null,null,null,null,null,0,null,null,0,0,0]
[null,null,null,null,null,null,null,null,0,null,null,0,0,0]
[null,null,null,null,null,null,null,null,0,null,null,0,0,0]
[null,null,null,null,null,null,null,null,0,null,null,0,0,0]
[null,null,null,null,null,null,null,null,0,null,null,0,0,0]
[null,null,null,null,null,null,null,null,0,null,null,0,0,0]
[null,null,null,null,null,null,null,null,0,null,null,0,0,0]
[null,null,null,null,null,null,null,null,0,null,null,0,0,0]
[null,null,null,null,null,null,null,null,0,null,null,0,0,0]
[null,null,null,null,null,null,null,null,0,null,null,0,0,0]
[null,null,null,null,null,null,null,null,0,null,null,0,0,0]
[null,null,null,null,null,null,null,null,0,null,null,0,0,0]
[null,null,null,null,null,null,null,null,0,null,null,0,0,0]
[null,null,null,null,null,null,null,null,0,null,null,0,0,0]
[null,null,null,null,null,null,null,null,0,null,null,0,0,0]
[null,null,null,null,null,null,null,null,0,null,null,0,0,0]
[null,null,null,null,null,null,null,null,0,null,null,0,0,0]
[null,null,null,null,null,null,null,null,0,null,null,0,0,0]
[null,null,null,null,null,null,null,null,0,null,null,0,0,0]
[null,null,null,null,null,null,null,null,0,null,null,0,0,0]
[null,null,null,null,null,null,null,null,0,null,null,0,0,0]
[null,null,null,null,null,null,null,null,0,null,null,0,0,0]
[null,null,null,null,null,null,null,null,0,null,null,0,0,0]
[null,null,null,null,null,null,null,null,0,null,null,0,0,0]
[null,null,null,null,null,null,null,null,0,null,null,0,0,0]
[null,null,null,null,null,null,null,null,0,null,null,0,0,0]
[null,null,null,null,null,null,null,null,0,null,null,0,0,0]
[null,null,null,null,null,null,null,null,0,null,null,0,0,0]
[null,null,null,null,null,null,null,null,0,null,null,0,0,0]
[null,null,null,null,null,null,null,null,0,null,null,0,0,0]
[null,null,null,null,null,null,null,null,0,null,null,0,0,0]
[null,null,null,null,null,null,null,null,0,null,null,0,0,0]
[null,null,null,null,null,null,null,null,0,null,null,0,0,0]
[null,null,null,null,null,null,null,null,0,null,null,0,0,0]
[null,null,null,null,null,null,null,null,0,null,null,0,0,0]
[null,null,null,null,null,null,null,null,0,null,null,0,0,0]
[null,null,null,null,null,null,null,null,0,null,null,0,0,0]
[null,null,null,null,null,null,null,null,0,null,null,0,0,0]
[null,null,null,null,null,null,null,null,0,null,null,0,0,0]
[null,null,null,null,null,null,null,null,0,null,null,0,0,0]
[null,null,null,null,null,null,null,null,0,null,null,0,0,0]
[null,null,null,null,null,null,null,null,0,null,null,0,0,0]
[null,null,null,null,null,null,null,null,0,null,null,0,0,0]
[null,null,null,null,null,null,null,null,0,null,null,0,0,0]
[null,null,null,null,null,null,null,null,0,null,null,0,0,0]
[null,null,null,null,null,null,null,null,0,null,null,0,0,0]
[null,null,null,null,null,null,null,null,0,null,null,0,0,0]
[null,null,null,null,null,null,null,null,0,null,null,0,0,0]
[null,null,null,null,null,null,null,null,0,null,null,0,0,0]
[null,null,null,null,null,null,null,null,0,null,null,0,0,0]
[null,null,null,null,null,null,null,null,0,null,null,0,0,0]
[null,null,null,null,null,null,null,null,0,null,null,0,0,0]
[null,null,null,null,null,null,null,null,0,null,null,0,0,0]
[null,null,null,null,null,null,null,null,0,null,null,0,0,0]
[null,null,null,null,null,null,null,null,0,null,null,0,0,0]
[null,null,null,null,null,null,null,null,{"$f":"IF(F774=\"مصري \",G774,G774*H774)","v":0},null,null,{"$f":"IF(E774=\"DR\",I774,0)","v":0},{"$f":"IF(E774=\"CR\",I774,0)","v":0},{"$f":"M774-L774","v":0}]
[null,null,null,null,null,null,null,null,0,null,null,0,0,0]
[null,null,null,null,null,null,null,null,0,null,null,0,0,0]
[null,null,null,null,null,null,null,null,0,null,null,0,0,0]
[null,null,null,null,null,null,null,null,0,null,null,0,0,0]
[null,null,null,null,null,null,null,null,0,null,null,0,0,0]
[null,null,null,null,null,null,null,null,0,null,null,0,0,0]
[null,null,null,null,null,null,null,null,0,null,null,0,0,0]
[null,null,null,null,null,null,null,null,0,null,null,0,0,0]
[null,null,null,null,null,null,null,null,0,null,null,0,0,0]
[null,null,null,null,null,null,null,null,0,null,null,0,0,0]
[null,null,null,null,null,null,null,null,0,null,null,0,0,0]
[null,null,null,null,null,null,null,null,0,null,null,0,0,0]
[null,null,null,null,null,null,null,null,0,null,null,0,0,0]
[null,null,null,null,null,null,null,null,0,null,null,0,0,0]
[null,null,null,null,null,null,null,null,0,null,null,0,0,0]
[null,null,null,null,null,null,null,null,0,null,null,0,0,0]
[null,null,null,null,null,null,null,null,0,null,null,0,0,0]
[null,null,null,null,null,null,null,null,0,null,null,0,0,0]
[null,null,null,null,null,null,null,null,0,null,null,0,0,0]
[null,null,null,null,null,null,null,null,0,null,null,0,0,0]
[null,null,null,null,null,null,null,null,0,null,null,0,0,0]
[null,null,null,null,null,null,null,null,0,null,null,0,0,0]
[null,null,null,null,null,null,null,null,0,null,null,0,0,0]
[null,null,null,null,null,null,null,null,0,null,null,0,0,0]
[null,null,null,null,null,null,null,null,0,null,null,0,0,0]
[null,null,null,null,null,null,null,null,0,null,null,0,0,0]
[null,null,null,null,null,null,null,null,0,null,null,0,0,0]
[null,null,null,null,null,null,null,null,0,null,null,0,0,0]
[null,null,null,null,null,null,null,null,0,null,null,0,0,0]
[null,null,null,null,null,null,null,null,0,null,null,0,0,0]
[null,null,null,null,null,null,null,null,0,null,null,0,0,0]
[null,null,null,null,null,null,null,null,0,null,null,0,0,0]
[null,null,null,null,null,null,null,null,0,null,null,0,0,0]
[null,null,null,null,null,null,null,null,0,null,null,0,0,0]
[null,null,null,null,null,null,null,null,0,null,null,0,0,0]
[null,null,null,null,null,null,null,null,0,null,null,0,0,0]
[null,null,null,null,null,null,null,null,0,null,null,0,0,0]
[null,null,null,null,null,null,null,null,0,null,null,0,0,0]
[null,null,null,null,null,null,null,null,0,null,null,0,0,0]
[null,null,null,null,null,null,null,null,0,null,null,0,0,0]
[null,null,null,null,null,null,null,null,0,null,null,0,0,0]
[null,null,null,null,null,null,null,null,0,null,null,0,0,0]
[null,null,null,null,null,null,null,null,0,null,null,0,0,0]
[null,null,null,null,null,null,null,null,0,null,null,0,0,0]
[null,null,null,null,null,null,null,null,0,null,null,0,0,0]
[null,null,null,null,null,null,null,null,0,null,null,0,0,0]
[null,null,null,null,null,null,null,null,0,null,null,0,0,0]
[null,null,null,null,null,null,null,null,0,null,null,0,0,0]
[null,null,null,null,null,null,null,null,0,null,null,0,0,0]
[null,null,null,null,null,null,null,null,0,null,null,0,0,0]
[null,null,null,null,null,null,null,null,0,null,null,0,0,0]
[null,null,null,null,null,null,null,null,0,null,null,0,0,0]
[null,null,null,null,null,null,null,null,0,null,null,0,0,0]
[null,null,null,null,null,null,null,null,0,null,null,0,0,0]
[null,null,null,null,null,null,null,null,0,null,null,0,0,0]
[null,null,null,null,null,null,null,null,0,null,null,0,0,0]
[null,null,null,null,null,null,null,null,0,null,null,0,0,0]
[null,null,null,null,null,null,null,null,0,null,null,0,0,0]
[null,null,null,null,null,null,null,null,0,null,null,0,0,0]
[null,null,null,null,null,null,null,null,0,null,null,0,0,0]
[null,null,null,null,null,null,null,null,0,null,null,0,0,0]
[null,null,null,null,null,null,null,null,0,null,null,0,0,0]
[null,null,null,null,null,null,null,null,0,null,null,0,0,0]
[null,null,null,null,null,null,null,null,{"$f":"IF(F838=\"مصري \",G838,G838*H838)","v":0},null,null,{"$f":"IF(E838=\"DR\",I838,0)","v":0},{"$f":"IF(E838=\"CR\",I838,0)","v":0},{"$f":"M838-L838","v":0}]
[null,null,null,null,null,null,null,null,0,null,null,0,0,0]
[null,null,null,null,null,null,null,null,0,null,null,0,0,0]
[null,null,null,null,null,null,null,null,0,null,null,0,0,0]
[null,null,null,null,null,null,null,null,0,null,null,0,0,0]
[null,null,null,null,null,null,null,null,0,null,null,0,0,0]
[null,null,null,null,null,null,null,null,0,null,null,0,0,0]
[null,null,null,null,null,null,null,null,0,null,null,0,0,0]
[null,null,null,null,null,null,null,null,0,null,null,0,0,0]
[null,null,null,null,null,null,null,null,0,null,null,0,0,0]
[null,null,null,null,null,null,null,null,0,null,null,0,0,0]
[null,null,null,null,null,null,null,null,0,null,null,0,0,0]
[null,null,null,null,null,null,null,null,0,null,null,0,0,0]
[null,null,null,null,null,null,null,null,0,null,null,0,0,0]
[null,null,null,null,null,null,null,null,0,null,null,0,0,0]
[null,null,null,null,null,null,null,null,0,null,null,0,0,0]
[null,null,null,null,null,null,null,null,0,null,null,0,0,0]
[null,null,null,null,null,null,null,null,0,null,null,0,0,0]
[null,null,null,null,null,null,null,null,0,null,null,0,0,0]
[null,null,null,null,null,null,null,null,0,null,null,0,0,0]
[null,null,null,null,null,null,null,null,0,null,null,0,0,0]
[null,null,null,null,null,null,null,null,0,null,null,0,0,0]
[null,null,null,null,null,null,null,null,0,null,null,0,0,0]
[null,null,null,null,null,null,null,null,0,null,null,0,0,0]
[null,null,null,null,null,null,null,null,0,null,null,0,0,0]
[null,null,null,null,null,null,null,null,0,null,null,0,0,0]
[null,null,null,null,null,null,null,null,0,null,null,0,0,0]
[null,null,null,null,null,null,null,null,0,null,null,0,0,0]
[null,null,null,null,null,null,null,null,0,null,null,0,0,0]
[null,null,null,null,null,null,null,null,0,null,null,0,0,0]
[null,null,null,null,null,null,null,null,0,null,null,0,0,0]
[null,null,null,null,null,null,null,null,0,null,null,0,0,0]
[null,null,null,null,null,null,null,null,0,null,null,0,0,0]
[null,null,null,null,null,null,null,null,0,null,null,0,0,0]
[null,null,null,null,null,null,null,null,0,null,null,0,0,0]
[null,null,null,null,null,null,null,null,0,null,null,0,0,0]
[null,null,null,null,null,null,null,null,0,null,null,0,0,0]
[null,null,null,null,null,null,null,null,0,null,null,0,0,0]
[null,null,null,null,null,null,null,null,0,null,null,0,0,0]
[null,null,null,null,null,null,null,null,0,null,null,0,0,0]
[null,null,null,null,null,null,null,null,0,null,null,0,0,0]
[null,null,null,null,null,null,null,null,0,null,null,0,0,0]
[null,null,null,null,null,null,null,null,0,null,null,0,0,0]
[null,null,null,null,null,null,null,null,0,null,null,0,0,0]
[null,null,null,null,null,null,null,null,0,null,null,0,0,0]
[null,null,null,null,null,null,null,null,0,null,null,0,0,0]
[null,null,null,null,null,null,null,null,0,null,null,0,0,0]
[null,null,null,null,null,null,null,null,0,null,null,0,0,0]
[null,null,null,null,null,null,null,null,0,null,null,0,0,0]
[null,null,null,null,null,null,null,null,0,null,null,0,0,0]
[null,null,null,null,null,null,null,null,0,null,null,0,0,0]
[null,null,null,null,null,null,null,null,0,null,null,0,0,0]
[null,null,null,null,null,null,null,null,0,null,null,0,0,0]
[null,null,null,null,null,null,null,null,0,null,null,0,0,0]
[null,null,null,null,null,null,null,null,0,null,null,0,0,0]
[null,null,null,null,null,null,null,null,0,null,null,0,0,0]
[null,null,null,null,null,null,null,null,0,null,null,0,0,0]
[null,null,null,null,null,null,null,null,0,null,null,0,0,0]
[null,null,null,null,null,null,null,null,0,null,null,0,0,0]
[null,null,null,null,null,null,null,null,0,null,null,0,0,0]
[null,null,null,null,null,null,null,null,0,null,null,0,0,0]
[null,null,null,null,null,null,null,null,0,null,null,0,0,0]
[null,null,null,null,null,null,null,null,0,null,null,0,0,0]
[null,null,null,null,null,null,null,null,0,null,null,0,0,0]
[null,null,null,null,null,null,null,null,{"$f":"IF(F902=\"مصري \",G902,G902*H902)","v":0},null,null,{"$f":"IF(E902=\"DR\",I902,0)","v":0},{"$f":"IF(E902=\"CR\",I902,0)","v":0},{"$f":"M902-L902","v":0}]
[null,null,null,null,null,null,null,null,0,null,null,0,0,0]
[null,null,null,null,null,null,null,null,0,null,null,0,0,0]
[null,null,null,null,null,null,null,null,0,null,null,0,0,0]
[null,null,null,null,null,null,null,null,0,null,null,0,0,0]
[null,null,null,null,null,null,null,null,0,null,null,0,0,0]
[null,null,null,null,null,null,null,null,0,null,null,0,0,0]
[null,null,null,null,null,null,null,null,0,null,null,0,0,0]
[null,null,null,null,null,null,null,null,0,null,null,0,0,0]
[null,null,null,null,null,null,null,null,0,null,null,0,0,0]
[null,null,null,null,null,null,null,null,0,null,null,0,0,0]
[null,null,null,null,null,null,null,null,0,null,null,0,0,0]
[null,null,null,null,null,null,null,null,0,null,null,0,0,0]
[null,null,null,null,null,null,null,null,0,null,null,0,0,0]
[null,null,null,null,null,null,null,null,0,null,null,0,0,0]
[null,null,null,null,null,null,null,null,0,null,null,0,0,0]
[null,null,null,null,null,null,null,null,0,null,null,0,0,0]
[null,null,null,null,null,null,null,null,0,null,null,0,0,0]
[null,null,null,null,null,null,null,null,0,null,null,0,0,0]
[null,null,null,null,null,null,null,null,0,null,null,0,0,0]
[null,null,null,null,null,null,null,null,0,null,null,0,0,0]
[null,null,null,null,null,null,null,null,0,null,null,0,0,0]
[null,null,null,null,null,null,null,null,0,null,null,0,0,0]
[null,null,null,null,null,null,null,null,0,null,null,0,0,0]
[null,null,null,null,null,null,null,null,0,null,null,0,0,0]
[null,null,null,null,null,null,null,null,0,null,null,0,0,0]
[null,null,null,null,null,null,null,null,0,null,null,0,0,0]
[null,null,null,null,null,null,null,null,0,null,null,0,0,0]
[null,null,null,null,null,null,null,null,0,null,null,0,0,0]
[null,null,null,null,null,null,null,null,0,null,null,0,0,0]
[null,null,null,null,null,null,null,null,0,null,null,0,0,0]
[null,null,null,null,null,null,null,null,0,null,null,0,0,0]
[null,null,null,null,null,null,null,null,0,null,null,0,0,0]
[null,null,null,null,null,null,null,null,0,null,null,0,0,0]
[null,null,null,null,null,null,null,null,0,null,null,0,0,0]
[null,null,null,null,null,null,null,null,0,null,null,0,0,0]
[null,null,null,null,null,null,null,null,0,null,null,0,0,0]
[null,null,null,null,null,null,null,null,0,null,null,0,0,0]
[null,null,null,null,null,null,null,null,0,null,null,0,0,0]
[null,null,null,null,null,null,null,null,0,null,null,0,0,0]
[null,null,null,null,null,null,null,null,0,null,null,0,0,0]
[null,null,null,null,null,null,null,null,0,null,null,0,0,0]
[null,null,null,null,null,null,null,null,0,null,null,0,0,0]
[null,null,null,null,null,null,null,null,0,null,null,0,0,0]
[null,null,null,null,null,null,null,null,0,null,null,0,0,0]
[null,null,null,null,null,null,null,null,0,null,null,0,0,0]
[null,null,null,null,null,null,null,null,0,null,null,0,0,0]
[null,null,null,null,null,null,null,null,0,null,null,0,0,0]
[null,null,null,null,null,null,null,null,0,null,null,0,0,0]
[null,null,null,null,null,null,null,null,0,null,null,0,0,0]
[null,null,null,null,null,null,null,null,0,null,null,0,0,0]
[null,null,null,null,null,null,null,null,0,null,null,0,0,0]
[null,null,null,null,null,null,null,null,0,null,null,0,0,0]
[null,null,null,null,null,null,null,null,0,null,null,0,0,0]
[null,null,null,null,null,null,null,null,0,null,null,0,0,0]
[null,null,null,null,null,null,null,null,0,null,null,0,0,0]
[null,null,null,null,null,null,null,null,0,null,null,0,0,0]
[null,null,null,null,null,null,null,null,0,null,null,0,0,0]
[null,null,null,null,null,null,null,null,0,null,null,0,0,0]
[null,null,null,null,null,null,null,null,0,null,null,0,0,0]
[null,null,null,null,null,null,null,null,0,null,null,0,0,0]
[null,null,null,null,null,null,null,null,0,null,null,0,0,0]
[null,null,null,null,null,null,null,null,0,null,null,0,0,0]
[null,null,null,null,null,null,null,null,0,null,null,0,0,0]
[null,null,null,null,null,null,null,null,{"$f":"IF(F966=\"مصري \",G966,G966*H966)","v":0},null,null,{"$f":"IF(E966=\"DR\",I966,0)","v":0},{"$f":"IF(E966=\"CR\",I966,0)","v":0},{"$f":"M966-L966","v":0}]
[null,null,null,null,null,null,null,null,0,null,null,0,0,0]
[null,null,null,null,null,null,null,null,0,null,null,0,0,0]
[null,null,null,null,null,null,null,null,0,null,null,0,0,0]
[null,null,null,null,null,null,null,null,0,null,null,0,0,0]
[null,null,null,null,null,null,null,null,0,null,null,0,0,0]
[null,null,null,null,null,null,null,null,0,null,null,0,0,0]
[null,null,null,null,null,null,null,null,0,null,null,0,0,0]
[null,null,null,null,null,null,null,null,0,null,null,0,0,0]
[null,null,null,null,null,null,null,null,0,null,null,0,0,0]
[null,null,null,null,null,null,null,null,0,null,null,0,0,0]
[null,null,null,null,null,null,null,null,0,null,null,0,0,0]
[null,null,null,null,null,null,null,null,0,null,null,0,0,0]
[null,null,null,null,null,null,null,null,0,null,null,0,0,0]
[null,null,null,null,null,null,null,null,0,null,null,0,0,0]
[null,null,null,null,null,null,null,null,0,null,null,0,0,0]
[null,null,null,null,null,null,null,null,0,null,null,0,0,0]
[null,null,null,null,null,null,null,null,0,null,null,0,0,0]
[null,null,null,null,null,null,null,null,0,null,null,0,0,0]
[null,null,null,null,null,null,null,null,0,null,null,0,0,0]
[null,null,null,null,null,null,null,null,0,null,null,0,0,0]
[null,null,null,null,null,null,null,null,0,null,null,0,0,0]
[null,null,null,null,null,null,null,null,0,null,null,0,0,0]
[null,null,null,null,null,null,null,null,0,null,null,0,0,0]
[null,null,null,null,null,null,null,null,0,null,null,0,0,0]
[null,null,null,null,null,null,null,null,0,null,null,0,0,0]
[null,null,null,null,null,null,null,null,0,null,null,0,0,0]
[null,null,null,null,null,null,null,null,0,null,null,0,0,0]
[null,null,null,null,null,null,null,null,0,null,null,0,0,0]
[null,null,null,null,null,null,null,null,0,null,null,0,0,0]
[null,null,null,null,null,null,null,null,0,null,null,0,0,0]
[null,null,null,null,null,null,null,null,0,null,null,0,0,0]
[null,null,null,null,null,null,null,null,0,null,null,0,0,0]
[null,null,null,null,null,null,null,null,0,null,null,0,0,0]
[null,null,null,null,null,null,null,null,0,null,null,0,0,0]
[null,null,null,null,null,null,null,null,0,null,null,0,0,0]
[null,null,null,null,null,null,null,null,0,null,null,0,0,0]
[null,null,null,null,null,null,null,null,null,null,null,{"$f":"SUM(L5:L1002)","v":0},{"$f":"SUM(M5:M1002)","v":0},0]

{"sheet":"البنك العربي الافريقي ","index":5,"n_rows":1003,"n_cols":33,"rows_kept":1003,"cut":false,"hidden":false,"merged":[[1,9,2,12],[1,0,2,1],[1,2,2,2],[1,5,2,6],[1,7,2,7],[1,8,2,8],[1,3,2,4]]}
[]
["تاريخ اليوم",null,{"$f":"TODAY()","v":"2020-07-19"},"البنك العربي الافريقي",null,"الرصيد حتى",null,{"$f":"VLOOKUP(1000000000,B5:B1002,1)","v":{"$error":"#N/A"}},{"$f":"N1003","v":0},{"$f":"CurrText(I2)","v":"صفر جنية"}]
[]
["م","التاريخ ","طريقة التحصيل ","طريقة السحب","نوع الحركة ","نوع الحساب ","المبلغ","سعر الصرف","القيمة بالجنية المصري","رقم الوحده ","البيان ","مدين ","دائن ","الرصيد",null,null,null,null,null,null,null,null,null,null,null,null,null,null,"نوع الحساب","نوع الحركة ",null,"طريقة التحصيل","طريقة السحب"]
[null,null,null,null,null,null,null,null,{"$f":"IF(F5=\"مصري \",G5,G5*H5)","v":0},null,null,{"$f":"IF(E5=\"DR\",I5,0)","v":0},{"$f":"IF(E5=\"CR\",I5,0)","v":0},{"$f":"M5-L5","v":0},null,null,null,null,null,null,null,null,null,null,null,null,null,null,"مصري ","CR",null,"تحويل"]
[null,null,null,null,null,null,null,null,{"$f":"IF(F6=\"مصري \",G6,G6*H6)","v":0},null,null,{"$f":"IF(E6=\"DR\",I6,0)","v":0},{"$f":"IF(E6=\"CR\",I6,0)","v":0},{"$f":"M6-L6","v":0},null,null,null,null,null,null,null,null,null,null,null,null,null,null,null,"DR",null,"تحويل داخلي"]
[null,null,null,null,null,null,null,null,0,null,null,0,0,0,null,null,null,null,null,null,null,null,null,null,null,null,null,null,null,null,null,"تحويل للحساب"]
[null,null,null,null,null,null,null,null,0,null,null,0,0,0,null,null,null,null,null,null,null,null,null,null,null,null,null,null,null,null,null,"شيك "]
[null,null,null,null,null,null,null,null,0,null,null,0,0,0,null,null,null,null,null,null,null,null,null,null,null,null,null,null,null,null,null,"فيزا"]
[null,null,null,null,null,null,null,null,0,null,null,0,0,0,null,null,null,null,null,null,null,null,null,null,null,null,null,null,null,null,null,"ايداع نقدي"]
[null,null,null,null,null,null,null,null,0,null,null,0,0,0]
[null,null,null,null,null,null,null,null,0,null,null,0,0,0]
[null,null,null,null,null,null,null,null,0,null,null,0,0,0]
[null,null,null,null,null,null,null,null,0,null,null,0,0,0]
[null,null,null,null,null,null,null,null,0,null,null,0,0,0]
[null,null,null,null,null,null,null,null,0,null,null,0,0,0]
[null,null,null,null,null,null,null,null,0,null,null,0,0,0]
[null,null,null,null,null,null,null,null,0,null,null,0,0,0]
[null,null,null,null,null,null,null,null,0,null,null,0,0,0]
[null,null,null,null,null,null,null,null,0,null,null,0,0,0]
[null,null,null,null,null,null,null,null,0,null,null,0,0,0]
[null,null,null,null,null,null,null,null,0,null,null,0,0,0]
[null,null,null,null,null,null,null,null,0,null,null,0,0,0]
[null,null,null,null,null,null,null,null,0,null,null,0,0,0]
[null,null,null,null,null,null,null,null,0,null,null,0,0,0]
[null,null,null,null,null,null,null,null,0,null,null,0,0,0]
[null,null,null,null,null,null,null,null,0,null,null,0,0,0]
[null,null,null,null,null,null,null,null,0,null,null,0,0,0]
[null,null,null,null,null,null,null,null,0,null,null,0,0,0]
[null,null,null,null,null,null,null,null,0,null,null,0,0,0]
[null,null,null,null,null,null,null,null,0,null,null,0,0,0]
[null,null,null,null,null,null,null,null,0,null,null,0,0,0]
[null,null,null,null,null,null,null,null,0,null,null,0,0,0]
[null,null,null,null,null,null,null,null,0,null,null,0,0,0]
[null,null,null,null,null,null,null,null,0,null,null,0,0,0]
[null,null,null,null,null,null,null,null,0,null,null,0,0,0]
[null,null,null,null,null,null,null,null,0,null,null,0,0,0]
[null,null,null,null,null,null,null,null,0,null,null,0,0,0]
[null,null,null,null,null,null,null,null,0,null,null,0,0,0]
[null,null,null,null,null,null,null,null,0,null,null,0,0,0]
[null,null,null,null,null,null,null,null,0,null,null,0,0,0]
[null,null,null,null,null,null,null,null,0,null,null,0,0,0]
[null,null,null,null,null,null,null,null,0,null,null,0,0,0]
[null,null,null,null,null,null,null,null,0,null,null,0,0,0]
[null,null,null,null,null,null,null,null,0,null,null,0,0,0]
[null,null,null,null,null,null,null,null,0,null,null,0,0,0]
[null,null,null,null,null,null,null,null,0,null,null,0,0,0]
[null,null,null,null,null,null,null,null,0,null,null,0,0,0]
[null,null,null,null,null,null,null,null,0,null,null,0,0,0]
[null,null,null,null,null,null,null,null,0,null,null,0,0,0]
[null,null,null,null,null,null,null,null,0,null,null,0,0,0]
[null,null,null,null,null,null,null,null,0,null,null,0,0,0]
[null,null,null,null,null,null,null,null,0,null,null,0,0,0]
[null,null,null,null,null,null,null,null,0,null,null,0,0,0]
[null,null,null,null,null,null,null,null,0,null,null,0,0,0]
[null,null,null,null,null,null,null,null,0,null,null,0,0,0]
[null,null,null,null,null,null,null,null,0,null,null,0,0,0]
[null,null,null,null,null,null,null,null,0,null,null,0,0,0]
[null,null,null,null,null,null,null,null,0,null,null,0,0,0]
[null,null,null,null,null,null,null,null,0,null,null,0,0,0]
[null,null,null,null,null,null,null,null,0,null,null,0,0,0]
[null,null,null,null,null,null,null,null,0,null,null,0,0,0]
[null,null,null,null,null,null,null,null,0,null,null,0,0,0]
[null,null,null,null,null,null,null,null,0,null,null,0,0,0]
[null,null,null,null,null,null,null,null,0,null,null,0,0,0]
[null,null,null,null,null,null,null,null,0,null,null,0,0,0]
[null,null,null,null,null,null,null,null,0,null,null,0,0,0]
[null,null,null,null,null,null,null,null,0,null,null,0,0,0]
[null,null,null,null,null,null,null,null,0,null,null,0,0,0]
[null,null,null,null,null,null,null,null,{"$f":"IF(F70=\"مصري \",G70,G70*H70)","v":0},null,null,{"$f":"IF(E70=\"DR\",I70,0)","v":0},{"$f":"IF(E70=\"CR\",I70,0)","v":0},{"$f":"M70-L70","v":0}]
[null,null,null,null,null,null,null,null,0,null,null,0,0,0]
[null,null,null,null,null,null,null,null,0,null,null,0,0,0]
[null,null,null,null,null,null,null,null,0,null,null,0,0,0]
[null,null,null,null,null,null,null,null,0,null,null,0,0,0]
[null,null,null,null,null,null,null,null,0,null,null,0,0,0]
[null,null,null,null,null,null,null,null,0,null,null,0,0,0]
[null,null,null,null,null,null,null,null,0,null,null,0,0,0]
[null,null,null,null,null,null,null,null,0,null,null,0,0,0]
[null,null,null,null,null,null,null,null,0,null,null,0,0,0]
[null,null,null,null,null,null,null,null,0,null,null,0,0,0]
[null,null,null,null,null,null,null,null,0,null,null,0,0,0]
[null,null,null,null,null,null,null,null,0,null,null,0,0,0]
[null,null,null,null,null,null,null,null,0,null,null,0,0,0]
[null,null,null,null,null,null,null,null,0,null,null,0,0,0]
[null,null,null,null,null,null,null,null,0,null,null,0,0,0]
[null,null,null,null,null,null,null,null,0,null,null,0,0,0]
[null,null,null,null,null,null,null,null,0,null,null,0,0,0]
[null,null,null,null,null,null,null,null,0,null,null,0,0,0]
[null,null,null,null,null,null,null,null,0,null,null,0,0,0]
[null,null,null,null,null,null,null,null,0,null,null,0,0,0]
[null,null,null,null,null,null,null,null,0,null,null,0,0,0]
[null,null,null,null,null,null,null,null,0,null,null,0,0,0]
[null,null,null,null,null,null,null,null,0,null,null,0,0,0]
[null,null,null,null,null,null,null,null,0,null,null,0,0,0]
[null,null,null,null,null,null,null,null,0,null,null,0,0,0]
[null,null,null,null,null,null,null,null,0,null,null,0,0,0]
[null,null,null,null,null,null,null,null,0,null,null,0,0,0]
[null,null,null,null,null,null,null,null,0,null,null,0,0,0]
[null,null,null,null,null,null,null,null,0,null,null,0,0,0]
[null,null,null,null,null,null,null,null,0,null,null,0,0,0]
[null,null,null,null,null,null,null,null,0,null,null,0,0,0]
[null,null,null,null,null,null,null,null,0,null,null,0,0,0]
[null,null,null,null,null,null,null,null,0,null,null,0,0,0]
[null,null,null,null,null,null,null,null,0,null,null,0,0,0]
[null,null,null,null,null,null,null,null,0,null,null,0,0,0]
[null,null,null,null,null,null,null,null,0,null,null,0,0,0]
[null,null,null,null,null,null,null,null,0,null,null,0,0,0]
[null,null,null,null,null,null,null,null,0,null,null,0,0,0]
[null,null,null,null,null,null,null,null,0,null,null,0,0,0]
[null,null,null,null,null,null,null,null,0,null,null,0,0,0]
[null,null,null,null,null,null,null,null,0,null,null,0,0,0]
[null,null,null,null,null,null,null,null,0,null,null,0,0,0]
[null,null,null,null,null,null,null,null,0,null,null,0,0,0]
[null,null,null,null,null,null,null,null,0,null,null,0,0,0]
[null,null,null,null,null,null,null,null,0,null,null,0,0,0]
[null,null,null,null,null,null,null,null,0,null,null,0,0,0]
[null,null,null,null,null,null,null,null,0,null,null,0,0,0]
[null,null,null,null,null,null,null,null,0,null,null,0,0,0]
[null,null,null,null,null,null,null,null,0,null,null,0,0,0]
[null,null,null,null,null,null,null,null,0,null,null,0,0,0]
[null,null,null,null,null,null,null,null,0,null,null,0,0,0]
[null,null,null,null,null,null,null,null,0,null,null,0,0,0]
[null,null,null,null,null,null,null,null,0,null,null,0,0,0]
[null,null,null,null,null,null,null,null,0,null,null,0,0,0]
[null,null,null,null,null,null,null,null,0,null,null,0,0,0]
[null,null,null,null,null,null,null,null,0,null,null,0,0,0]
[null,null,null,null,null,null,null,null,0,null,null,0,0,0]
[null,null,null,null,null,null,null,null,0,null,null,0,0,0]
[null,null,null,null,null,null,null,null,0,null,null,0,0,0]
[null,null,null,null,null,null,null,null,0,null,null,0,0,0]
[null,null,null,null,null,null,null,null,0,null,null,0,0,0]
[null,null,null,null,null,null,null,null,0,null,null,0,0,0]
[null,null,null,null,null,null,null,null,0,null,null,0,0,0]
[null,null,null,null,null,null,null,null,{"$f":"IF(F134=\"مصري \",G134,G134*H134)","v":0},null,null,{"$f":"IF(E134=\"DR\",I134,0)","v":0},{"$f":"IF(E134=\"CR\",I134,0)","v":0},{"$f":"M134-L134","v":0}]
[null,null,null,null,null,null,null,null,0,null,null,0,0,0]
[null,null,null,null,null,null,null,null,0,null,null,0,0,0]
[null,null,null,null,null,null,null,null,0,null,null,0,0,0]
[null,null,null,null,null,null,null,null,0,null,null,0,0,0]
[null,null,null,null,null,null,null,null,0,null,null,0,0,0]
[null,null,null,null,null,null,null,null,0,null,null,0,0,0]
[null,null,null,null,null,null,null,null,0,null,null,0,0,0]
[null,null,null,null,null,null,null,null,0,null,null,0,0,0]
[null,null,null,null,null,null,null,null,0,null,null,0,0,0]
[null,null,null,null,null,null,null,null,0,null,null,0,0,0]
[null,null,null,null,null,null,null,null,0,null,null,0,0,0]
[null,null,null,null,null,null,null,null,0,null,null,0,0,0]
[null,null,null,null,null,null,null,null,0,null,null,0,0,0]
[null,null,null,null,null,null,null,null,0,null,null,0,0,0]
[null,null,null,null,null,null,null,null,0,null,null,0,0,0]
[null,null,null,null,null,null,null,null,0,null,null,0,0,0]
[null,null,null,null,null,null,null,null,0,null,null,0,0,0]
[null,null,null,null,null,null,null,null,0,null,null,0,0,0]
[null,null,null,null,null,null,null,null,0,null,null,0,0,0]
[null,null,null,null,null,null,null,null,0,null,null,0,0,0]
[null,null,null,null,null,null,null,null,0,null,null,0,0,0]
[null,null,null,null,null,null,null,null,0,null,null,0,0,0]
[null,null,null,null,null,null,null,null,0,null,null,0,0,0]
[null,null,null,null,null,null,null,null,0,null,null,0,0,0]
[null,null,null,null,null,null,null,null,0,null,null,0,0,0]
[null,null,null,null,null,null,null,null,0,null,null,0,0,0]
[null,null,null,null,null,null,null,null,0,null,null,0,0,0]
[null,null,null,null,null,null,null,null,0,null,null,0,0,0]
[null,null,null,null,null,null,null,null,0,null,null,0,0,0]
[null,null,null,null,null,null,null,null,0,null,null,0,0,0]
[null,null,null,null,null,null,null,null,0,null,null,0,0,0]
[null,null,null,null,null,null,null,null,0,null,null,0,0,0]
[null,null,null,null,null,null,null,null,0,null,null,0,0,0]
[null,null,null,null,null,null,null,null,0,null,null,0,0,0]
[null,null,null,null,null,null,null,null,0,null,null,0,0,0]
[null,null,null,null,null,null,null,null,0,null,null,0,0,0]
[null,null,null,null,null,null,null,null,0,null,null,0,0,0]
[null,null,null,null,null,null,null,null,0,null,null,0,0,0]
[null,null,null,null,null,null,null,null,0,null,null,0,0,0]
[null,null,null,null,null,null,null,null,0,null,null,0,0,0]
[null,null,null,null,null,null,null,null,0,null,null,0,0,0]
[null,null,null,null,null,null,null,null,0,null,null,0,0,0]
[null,null,null,null,null,null,null,null,0,null,null,0,0,0]
[null,null,null,null,null,null,null,null,0,null,null,0,0,0]
[null,null,null,null,null,null,null,null,0,null,null,0,0,0]
[null,null,null,null,null,null,null,null,0,null,null,0,0,0]
[null,null,null,null,null,null,null,null,0,null,null,0,0,0]
[null,null,null,null,null,null,null,null,0,null,null,0,0,0]
[null,null,null,null,null,null,null,null,0,null,null,0,0,0]
[null,null,null,null,null,null,null,null,0,null,null,0,0,0]
[null,null,null,null,null,null,null,null,0,null,null,0,0,0]
[null,null,null,null,null,null,null,null,0,null,null,0,0,0]
[null,null,null,null,null,null,null,null,0,null,null,0,0,0]
[null,null,null,null,null,null,null,null,0,null,null,0,0,0]
[null,null,null,null,null,null,null,null,0,null,null,0,0,0]
[null,null,null,null,null,null,null,null,0,null,null,0,0,0]
[null,null,null,null,null,null,null,null,0,null,null,0,0,0]
[null,null,null,null,null,null,null,null,0,null,null,0,0,0]
[null,null,null,null,null,null,null,null,0,null,null,0,0,0]
[null,null,null,null,null,null,null,null,0,null,null,0,0,0]
[null,null,null,null,null,null,null,null,0,null,null,0,0,0]
[null,null,null,null,null,null,null,null,0,null,null,0,0,0]
[null,null,null,null,null,null,null,null,0,null,null,0,0,0]
[null,null,null,null,null,null,null,null,{"$f":"IF(F198=\"مصري \",G198,G198*H198)","v":0},null,null,{"$f":"IF(E198=\"DR\",I198,0)","v":0},{"$f":"IF(E198=\"CR\",I198,0)","v":0},{"$f":"M198-L198","v":0}]
[null,null,null,null,null,null,null,null,0,null,null,0,0,0]
[null,null,null,null,null,null,null,null,0,null,null,0,0,0]
[null,null,null,null,null,null,null,null,0,null,null,0,0,0]
[null,null,null,null,null,null,null,null,0,null,null,0,0,0]
[null,null,null,null,null,null,null,null,0,null,null,0,0,0]
[null,null,null,null,null,null,null,null,0,null,null,0,0,0]
[null,null,null,null,null,null,null,null,0,null,null,0,0,0]
[null,null,null,null,null,null,null,null,0,null,null,0,0,0]
[null,null,null,null,null,null,null,null,0,null,null,0,0,0]
[null,null,null,null,null,null,null,null,0,null,null,0,0,0]
[null,null,null,null,null,null,null,null,0,null,null,0,0,0]
[null,null,null,null,null,null,null,null,0,null,null,0,0,0]
[null,null,null,null,null,null,null,null,0,null,null,0,0,0]
[null,null,null,null,null,null,null,null,0,null,null,0,0,0]
[null,null,null,null,null,null,null,null,0,null,null,0,0,0]
[null,null,null,null,null,null,null,null,0,null,null,0,0,0]
[null,null,null,null,null,null,null,null,0,null,null,0,0,0]
[null,null,null,null,null,null,null,null,0,null,null,0,0,0]
[null,null,null,null,null,null,null,null,0,null,null,0,0,0]
[null,null,null,null,null,null,null,null,0,null,null,0,0,0]
[null,null,null,null,null,null,null,null,0,null,null,0,0,0]
[null,null,null,null,null,null,null,null,0,null,null,0,0,0]
[null,null,null,null,null,null,null,null,0,null,null,0,0,0]
[null,null,null,null,null,null,null,null,0,null,null,0,0,0]
[null,null,null,null,null,null,null,null,0,null,null,0,0,0]
[null,null,null,null,null,null,null,null,0,null,null,0,0,0]
[null,null,null,null,null,null,null,null,0,null,null,0,0,0]
[null,null,null,null,null,null,null,null,0,null,null,0,0,0]
[null,null,null,null,null,null,null,null,0,null,null,0,0,0]
[null,null,null,null,null,null,null,null,0,null,null,0,0,0]
[null,null,null,null,null,null,null,null,0,null,null,0,0,0]
[null,null,null,null,null,null,null,null,0,null,null,0,0,0]
[null,null,null,null,null,null,null,null,0,null,null,0,0,0]
[null,null,null,null,null,null,null,null,0,null,null,0,0,0]
[null,null,null,null,null,null,null,null,0,null,null,0,0,0]
[null,null,null,null,null,null,null,null,0,null,null,0,0,0]
[null,null,null,null,null,null,null,null,0,null,null,0,0,0]
[null,null,null,null,null,null,null,null,0,null,null,0,0,0]
[null,null,null,null,null,null,null,null,0,null,null,0,0,0]
[null,null,null,null,null,null,null,null,0,null,null,0,0,0]
[null,null,null,null,null,null,null,null,0,null,null,0,0,0]
[null,null,null,null,null,null,null,null,0,null,null,0,0,0]
[null,null,null,null,null,null,null,null,0,null,null,0,0,0]
[null,null,null,null,null,null,null,null,0,null,null,0,0,0]
[null,null,null,null,null,null,null,null,0,null,null,0,0,0]
[null,null,null,null,null,null,null,null,0,null,null,0,0,0]
[null,null,null,null,null,null,null,null,0,null,null,0,0,0]
[null,null,null,null,null,null,null,null,0,null,null,0,0,0]
[null,null,null,null,null,null,null,null,0,null,null,0,0,0]
[null,null,null,null,null,null,null,null,0,null,null,0,0,0]
[null,null,null,null,null,null,null,null,0,null,null,0,0,0]
[null,null,null,null,null,null,null,null,0,null,null,0,0,0]
[null,null,null,null,null,null,null,null,0,null,null,0,0,0]
[null,null,null,null,null,null,null,null,0,null,null,0,0,0]
[null,null,null,null,null,null,null,null,0,null,null,0,0,0]
[null,null,null,null,null,null,null,null,0,null,null,0,0,0]
[null,null,null,null,null,null,null,null,0,null,null,0,0,0]
[null,null,null,null,null,null,null,null,0,null,null,0,0,0]
[null,null,null,null,null,null,null,null,0,null,null,0,0,0]
[null,null,null,null,null,null,null,null,0,null,null,0,0,0]
[null,null,null,null,null,null,null,null,0,null,null,0,0,0]
[null,null,null,null,null,null,null,null,0,null,null,0,0,0]
[null,null,null,null,null,null,null,null,0,null,null,0,0,0]
[null,null,null,null,null,null,null,null,{"$f":"IF(F262=\"مصري \",G262,G262*H262)","v":0},null,null,{"$f":"IF(E262=\"DR\",I262,0)","v":0},{"$f":"IF(E262=\"CR\",I262,0)","v":0},{"$f":"M262-L262","v":0}]
[null,null,null,null,null,null,null,null,0,null,null,0,0,0]
[null,null,null,null,null,null,null,null,0,null,null,0,0,0]
[null,null,null,null,null,null,null,null,0,null,null,0,0,0]
[null,null,null,null,null,null,null,null,0,null,null,0,0,0]
[null,null,null,null,null,null,null,null,0,null,null,0,0,0]
[null,null,null,null,null,null,null,null,0,null,null,0,0,0]
[null,null,null,null,null,null,null,null,0,null,null,0,0,0]
[null,null,null,null,null,null,null,null,0,null,null,0,0,0]
[null,null,null,null,null,null,null,null,0,null,null,0,0,0]
[null,null,null,null,null,null,null,null,0,null,null,0,0,0]
[null,null,null,null,null,null,null,null,0,null,null,0,0,0]
[null,null,null,null,null,null,null,null,0,null,null,0,0,0]
[null,null,null,null,null,null,null,null,0,null,null,0,0,0]
[null,null,null,null,null,null,null,null,0,null,null,0,0,0]
[null,null,null,null,null,null,null,null,0,null,null,0,0,0]
[null,null,null,null,null,null,null,null,0,null,null,0,0,0]
[null,null,null,null,null,null,null,null,0,null,null,0,0,0]
[null,null,null,null,null,null,null,null,0,null,null,0,0,0]
[null,null,null,null,null,null,null,null,0,null,null,0,0,0]
[null,null,null,null,null,null,null,null,0,null,null,0,0,0]
[null,null,null,null,null,null,null,null,0,null,null,0,0,0]
[null,null,null,null,null,null,null,null,0,null,null,0,0,0]
[null,null,null,null,null,null,null,null,0,null,null,0,0,0]
[null,null,null,null,null,null,null,null,0,null,null,0,0,0]
[null,null,null,null,null,null,null,null,0,null,null,0,0,0]
[null,null,null,null,null,null,null,null,0,null,null,0,0,0]
[null,null,null,null,null,null,null,null,0,null,null,0,0,0]
[null,null,null,null,null,null,null,null,0,null,null,0,0,0]
[null,null,null,null,null,null,null,null,0,null,null,0,0,0]
[null,null,null,null,null,null,null,null,0,null,null,0,0,0]
[null,null,null,null,null,null,null,null,0,null,null,0,0,0]
[null,null,null,null,null,null,null,null,0,null,null,0,0,0]
[null,null,null,null,null,null,null,null,0,null,null,0,0,0]
[null,null,null,null,null,null,null,null,0,null,null,0,0,0]
[null,null,null,null,null,null,null,null,0,null,null,0,0,0]
[null,null,null,null,null,null,null,null,0,null,null,0,0,0]
[null,null,null,null,null,null,null,null,0,null,null,0,0,0]
[null,null,null,null,null,null,null,null,0,null,null,0,0,0]
[null,null,null,null,null,null,null,null,0,null,null,0,0,0]
[null,null,null,null,null,null,null,null,0,null,null,0,0,0]
[null,null,null,null,null,null,null,null,0,null,null,0,0,0]
[null,null,null,null,null,null,null,null,0,null,null,0,0,0]
[null,null,null,null,null,null,null,null,0,null,null,0,0,0]
[null,null,null,null,null,null,null,null,0,null,null,0,0,0]
[null,null,null,null,null,null,null,null,0,null,null,0,0,0]
[null,null,null,null,null,null,null,null,0,null,null,0,0,0]
[null,null,null,null,null,null,null,null,0,null,null,0,0,0]
[null,null,null,null,null,null,null,null,0,null,null,0,0,0]
[null,null,null,null,null,null,null,null,0,null,null,0,0,0]
[null,null,null,null,null,null,null,null,0,null,null,0,0,0]
[null,null,null,null,null,null,null,null,0,null,null,0,0,0]
[null,null,null,null,null,null,null,null,0,null,null,0,0,0]
[null,null,null,null,null,null,null,null,0,null,null,0,0,0]
[null,null,null,null,null,null,null,null,0,null,null,0,0,0]
[null,null,null,null,null,null,null,null,0,null,null,0,0,0]
[null,null,null,null,null,null,null,null,0,null,null,0,0,0]
[null,null,null,null,null,null,null,null,0,null,null,0,0,0]
[null,null,null,null,null,null,null,null,0,null,null,0,0,0]
[null,null,null,null,null,null,null,null,0,null,null,0,0,0]
[null,null,null,null,null,null,null,null,0,null,null,0,0,0]
[null,null,null,null,null,null,null,null,0,null,null,0,0,0]
[null,null,null,null,null,null,null,null,0,null,null,0,0,0]
[null,null,null,null,null,null,null,null,0,null,null,0,0,0]
[null,null,null,null,null,null,null,null,{"$f":"IF(F326=\"مصري \",G326,G326*H326)","v":0},null,null,{"$f":"IF(E326=\"DR\",I326,0)","v":0},{"$f":"IF(E326=\"CR\",I326,0)","v":0},{"$f":"M326-L326","v":0}]
[null,null,null,null,null,null,null,null,0,null,null,0,0,0]
[null,null,null,null,null,null,null,null,0,null,null,0,0,0]
[null,null,null,null,null,null,null,null,0,null,null,0,0,0]
[null,null,null,null,null,null,null,null,0,null,null,0,0,0]
[null,null,null,null,null,null,null,null,0,null,null,0,0,0]
[null,null,null,null,null,null,null,null,0,null,null,0,0,0]
[null,null,null,null,null,null,null,null,0,null,null,0,0,0]
[null,null,null,null,null,null,null,null,0,null,null,0,0,0]
[null,null,null,null,null,null,null,null,0,null,null,0,0,0]
[null,null,null,null,null,null,null,null,0,null,null,0,0,0]
[null,null,null,null,null,null,null,null,0,null,null,0,0,0]
[null,null,null,null,null,null,null,null,0,null,null,0,0,0]
[null,null,null,null,null,null,null,null,0,null,null,0,0,0]
[null,null,null,null,null,null,null,null,0,null,null,0,0,0]
[null,null,null,null,null,null,null,null,0,null,null,0,0,0]
[null,null,null,null,null,null,null,null,0,null,null,0,0,0]
[null,null,null,null,null,null,null,null,0,null,null,0,0,0]
[null,null,null,null,null,null,null,null,0,null,null,0,0,0]
[null,null,null,null,null,null,null,null,0,null,null,0,0,0]
[null,null,null,null,null,null,null,null,0,null,null,0,0,0]
[null,null,null,null,null,null,null,null,0,null,null,0,0,0]
[null,null,null,null,null,null,null,null,0,null,null,0,0,0]
[null,null,null,null,null,null,null,null,0,null,null,0,0,0]
[null,null,null,null,null,null,null,null,0,null,null,0,0,0]
[null,null,null,null,null,null,null,null,0,null,null,0,0,0]
[null,null,null,null,null,null,null,null,0,null,null,0,0,0]
[null,null,null,null,null,null,null,null,0,null,null,0,0,0]
[null,null,null,null,null,null,null,null,0,null,null,0,0,0]
[null,null,null,null,null,null,null,null,0,null,null,0,0,0]
[null,null,null,null,null,null,null,null,0,null,null,0,0,0]
[null,null,null,null,null,null,null,null,0,null,null,0,0,0]
[null,null,null,null,null,null,null,null,0,null,null,0,0,0]
[null,null,null,null,null,null,null,null,0,null,null,0,0,0]
[null,null,null,null,null,null,null,null,0,null,null,0,0,0]
[null,null,null,null,null,null,null,null,0,null,null,0,0,0]
[null,null,null,null,null,null,null,null,0,null,null,0,0,0]
[null,null,null,null,null,null,null,null,0,null,null,0,0,0]
[null,null,null,null,null,null,null,null,0,null,null,0,0,0]
[null,null,null,null,null,null,null,null,0,null,null,0,0,0]
[null,null,null,null,null,null,null,null,0,null,null,0,0,0]
[null,null,null,null,null,null,null,null,0,null,null,0,0,0]
[null,null,null,null,null,null,null,null,0,null,null,0,0,0]
[null,null,null,null,null,null,null,null,0,null,null,0,0,0]
[null,null,null,null,null,null,null,null,0,null,null,0,0,0]
[null,null,null,null,null,null,null,null,0,null,null,0,0,0]
[null,null,null,null,null,null,null,null,0,null,null,0,0,0]
[null,null,null,null,null,null,null,null,0,null,null,0,0,0]
[null,null,null,null,null,null,null,null,0,null,null,0,0,0]
[null,null,null,null,null,null,null,null,0,null,null,0,0,0]
[null,null,null,null,null,null,null,null,0,null,null,0,0,0]
[null,null,null,null,null,null,null,null,0,null,null,0,0,0]
[null,null,null,null,null,null,null,null,0,null,null,0,0,0]
[null,null,null,null,null,null,null,null,0,null,null,0,0,0]
[null,null,null,null,null,null,null,null,0,null,null,0,0,0]
[null,null,null,null,null,null,null,null,0,null,null,0,0,0]
[null,null,null,null,null,null,null,null,0,null,null,0,0,0]
[null,null,null,null,null,null,null,null,0,null,null,0,0,0]
[null,null,null,null,null,null,null,null,0,null,null,0,0,0]
[null,null,null,null,null,null,null,null,0,null,null,0,0,0]
[null,null,null,null,null,null,null,null,0,null,null,0,0,0]
[null,null,null,null,null,null,null,null,0,null,null,0,0,0]
[null,null,null,null,null,null,null,null,0,null,null,0,0,0]
[null,null,null,null,null,null,null,null,0,null,null,0,0,0]
[null,null,null,null,null,null,null,null,{"$f":"IF(F390=\"مصري \",G390,G390*H390)","v":0},null,null,{"$f":"IF(E390=\"DR\",I390,0)","v":0},{"$f":"IF(E390=\"CR\",I390,0)","v":0},{"$f":"M390-L390","v":0}]
[null,null,null,null,null,null,null,null,0,null,null,0,0,0]
[null,null,null,null,null,null,null,null,0,null,null,0,0,0]
[null,null,null,null,null,null,null,null,0,null,null,0,0,0]
[null,null,null,null,null,null,null,null,0,null,null,0,0,0]
[null,null,null,null,null,null,null,null,0,null,null,0,0,0]
[null,null,null,null,null,null,null,null,0,null,null,0,0,0]
[null,null,null,null,null,null,null,null,0,null,null,0,0,0]
[null,null,null,null,null,null,null,null,0,null,null,0,0,0]
[null,null,null,null,null,null,null,null,0,null,null,0,0,0]
[null,null,null,null,null,null,null,null,0,null,null,0,0,0]
[null,null,null,null,null,null,null,null,0,null,null,0,0,0]
[null,null,null,null,null,null,null,null,0,null,null,0,0,0]
[null,null,null,null,null,null,null,null,0,null,null,0,0,0]
[null,null,null,null,null,null,null,null,0,null,null,0,0,0]
[null,null,null,null,null,null,null,null,0,null,null,0,0,0]
[null,null,null,null,null,null,null,null,0,null,null,0,0,0]
[null,null,null,null,null,null,null,null,0,null,null,0,0,0]
[null,null,null,null,null,null,null,null,0,null,null,0,0,0]
[null,null,null,null,null,null,null,null,0,null,null,0,0,0]
[null,null,null,null,null,null,null,null,0,null,null,0,0,0]
[null,null,null,null,null,null,null,null,0,null,null,0,0,0]
[null,null,null,null,null,null,null,null,0,null,null,0,0,0]
[null,null,null,null,null,null,null,null,0,null,null,0,0,0]
[null,null,null,null,null,null,null,null,0,null,null,0,0,0]
[null,null,null,null,null,null,null,null,0,null,null,0,0,0]
[null,null,null,null,null,null,null,null,0,null,null,0,0,0]
[null,null,null,null,null,null,null,null,0,null,null,0,0,0]
[null,null,null,null,null,null,null,null,0,null,null,0,0,0]
[null,null,null,null,null,null,null,null,0,null,null,0,0,0]
[null,null,null,null,null,null,null,null,0,null,null,0,0,0]
[null,null,null,null,null,null,null,null,0,null,null,0,0,0]
[null,null,null,null,null,null,null,null,0,null,null,0,0,0]
[null,null,null,null,null,null,null,null,0,null,null,0,0,0]
[null,null,null,null,null,null,null,null,0,null,null,0,0,0]
[null,null,null,null,null,null,null,null,0,null,null,0,0,0]
[null,null,null,null,null,null,null,null,0,null,null,0,0,0]
[null,null,null,null,null,null,null,null,0,null,null,0,0,0]
[null,null,null,null,null,null,null,null,0,null,null,0,0,0]
[null,null,null,null,null,null,null,null,0,null,null,0,0,0]
[null,null,null,null,null,null,null,null,0,null,null,0,0,0]
[null,null,null,null,null,null,null,null,0,null,null,0,0,0]
[null,null,null,null,null,null,null,null,0,null,null,0,0,0]
[null,null,null,null,null,null,null,null,0,null,null,0,0,0]
[null,null,null,null,null,null,null,null,0,null,null,0,0,0]
[null,null,null,null,null,null,null,null,0,null,null,0,0,0]
[null,null,null,null,null,null,null,null,0,null,null,0,0,0]
[null,null,null,null,null,null,null,null,0,null,null,0,0,0]
[null,null,null,null,null,null,null,null,0,null,null,0,0,0]
[null,null,null,null,null,null,null,null,0,null,null,0,0,0]
[null,null,null,null,null,null,null,null,0,null,null,0,0,0]
[null,null,null,null,null,null,null,null,0,null,null,0,0,0]
[null,null,null,null,null,null,null,null,0,null,null,0,0,0]
[null,null,null,null,null,null,null,null,0,null,null,0,0,0]
[null,null,null,null,null,null,null,null,0,null,null,0,0,0]
[null,null,null,null,null,null,null,null,0,null,null,0,0,0]
[null,null,null,null,null,null,null,null,0,null,null,0,0,0]
[null,null,null,null,null,null,null,null,0,null,null,0,0,0]
[null,null,null,null,null,null,null,null,0,null,null,0,0,0]
[null,null,null,null,null,null,null,null,0,null,null,0,0,0]
[null,null,null,null,null,null,null,null,0,null,null,0,0,0]
[null,null,null,null,null,null,null,null,0,null,null,0,0,0]
[null,null,null,null,null,null,null,null,0,null,null,0,0,0]
[null,null,null,null,null,null,null,null,0,null,null,0,0,0]
[null,null,null,null,null,null,null,null,{"$f":"IF(F454=\"مصري \",G454,G454*H454)","v":0},null,null,{"$f":"IF(E454=\"DR\",I454,0)","v":0},{"$f":"IF(E454=\"CR\",I454,0)","v":0},{"$f":"M454-L454","v":0}]
[null,null,null,null,null,null,null,null,0,null,null,0,0,0]
[null,null,null,null,null,null,null,null,0,null,null,0,0,0]
[null,null,null,null,null,null,null,null,0,null,null,0,0,0]
[null,null,null,null,null,null,null,null,0,null,null,0,0,0]
[null,null,null,null,null,null,null,null,0,null,null,0,0,0]
[null,null,null,null,null,null,null,null,0,null,null,0,0,0]
[null,null,null,null,null,null,null,null,0,null,null,0,0,0]
[null,null,null,null,null,null,null,null,0,null,null,0,0,0]
[null,null,null,null,null,null,null,null,0,null,null,0,0,0]
[null,null,null,null,null,null,null,null,0,null,null,0,0,0]
[null,null,null,null,null,null,null,null,0,null,null,0,0,0]
[null,null,null,null,null,null,null,null,0,null,null,0,0,0]
[null,null,null,null,null,null,null,null,0,null,null,0,0,0]
[null,null,null,null,null,null,null,null,0,null,null,0,0,0]
[null,null,null,null,null,null,null,null,0,null,null,0,0,0]
[null,null,null,null,null,null,null,null,0,null,null,0,0,0]
[null,null,null,null,null,null,null,null,0,null,null,0,0,0]
[null,null,null,null,null,null,null,null,0,null,null,0,0,0]
[null,null,null,null,null,null,null,null,0,null,null,0,0,0]
[null,null,null,null,null,null,null,null,0,null,null,0,0,0]
[null,null,null,null,null,null,null,null,0,null,null,0,0,0]
[null,null,null,null,null,null,null,null,0,null,null,0,0,0]
[null,null,null,null,null,null,null,null,0,null,null,0,0,0]
[null,null,null,null,null,null,null,null,0,null,null,0,0,0]
[null,null,null,null,null,null,null,null,0,null,null,0,0,0]
[null,null,null,null,null,null,null,null,0,null,null,0,0,0]
[null,null,null,null,null,null,null,null,0,null,null,0,0,0]
[null,null,null,null,null,null,null,null,0,null,null,0,0,0]
[null,null,null,null,null,null,null,null,0,null,null,0,0,0]
[null,null,null,null,null,null,null,null,0,null,null,0,0,0]
[null,null,null,null,null,null,null,null,0,null,null,0,0,0]
[null,null,null,null,null,null,null,null,0,null,null,0,0,0]
[null,null,null,null,null,null,null,null,0,null,null,0,0,0]
[null,null,null,null,null,null,null,null,0,null,null,0,0,0]
[null,null,null,null,null,null,null,null,0,null,null,0,0,0]
[null,null,null,null,null,null,null,null,0,null,null,0,0,0]
[null,null,null,null,null,null,null,null,0,null,null,0,0,0]
[null,null,null,null,null,null,null,null,0,null,null,0,0,0]
[null,null,null,null,null,null,null,null,0,null,null,0,0,0]
[null,null,null,null,null,null,null,null,0,null,null,0,0,0]
[null,null,null,null,null,null,null,null,0,null,null,0,0,0]
[null,null,null,null,null,null,null,null,0,null,null,0,0,0]
[null,null,null,null,null,null,null,null,0,null,null,0,0,0]
[null,null,null,null,null,null,null,null,0,null,null,0,0,0]
[null,null,null,null,null,null,null,null,0,null,null,0,0,0]
[null,null,null,null,null,null,null,null,0,null,null,0,0,0]
[null,null,null,null,null,null,null,null,0,null,null,0,0,0]
[null,null,null,null,null,null,null,null,0,null,null,0,0,0]
[null,null,null,null,null,null,null,null,0,null,null,0,0,0]
[null,null,null,null,null,null,null,null,0,null,null,0,0,0]
[null,null,null,null,null,null,null,null,0,null,null,0,0,0]
[null,null,null,null,null,null,null,null,0,null,null,0,0,0]
[null,null,null,null,null,null,null,null,0,null,null,0,0,0]
[null,null,null,null,null,null,null,null,0,null,null,0,0,0]
[null,null,null,null,null,null,null,null,0,null,null,0,0,0]
[null,null,null,null,null,null,null,null,0,null,null,0,0,0]
[null,null,null,null,null,null,null,null,0,null,null,0,0,0]
[null,null,null,null,null,null,null,null,0,null,null,0,0,0]
[null,null,null,null,null,null,null,null,0,null,null,0,0,0]
[null,null,null,null,null,null,null,null,0,null,null,0,0,0]
[null,null,null,null,null,null,null,null,0,null,null,0,0,0]
[null,null,null,null,null,null,null,null,0,null,null,0,0,0]
[null,null,null,null,null,null,null,null,0,null,null,0,0,0]
[null,null,null,null,null,null,null,null,{"$f":"IF(F518=\"مصري \",G518,G518*H518)","v":0},null,null,{"$f":"IF(E518=\"DR\",I518,0)","v":0},{"$f":"IF(E518=\"CR\",I518,0)","v":0},{"$f":"M518-L518","v":0}]
[null,null,null,null,null,null,null,null,0,null,null,0,0,0]
[null,null,null,null,null,null,null,null,0,null,null,0,0,0]
[null,null,null,null,null,null,null,null,0,null,null,0,0,0]
[null,null,null,null,null,null,null,null,0,null,null,0,0,0]
[null,null,null,null,null,null,null,null,0,null,null,0,0,0]
[null,null,null,null,null,null,null,null,0,null,null,0,0,0]
[null,null,null,null,null,null,null,null,0,null,null,0,0,0]
[null,null,null,null,null,null,null,null,0,null,null,0,0,0]
[null,null,null,null,null,null,null,null,0,null,null,0,0,0]
[null,null,null,null,null,null,null,null,0,null,null,0,0,0]
[null,null,null,null,null,null,null,null,0,null,null,0,0,0]
[null,null,null,null,null,null,null,null,0,null,null,0,0,0]
[null,null,null,null,null,null,null,null,0,null,null,0,0,0]
[null,null,null,null,null,null,null,null,0,null,null,0,0,0]
[null,null,null,null,null,null,null,null,0,null,null,0,0,0]
[null,null,null,null,null,null,null,null,0,null,null,0,0,0]
[null,null,null,null,null,null,null,null,0,null,null,0,0,0]
[null,null,null,null,null,null,null,null,0,null,null,0,0,0]
[null,null,null,null,null,null,null,null,0,null,null,0,0,0]
[null,null,null,null,null,null,null,null,0,null,null,0,0,0]
[null,null,null,null,null,null,null,null,0,null,null,0,0,0]
[null,null,null,null,null,null,null,null,0,null,null,0,0,0]
[null,null,null,null,null,null,null,null,0,null,null,0,0,0]
[null,null,null,null,null,null,null,null,0,null,null,0,0,0]
[null,null,null,null,null,null,null,null,0,null,null,0,0,0]
[null,null,null,null,null,null,null,null,0,null,null,0,0,0]
[null,null,null,null,null,null,null,null,0,null,null,0,0,0]
[null,null,null,null,null,null,null,null,0,null,null,0,0,0]
[null,null,null,null,null,null,null,null,0,null,null,0,0,0]
[null,null,null,null,null,null,null,null,0,null,null,0,0,0]
[null,null,null,null,null,null,null,null,0,null,null,0,0,0]
[null,null,null,null,null,null,null,null,0,null,null,0,0,0]
[null,null,null,null,null,null,null,null,0,null,null,0,0,0]
[null,null,null,null,null,null,null,null,0,null,null,0,0,0]
[null,null,null,null,null,null,null,null,0,null,null,0,0,0]
[null,null,null,null,null,null,null,null,0,null,null,0,0,0]
[null,null,null,null,null,null,null,null,0,null,null,0,0,0]
[null,null,null,null,null,null,null,null,0,null,null,0,0,0]
[null,null,null,null,null,null,null,null,0,null,null,0,0,0]
[null,null,null,null,null,null,null,null,0,null,null,0,0,0]
[null,null,null,null,null,null,null,null,0,null,null,0,0,0]
[null,null,null,null,null,null,null,null,0,null,null,0,0,0]
[null,null,null,null,null,null,null,null,0,null,null,0,0,0]
[null,null,null,null,null,null,null,null,0,null,null,0,0,0]
[null,null,null,null,null,null,null,null,0,null,null,0,0,0]
[null,null,null,null,null,null,null,null,0,null,null,0,0,0]
[null,null,null,null,null,null,null,null,0,null,null,0,0,0]
[null,null,null,null,null,null,null,null,0,null,null,0,0,0]
[null,null,null,null,null,null,null,null,0,null,null,0,0,0]
[null,null,null,null,null,null,null,null,0,null,null,0,0,0]
[null,null,null,null,null,null,null,null,0,null,null,0,0,0]
[null,null,null,null,null,null,null,null,0,null,null,0,0,0]
[null,null,null,null,null,null,null,null,0,null,null,0,0,0]
[null,null,null,null,null,null,null,null,0,null,null,0,0,0]
[null,null,null,null,null,null,null,null,0,null,null,0,0,0]
[null,null,null,null,null,null,null,null,0,null,null,0,0,0]
[null,null,null,null,null,null,null,null,0,null,null,0,0,0]
[null,null,null,null,null,null,null,null,0,null,null,0,0,0]
[null,null,null,null,null,null,null,null,0,null,null,0,0,0]
[null,null,null,null,null,null,null,null,0,null,null,0,0,0]
[null,null,null,null,null,null,null,null,0,null,null,0,0,0]
[null,null,null,null,null,null,null,null,0,null,null,0,0,0]
[null,null,null,null,null,null,null,null,0,null,null,0,0,0]
[null,null,null,null,null,null,null,null,{"$f":"IF(F582=\"مصري \",G582,G582*H582)","v":0},null,null,{"$f":"IF(E582=\"DR\",I582,0)","v":0},{"$f":"IF(E582=\"CR\",I582,0)","v":0},{"$f":"M582-L582","v":0}]
[null,null,null,null,null,null,null,null,0,null,null,0,0,0]
[null,null,null,null,null,null,null,null,0,null,null,0,0,0]
[null,null,null,null,null,null,null,null,0,null,null,0,0,0]
[null,null,null,null,null,null,null,null,0,null,null,0,0,0]
[null,null,null,null,null,null,null,null,0,null,null,0,0,0]
[null,null,null,null,null,null,null,null,0,null,null,0,0,0]
[null,null,null,null,null,null,null,null,0,null,null,0,0,0]
[null,null,null,null,null,null,null,null,0,null,null,0,0,0]
[null,null,null,null,null,null,null,null,0,null,null,0,0,0]
[null,null,null,null,null,null,null,null,0,null,null,0,0,0]
[null,null,null,null,null,null,null,null,0,null,null,0,0,0]
[null,null,null,null,null,null,null,null,0,null,null,0,0,0]
[null,null,null,null,null,null,null,null,0,null,null,0,0,0]
[null,null,null,null,null,null,null,null,0,null,null,0,0,0]
[null,null,null,null,null,null,null,null,0,null,null,0,0,0]
[null,null,null,null,null,null,null,null,0,null,null,0,0,0]
[null,null,null,null,null,null,null,null,0,null,null,0,0,0]
[null,null,null,null,null,null,null,null,0,null,null,0,0,0]
[null,null,null,null,null,null,null,null,0,null,null,0,0,0]
[null,null,null,null,null,null,null,null,0,null,null,0,0,0]
[null,null,null,null,null,null,null,null,0,null,null,0,0,0]
[null,null,null,null,null,null,null,null,0,null,null,0,0,0]
[null,null,null,null,null,null,null,null,0,null,null,0,0,0]
[null,null,null,null,null,null,null,null,0,null,null,0,0,0]
[null,null,null,null,null,null,null,null,0,null,null,0,0,0]
[null,null,null,null,null,null,null,null,0,null,null,0,0,0]
[null,null,null,null,null,null,null,null,0,null,null,0,0,0]
[null,null,null,null,null,null,null,null,0,null,null,0,0,0]
[null,null,null,null,null,null,null,null,0,null,null,0,0,0]
[null,null,null,null,null,null,null,null,0,null,null,0,0,0]
[null,null,null,null,null,null,null,null,0,null,null,0,0,0]
[null,null,null,null,null,null,null,null,0,null,null,0,0,0]
[null,null,null,null,null,null,null,null,0,null,null,0,0,0]
[null,null,null,null,null,null,null,null,0,null,null,0,0,0]
[null,null,null,null,null,null,null,null,0,null,null,0,0,0]
[null,null,null,null,null,null,null,null,0,null,null,0,0,0]
[null,null,null,null,null,null,null,null,0,null,null,0,0,0]
[null,null,null,null,null,null,null,null,0,null,null,0,0,0]
[null,null,null,null,null,null,null,null,0,null,null,0,0,0]
[null,null,null,null,null,null,null,null,0,null,null,0,0,0]
[null,null,null,null,null,null,null,null,0,null,null,0,0,0]
[null,null,null,null,null,null,null,null,0,null,null,0,0,0]
[null,null,null,null,null,null,null,null,0,null,null,0,0,0]
[null,null,null,null,null,null,null,null,0,null,null,0,0,0]
[null,null,null,null,null,null,null,null,0,null,null,0,0,0]
[null,null,null,null,null,null,null,null,0,null,null,0,0,0]
[null,null,null,null,null,null,null,null,0,null,null,0,0,0]
[null,null,null,null,null,null,null,null,0,null,null,0,0,0]
[null,null,null,null,null,null,null,null,0,null,null,0,0,0]
[null,null,null,null,null,null,null,null,0,null,null,0,0,0]
[null,null,null,null,null,null,null,null,0,null,null,0,0,0]
[null,null,null,null,null,null,null,null,0,null,null,0,0,0]
[null,null,null,null,null,null,null,null,0,null,null,0,0,0]
[null,null,null,null,null,null,null,null,0,null,null,0,0,0]
[null,null,null,null,null,null,null,null,0,null,null,0,0,0]
[null,null,null,null,null,null,null,null,0,null,null,0,0,0]
[null,null,null,null,null,null,null,null,0,null,null,0,0,0]
[null,null,null,null,null,null,null,null,0,null,null,0,0,0]
[null,null,null,null,null,null,null,null,0,null,null,0,0,0]
[null,null,null,null,null,null,null,null,0,null,null,0,0,0]
[null,null,null,null,null,null,null,null,0,null,null,0,0,0]
[null,null,null,null,null,null,null,null,0,null,null,0,0,0]
[null,null,null,null,null,null,null,null,0,null,null,0,0,0]
[null,null,null,null,null,null,null,null,{"$f":"IF(F646=\"مصري \",G646,G646*H646)","v":0},null,null,{"$f":"IF(E646=\"DR\",I646,0)","v":0},{"$f":"IF(E646=\"CR\",I646,0)","v":0},{"$f":"M646-L646","v":0}]
[null,null,null,null,null,null,null,null,0,null,null,0,0,0]
[null,null,null,null,null,null,null,null,0,null,null,0,0,0]
[null,null,null,null,null,null,null,null,0,null,null,0,0,0]
[null,null,null,null,null,null,null,null,0,null,null,0,0,0]
[null,null,null,null,null,null,null,null,0,null,null,0,0,0]
[null,null,null,null,null,null,null,null,0,null,null,0,0,0]
[null,null,null,null,null,null,null,null,0,null,null,0,0,0]
[null,null,null,null,null,null,null,null,0,null,null,0,0,0]
[null,null,null,null,null,null,null,null,0,null,null,0,0,0]
[null,null,null,null,null,null,null,null,0,null,null,0,0,0]
[null,null,null,null,null,null,null,null,0,null,null,0,0,0]
[null,null,null,null,null,null,null,null,0,null,null,0,0,0]
[null,null,null,null,null,null,null,null,0,null,null,0,0,0]
[null,null,null,null,null,null,null,null,0,null,null,0,0,0]
[null,null,null,null,null,null,null,null,0,null,null,0,0,0]
[null,null,null,null,null,null,null,null,0,null,null,0,0,0]
[null,null,null,null,null,null,null,null,0,null,null,0,0,0]
[null,null,null,null,null,null,null,null,0,null,null,0,0,0]
[null,null,null,null,null,null,null,null,0,null,null,0,0,0]
[null,null,null,null,null,null,null,null,0,null,null,0,0,0]
[null,null,null,null,null,null,null,null,0,null,null,0,0,0]
[null,null,null,null,null,null,null,null,0,null,null,0,0,0]
[null,null,null,null,null,null,null,null,0,null,null,0,0,0]
[null,null,null,null,null,null,null,null,0,null,null,0,0,0]
[null,null,null,null,null,null,null,null,0,null,null,0,0,0]
[null,null,null,null,null,null,null,null,0,null,null,0,0,0]
[null,null,null,null,null,null,null,null,0,null,null,0,0,0]
[null,null,null,null,null,null,null,null,0,null,null,0,0,0]
[null,null,null,null,null,null,null,null,0,null,null,0,0,0]
[null,null,null,null,null,null,null,null,0,null,null,0,0,0]
[null,null,null,null,null,null,null,null,0,null,null,0,0,0]
[null,null,null,null,null,null,null,null,0,null,null,0,0,0]
[null,null,null,null,null,null,null,null,0,null,null,0,0,0]
[null,null,null,null,null,null,null,null,0,null,null,0,0,0]
[null,null,null,null,null,null,null,null,0,null,null,0,0,0]
[null,null,null,null,null,null,null,null,0,null,null,0,0,0]
[null,null,null,null,null,null,null,null,0,null,null,0,0,0]
[null,null,null,null,null,null,null,null,0,null,null,0,0,0]
[null,null,null,null,null,null,null,null,0,null,null,0,0,0]
[null,null,null,null,null,null,null,null,0,null,null,0,0,0]
[null,null,null,null,null,null,null,null,0,null,null,0,0,0]
[null,null,null,null,null,null,null,null,0,null,null,0,0,0]
[null,null,null,null,null,null,null,null,0,null,null,0,0,0]
[null,null,null,null,null,null,null,null,0,null,null,0,0,0]
[null,null,null,null,null,null,null,null,0,null,null,0,0,0]
[null,null,null,null,null,null,null,null,0,null,null,0,0,0]
[null,null,null,null,null,null,null,null,0,null,null,0,0,0]
[null,null,null,null,null,null,null,null,0,null,null,0,0,0]
[null,null,null,null,null,null,null,null,0,null,null,0,0,0]
[null,null,null,null,null,null,null,null,0,null,null,0,0,0]
[null,null,null,null,null,null,null,null,0,null,null,0,0,0]
[null,null,null,null,null,null,null,null,0,null,null,0,0,0]
[null,null,null,null,null,null,null,null,0,null,null,0,0,0]
[null,null,null,null,null,null,null,null,0,null,null,0,0,0]
[null,null,null,null,null,null,null,null,0,null,null,0,0,0]
[null,null,null,null,null,null,null,null,0,null,null,0,0,0]
[null,null,null,null,null,null,null,null,0,null,null,0,0,0]
[null,null,null,null,null,null,null,null,0,null,null,0,0,0]
[null,null,null,null,null,null,null,null,0,null,null,0,0,0]
[null,null,null,null,null,null,null,null,0,null,null,0,0,0]
[null,null,null,null,null,null,null,null,0,null,null,0,0,0]
[null,null,null,null,null,null,null,null,0,null,null,0,0,0]
[null,null,null,null,null,null,null,null,0,null,null,0,0,0]
[null,null,null,null,null,null,null,null,{"$f":"IF(F710=\"مصري \",G710,G710*H710)","v":0},null,null,{"$f":"IF(E710=\"DR\",I710,0)","v":0},{"$f":"IF(E710=\"CR\",I710,0)","v":0},{"$f":"M710-L710","v":0}]
[null,null,null,null,null,null,null,null,0,null,null,0,0,0]
[null,null,null,null,null,null,null,null,0,null,null,0,0,0]
[null,null,null,null,null,null,null,null,0,null,null,0,0,0]
[null,null,null,null,null,null,null,null,0,null,null,0,0,0]
[null,null,null,null,null,null,null,null,0,null,null,0,0,0]
[null,null,null,null,null,null,null,null,0,null,null,0,0,0]
[null,null,null,null,null,null,null,null,0,null,null,0,0,0]
[null,null,null,null,null,null,null,null,0,null,null,0,0,0]
[null,null,null,null,null,null,null,null,0,null,null,0,0,0]
[null,null,null,null,null,null,null,null,0,null,null,0,0,0]
[null,null,null,null,null,null,null,null,0,null,null,0,0,0]
[null,null,null,null,null,null,null,null,0,null,null,0,0,0]
[null,null,null,null,null,null,null,null,0,null,null,0,0,0]
[null,null,null,null,null,null,null,null,0,null,null,0,0,0]
[null,null,null,null,null,null,null,null,0,null,null,0,0,0]
[null,null,null,null,null,null,null,null,0,null,null,0,0,0]
[null,null,null,null,null,null,null,null,0,null,null,0,0,0]
[null,null,null,null,null,null,null,null,0,null,null,0,0,0]
[null,null,null,null,null,null,null,null,0,null,null,0,0,0]
[null,null,null,null,null,null,null,null,0,null,null,0,0,0]
[null,null,null,null,null,null,null,null,0,null,null,0,0,0]
[null,null,null,null,null,null,null,null,0,null,null,0,0,0]
[null,null,null,null,null,null,null,null,0,null,null,0,0,0]
[null,null,null,null,null,null,null,null,0,null,null,0,0,0]
[null,null,null,null,null,null,null,null,0,null,null,0,0,0]
[null,null,null,null,null,null,null,null,0,null,null,0,0,0]
[null,null,null,null,null,null,null,null,0,null,null,0,0,0]
[null,null,null,null,null,null,null,null,0,null,null,0,0,0]
[null,null,null,null,null,null,null,null,0,null,null,0,0,0]
[null,null,null,null,null,null,null,null,0,null,null,0,0,0]
[null,null,null,null,null,null,null,null,0,null,null,0,0,0]
[null,null,null,null,null,null,null,null,0,null,null,0,0,0]
[null,null,null,null,null,null,null,null,0,null,null,0,0,0]
[null,null,null,null,null,null,null,null,0,null,null,0,0,0]
[null,null,null,null,null,null,null,null,0,null,null,0,0,0]
[null,null,null,null,null,null,null,null,0,null,null,0,0,0]
[null,null,null,null,null,null,null,null,0,null,null,0,0,0]
[null,null,null,null,null,null,null,null,0,null,null,0,0,0]
[null,null,null,null,null,null,null,null,0,null,null,0,0,0]
[null,null,null,null,null,null,null,null,0,null,null,0,0,0]
[null,null,null,null,null,null,null,null,0,null,null,0,0,0]
[null,null,null,null,null,null,null,null,0,null,null,0,0,0]
[null,null,null,null,null,null,null,null,0,null,null,0,0,0]
[null,null,null,null,null,null,null,null,0,null,null,0,0,0]
[null,null,null,null,null,null,null,null,0,null,null,0,0,0]
[null,null,null,null,null,null,null,null,0,null,null,0,0,0]
[null,null,null,null,null,null,null,null,0,null,null,0,0,0]
[null,null,null,null,null,null,null,null,0,null,null,0,0,0]
[null,null,null,null,null,null,null,null,0,null,null,0,0,0]
[null,null,null,null,null,null,null,null,0,null,null,0,0,0]
[null,null,null,null,null,null,null,null,0,null,null,0,0,0]
[null,null,null,null,null,null,null,null,0,null,null,0,0,0]
[null,null,null,null,null,null,null,null,0,null,null,0,0,0]
[null,null,null,null,null,null,null,null,0,null,null,0,0,0]
[null,null,null,null,null,null,null,null,0,null,null,0,0,0]
[null,null,null,null,null,null,null,null,0,null,null,0,0,0]
[null,null,null,null,null,null,null,null,0,null,null,0,0,0]
[null,null,null,null,null,null,null,null,0,null,null,0,0,0]
[null,null,null,null,null,null,null,null,0,null,null,0,0,0]
[null,null,null,null,null,null,null,null,0,null,null,0,0,0]
[null,null,null,null,null,null,null,null,0,null,null,0,0,0]
[null,null,null,null,null,null,null,null,0,null,null,0,0,0]
[null,null,null,null,null,null,null,null,0,null,null,0,0,0]
[null,null,null,null,null,null,null,null,{"$f":"IF(F774=\"مصري \",G774,G774*H774)","v":0},null,null,{"$f":"IF(E774=\"DR\",I774,0)","v":0},{"$f":"IF(E774=\"CR\",I774,0)","v":0},{"$f":"M774-L774","v":0}]
[null,null,null,null,null,null,null,null,0,null,null,0,0,0]
[null,null,null,null,null,null,null,null,0,null,null,0,0,0]
[null,null,null,null,null,null,null,null,0,null,null,0,0,0]
[null,null,null,null,null,null,null,null,0,null,null,0,0,0]
[null,null,null,null,null,null,null,null,0,null,null,0,0,0]
[null,null,null,null,null,null,null,null,0,null,null,0,0,0]
[null,null,null,null,null,null,null,null,0,null,null,0,0,0]
[null,null,null,null,null,null,null,null,0,null,null,0,0,0]
[null,null,null,null,null,null,null,null,0,null,null,0,0,0]
[null,null,null,null,null,null,null,null,0,null,null,0,0,0]
[null,null,null,null,null,null,null,null,0,null,null,0,0,0]
[null,null,null,null,null,null,null,null,0,null,null,0,0,0]
[null,null,null,null,null,null,null,null,0,null,null,0,0,0]
[null,null,null,null,null,null,null,null,0,null,null,0,0,0]
[null,null,null,null,null,null,null,null,0,null,null,0,0,0]
[null,null,null,null,null,null,null,null,0,null,null,0,0,0]
[null,null,null,null,null,null,null,null,0,null,null,0,0,0]
[null,null,null,null,null,null,null,null,0,null,null,0,0,0]
[null,null,null,null,null,null,null,null,0,null,null,0,0,0]
[null,null,null,null,null,null,null,null,0,null,null,0,0,0]
[null,null,null,null,null,null,null,null,0,null,null,0,0,0]
[null,null,null,null,null,null,null,null,0,null,null,0,0,0]
[null,null,null,null,null,null,null,null,0,null,null,0,0,0]
[null,null,null,null,null,null,null,null,0,null,null,0,0,0]
[null,null,null,null,null,null,null,null,0,null,null,0,0,0]
[null,null,null,null,null,null,null,null,0,null,null,0,0,0]
[null,null,null,null,null,null,null,null,0,null,null,0,0,0]
[null,null,null,null,null,null,null,null,0,null,null,0,0,0]
[null,null,null,null,null,null,null,null,0,null,null,0,0,0]
[null,null,null,null,null,null,null,null,0,null,null,0,0,0]
[null,null,null,null,null,null,null,null,0,null,null,0,0,0]
[null,null,null,null,null,null,null,null,0,null,null,0,0,0]
[null,null,null,null,null,null,null,null,0,null,null,0,0,0]
[null,null,null,null,null,null,null,null,0,null,null,0,0,0]
[null,null,null,null,null,null,null,null,0,null,null,0,0,0]
[null,null,null,null,null,null,null,null,0,null,null,0,0,0]
[null,null,null,null,null,null,null,null,0,null,null,0,0,0]
[null,null,null,null,null,null,null,null,0,null,null,0,0,0]
[null,null,null,null,null,null,null,null,0,null,null,0,0,0]
[null,null,null,null,null,null,null,null,0,null,null,0,0,0]
[null,null,null,null,null,null,null,null,0,null,null,0,0,0]
[null,null,null,null,null,null,null,null,0,null,null,0,0,0]
[null,null,null,null,null,null,null,null,0,null,null,0,0,0]
[null,null,null,null,null,null,null,null,0,null,null,0,0,0]
[null,null,null,null,null,null,null,null,0,null,null,0,0,0]
[null,null,null,null,null,null,null,null,0,null,null,0,0,0]
[null,null,null,null,null,null,null,null,0,null,null,0,0,0]
[null,null,null,null,null,null,null,null,0,null,null,0,0,0]
[null,null,null,null,null,null,null,null,0,null,null,0,0,0]
[null,null,null,null,null,null,null,null,0,null,null,0,0,0]
[null,null,null,null,null,null,null,null,0,null,null,0,0,0]
[null,null,null,null,null,null,null,null,0,null,null,0,0,0]
[null,null,null,null,null,null,null,null,0,null,null,0,0,0]
[null,null,null,null,null,null,null,null,0,null,null,0,0,0]
[null,null,null,null,null,null,null,null,0,null,null,0,0,0]
[null,null,null,null,null,null,null,null,0,null,null,0,0,0]
[null,null,null,null,null,null,null,null,0,null,null,0,0,0]
[null,null,null,null,null,null,null,null,0,null,null,0,0,0]
[null,null,null,null,null,null,null,null,0,null,null,0,0,0]
[null,null,null,null,null,null,null,null,0,null,null,0,0,0]
[null,null,null,null,null,null,null,null,0,null,null,0,0,0]
[null,null,null,null,null,null,null,null,0,null,null,0,0,0]
[null,null,null,null,null,null,null,null,0,null,null,0,0,0]
[null,null,null,null,null,null,null,null,{"$f":"IF(F838=\"مصري \",G838,G838*H838)","v":0},null,null,{"$f":"IF(E838=\"DR\",I838,0)","v":0},{"$f":"IF(E838=\"CR\",I838,0)","v":0},{"$f":"M838-L838","v":0}]
[null,null,null,null,null,null,null,null,0,null,null,0,0,0]
[null,null,null,null,null,null,null,null,0,null,null,0,0,0]
[null,null,null,null,null,null,null,null,0,null,null,0,0,0]
[null,null,null,null,null,null,null,null,0,null,null,0,0,0]
[null,null,null,null,null,null,null,null,0,null,null,0,0,0]
[null,null,null,null,null,null,null,null,0,null,null,0,0,0]
[null,null,null,null,null,null,null,null,0,null,null,0,0,0]
[null,null,null,null,null,null,null,null,0,null,null,0,0,0]
[null,null,null,null,null,null,null,null,0,null,null,0,0,0]
[null,null,null,null,null,null,null,null,0,null,null,0,0,0]
[null,null,null,null,null,null,null,null,0,null,null,0,0,0]
[null,null,null,null,null,null,null,null,0,null,null,0,0,0]
[null,null,null,null,null,null,null,null,0,null,null,0,0,0]
[null,null,null,null,null,null,null,null,0,null,null,0,0,0]
[null,null,null,null,null,null,null,null,0,null,null,0,0,0]
[null,null,null,null,null,null,null,null,0,null,null,0,0,0]
[null,null,null,null,null,null,null,null,0,null,null,0,0,0]
[null,null,null,null,null,null,null,null,0,null,null,0,0,0]
[null,null,null,null,null,null,null,null,0,null,null,0,0,0]
[null,null,null,null,null,null,null,null,0,null,null,0,0,0]
[null,null,null,null,null,null,null,null,0,null,null,0,0,0]
[null,null,null,null,null,null,null,null,0,null,null,0,0,0]
[null,null,null,null,null,null,null,null,0,null,null,0,0,0]
[null,null,null,null,null,null,null,null,0,null,null,0,0,0]
[null,null,null,null,null,null,null,null,0,null,null,0,0,0]
[null,null,null,null,null,null,null,null,0,null,null,0,0,0]
[null,null,null,null,null,null,null,null,0,null,null,0,0,0]
[null,null,null,null,null,null,null,null,0,null,null,0,0,0]
[null,null,null,null,null,null,null,null,0,null,null,0,0,0]
[null,null,null,null,null,null,null,null,0,null,null,0,0,0]
[null,null,null,null,null,null,null,null,0,null,null,0,0,0]
[null,null,null,null,null,null,null,null,0,null,null,0,0,0]
[null,null,null,null,null,null,null,null,0,null,null,0,0,0]
[null,null,null,null,null,null,null,null,0,null,null,0,0,0]
[null,null,null,null,null,null,null,null,0,null,null,0,0,0]
[null,null,null,null,null,null,null,null,0,null,null,0,0,0]
[null,null,null,null,null,null,null,null,0,null,null,0,0,0]
[null,null,null,null,null,null,null,null,0,null,null,0,0,0]
[null,null,null,null,null,null,null,null,0,null,null,0,0,0]
[null,null,null,null,null,null,null,null,0,null,null,0,0,0]
[null,null,null,null,null,null,null,null,0,null,null,0,0,0]
[null,null,null,null,null,null,null,null,0,null,null,0,0,0]
[null,null,null,null,null,null,null,null,0,null,null,0,0,0]
[null,null,null,null,null,null,null,null,0,null,null,0,0,0]
[null,null,null,null,null,null,null,null,0,null,null,0,0,0]
[null,null,null,null,null,null,null,null,0,null,null,0,0,0]
[null,null,null,null,null,null,null,null,0,null,null,0,0,0]
[null,null,null,null,null,null,null,null,0,null,null,0,0,0]
[null,null,null,null,null,null,null,null,0,null,null,0,0,0]
[null,null,null,null,null,null,null,null,0,null,null,0,0,0]
[null,null,null,null,null,null,null,null,0,null,null,0,0,0]
[null,null,null,null,null,null,null,null,0,null,null,0,0,0]
[null,null,null,null,null,null,null,null,0,null,null,0,0,0]
[null,null,null,null,null,null,null,null,0,null,null,0,0,0]
[null,null,null,null,null,null,null,null,0,null,null,0,0,0]
[null,null,null,null,null,null,null,null,0,null,null,0,0,0]
[null,null,null,null,null,null,null,null,0,null,null,0,0,0]
[null,null,null,null,null,null,null,null,0,null,null,0,0,0]
[null,null,null,null,null,null,null,null,0,null,null,0,0,0]
[null,null,null,null,null,null,null,null,0,null,null,0,0,0]
[null,null,null,null,null,null,null,null,0,null,null,0,0,0]
[null,null,null,null,null,null,null,null,0,null,null,0,0,0]
[null,null,null,null,null,null,null,null,0,null,null,0,0,0]
[null,null,null,null,null,null,null,null,{"$f":"IF(F902=\"مصري \",G902,G902*H902)","v":0},null,null,{"$f":"IF(E902=\"DR\",I902,0)","v":0},{"$f":"IF(E902=\"CR\",I902,0)","v":0},{"$f":"M902-L902","v":0}]
[null,null,null,null,null,null,null,null,0,null,null,0,0,0]
[null,null,null,null,null,null,null,null,0,null,null,0,0,0]
[null,null,null,null,null,null,null,null,0,null,null,0,0,0]
[null,null,null,null,null,null,null,null,0,null,null,0,0,0]
[null,null,null,null,null,null,null,null,0,null,null,0,0,0]
[null,null,null,null,null,null,null,null,0,null,null,0,0,0]
[null,null,null,null,null,null,null,null,0,null,null,0,0,0]
[null,null,null,null,null,null,null,null,0,null,null,0,0,0]
[null,null,null,null,null,null,null,null,0,null,null,0,0,0]
[null,null,null,null,null,null,null,null,0,null,null,0,0,0]
[null,null,null,null,null,null,null,null,0,null,null,0,0,0]
[null,null,null,null,null,null,null,null,0,null,null,0,0,0]
[null,null,null,null,null,null,null,null,0,null,null,0,0,0]
[null,null,null,null,null,null,null,null,0,null,null,0,0,0]
[null,null,null,null,null,null,null,null,0,null,null,0,0,0]
[null,null,null,null,null,null,null,null,0,null,null,0,0,0]
[null,null,null,null,null,null,null,null,0,null,null,0,0,0]
[null,null,null,null,null,null,null,null,0,null,null,0,0,0]
[null,null,null,null,null,null,null,null,0,null,null,0,0,0]
[null,null,null,null,null,null,null,null,0,null,null,0,0,0]
[null,null,null,null,null,null,null,null,0,null,null,0,0,0]
[null,null,null,null,null,null,null,null,0,null,null,0,0,0]
[null,null,null,null,null,null,null,null,0,null,null,0,0,0]
[null,null,null,null,null,null,null,null,0,null,null,0,0,0]
[null,null,null,null,null,null,null,null,0,null,null,0,0,0]
[null,null,null,null,null,null,null,null,0,null,null,0,0,0]
[null,null,null,null,null,null,null,null,0,null,null,0,0,0]
[null,null,null,null,null,null,null,null,0,null,null,0,0,0]
[null,null,null,null,null,null,null,null,0,null,null,0,0,0]
[null,null,null,null,null,null,null,null,0,null,null,0,0,0]
[null,null,null,null,null,null,null,null,0,null,null,0,0,0]
[null,null,null,null,null,null,null,null,0,null,null,0,0,0]
[null,null,null,null,null,null,null,null,0,null,null,0,0,0]
[null,null,null,null,null,null,null,null,0,null,null,0,0,0]
[null,null,null,null,null,null,null,null,0,null,null,0,0,0]
[null,null,null,null,null,null,null,null,0,null,null,0,0,0]
[null,null,null,null,null,null,null,null,0,null,null,0,0,0]
[null,null,null,null,null,null,null,null,0,null,null,0,0,0]
[null,null,null,null,null,null,null,null,0,null,null,0,0,0]
[null,null,null,null,null,null,null,null,0,null,null,0,0,0]
[null,null,null,null,null,null,null,null,0,null,null,0,0,0]
[null,null,null,null,null,null,null,null,0,null,null,0,0,0]
[null,null,null,null,null,null,null,null,0,null,null,0,0,0]
[null,null,null,null,null,null,null,null,0,null,null,0,0,0]
[null,null,null,null,null,null,null,null,0,null,null,0,0,0]
[null,null,null,null,null,null,null,null,0,null,null,0,0,0]
[null,null,null,null,null,null,null,null,0,null,null,0,0,0]
[null,null,null,null,null,null,null,null,0,null,null,0,0,0]
[null,null,null,null,null,null,null,null,0,null,null,0,0,0]
[null,null,null,null,null,null,null,null,0,null,null,0,0,0]
[null,null,null,null,null,null,null,null,0,null,null,0,0,0]
[null,null,null,null,null,null,null,null,0,null,null,0,0,0]
[null,null,null,null,null,null,null,null,0,null,null,0,0,0]
[null,null,null,null,null,null,null,null,0,null,null,0,0,0]
[null,null,null,null,null,null,null,null,0,null,null,0,0,0]
[null,null,null,null,null,null,null,null,0,null,null,0,0,0]
[null,null,null,null,null,null,null,null,0,null,null,0,0,0]
[null,null,null,null,null,null,null,null,0,null,null,0,0,0]
[null,null,null,null,null,null,null,null,0,null,null,0,0,0]
[null,null,null,null,null,null,null,null,0,null,null,0,0,0]
[null,null,null,null,null,null,null,null,0,null,null,0,0,0]
[null,null,null,null,null,null,null,null,0,null,null,0,0,0]
[null,null,null,null,null,null,null,null,0,null,null,0,0,0]
[null,null,null,null,null,null,null,null,{"$f":"IF(F966=\"مصري \",G966,G966*H966)","v":0},null,null,{"$f":"IF(E966=\"DR\",I966,0)","v":0},{"$f":"IF(E966=\"CR\",I966,0)","v":0},{"$f":"M966-L966","v":0}]
[null,null,null,null,null,null,null,null,0,null,null,0,0,0]
[null,null,null,null,null,null,null,null,0,null,null,0,0,0]
[null,null,null,null,null,null,null,null,0,null,null,0,0,0]
[null,null,null,null,null,null,null,null,0,null,null,0,0,0]
[null,null,null,null,null,null,null,null,0,null,null,0,0,0]
[null,null,null,null,null,null,null,null,0,null,null,0,0,0]
[null,null,null,null,null,null,null,null,0,null,null,0,0,0]
[null,null,null,null,null,null,null,null,0,null,null,0,0,0]
[null,null,null,null,null,null,null,null,0,null,null,0,0,0]
[null,null,null,null,null,null,null,null,0,null,null,0,0,0]
[null,null,null,null,null,null,null,null,0,null,null,0,0,0]
[null,null,null,null,null,null,null,null,0,null,null,0,0,0]
[null,null,null,null,null,null,null,null,0,null,null,0,0,0]
[null,null,null,null,null,null,null,null,0,null,null,0,0,0]
[null,null,null,null,null,null,null,null,0,null,null,0,0,0]
[null,null,null,null,null,null,null,null,0,null,null,0,0,0]
[null,null,null,null,null,null,null,null,0,null,null,0,0,0]
[null,null,null,null,null,null,null,null,0,null,null,0,0,0]
[null,null,null,null,null,null,null,null,0,null,null,0,0,0]
[null,null,null,null,null,null,null,null,0,null,null,0,0,0]
[null,null,null,null,null,null,null,null,0,null,null,0,0,0]
[null,null,null,null,null,null,null,null,0,null,null,0,0,0]
[null,null,null,null,null,null,null,null,0,null,null,0,0,0]
[null,null,null,null,null,null,null,null,0,null,null,0,0,0]
[null,null,null,null,null,null,null,null,0,null,null,0,0,0]
[null,null,null,null,null,null,null,null,0,null,null,0,0,0]
[null,null,null,null,null,null,null,null,0,null,null,0,0,0]
[null,null,null,null,null,null,null,null,0,null,null,0,0,0]
[null,null,null,null,null,null,null,null,0,null,null,0,0,0]
[null,null,null,null,null,null,null,null,0,null,null,0,0,0]
[null,null,null,null,null,null,null,null,0,null,null,0,0,0]
[null,null,null,null,null,null,null,null,0,null,null,0,0,0]
[null,null,null,null,null,null,null,null,0,null,null,0,0,0]
[null,null,null,null,null,null,null,null,0,null,null,0,0,0]
[null,null,null,null,null,null,null,null,0,null,null,0,0,0]
[null,null,null,null,null,null,null,null,0,null,null,0,0,0]
[null,null,null,null,null,null,null,null,null,null,null,{"$f":"SUM(L5:L1002)","v":0},{"$f":"SUM(M5:M1002)","v":0},0]